Workbook

Sheet Inhaltsverzeichnis
A1: Inhaltsverzeichnis der Arbeitsblätter
A2: Lfd. Nr. | B2: Blattname | C2: Bemerkung
A3: 1 | B3: Inhaltsverzeichnis
A4: 2 | B4: Grundlagen
A5: 3 | B5: Excel_Tabellenblatt_Microsoft B
A6: 4 | B6: Pivot_Umsatz_Produkt_Region
A7: 5 | B7: Pivot_Umsatz_Vertrieb
A8: 6 | B8: Pivot_Umsatz_Ort
A9: 7 | B9: Vorlage_TE
A10: 8 | B10: TE_Vertrieb
A11: 9 | B11: TE_Produkt
A12: 10 | B12: TE_Ort
A13: 11 | B13: TE_Monat
A14: 12 | B14: Summewenns
A15: 13 | B15: Summewenns (Formeln)

Sheet Grundlage (hidden)
A1: Umsatz | B1: Produkt | C1: Vertrieb | D1: Ort | E1: Monat | F1: Datum | G1: Anzahl
A2: =VLOOKUP(B2,M:N,2,FALSE) -> 100 | B2: 100 | C2: Vertrieb_1 | D2: =VLOOKUP(C2,J:K,2,FALSE) -> Hamburg | E2: =MONTH(F2) -> 1 | F2: 2021-01-03 | G2: 1 | J2: Vertrieb_1 | K2: Hamburg | M2: 100 | N2: 100
A3: =VLOOKUP(B3,M:N,2,FALSE) -> 200 | B3: 110 | C3: Vertrieb_2 | D3: =VLOOKUP(C3,J:K,2,FALSE) -> München | E3: =MONTH(F3) -> 1 | F3: =F2+1 -> 2021-01-04 | G3: 1 | J3: Vertrieb_2 | K3: München | M3: 110 | N3: 200
A4: 250 | B4: 120 | C4: Vertrieb_3 | D4: Köln | E4: 1 | F4: =F3+1 -> 2021-01-05 | G4: 1 | J4: Vertrieb_3 | K4: Köln | M4: 120 | N4: 250
A5: 100 | B5: 100 | C5: Vertrieb_4 | D5: Frankfurt am Main | E5: 1 | F5: 2021-01-06 | G5: 1 | J5: Vertrieb_4 | K5: Frankfurt am Main
A6: 200 | B6: 110 | C6: Vertrieb_1 | D6: Hamburg | E6: 1 | F6: 2021-01-07 | G6: 1
A7: 200 | B7: 110 | C7: Vertrieb_2 | D7: München | E7: 1 | F7: 2021-01-08 | G7: 1
A8: 250 | B8: 120 | C8: Vertrieb_3 | D8: Köln | E8: 1 | F8: 2021-01-09 | G8: 1
A9: 100 | B9: 100 | C9: Vertrieb_4 | D9: Frankfurt am Main | E9: 1 | F9: 2021-01-10 | G9: 1
A10: 200 | B10: 110 | C10: Vertrieb_1 | D10: Hamburg | E10: 1 | F10: 2021-01-11 | G10: 1
A11: 250 | B11: 120 | C11: Vertrieb_2 | D11: München | E11: 1 | F11: 2021-01-12 | G11: 1
A12: 250 | B12: 120 | C12: Vertrieb_3 | D12: Köln | E12: 1 | F12: 2021-01-13 | G12: 1
A13: 100 | B13: 100 | C13: Vertrieb_4 | D13: Frankfurt am Main | E13: 1 | F13: 2021-01-14 | G13: 1
A14: 200 | B14: 110 | C14: Vertrieb_1 | D14: Hamburg | E14: 1 | F14: 2021-01-15 | G14: 1
A15: 250 | B15: 120 | C15: Vertrieb_2 | D15: München | E15: 1 | F15: 2021-01-16 | G15: 1
A16: 100 | B16: 100 | C16: Vertrieb_3 | D16: Köln | E16: 1 | F16: 2021-01-17 | G16: 1
A17: 200 | B17: 110 | C17: Vertrieb_4 | D17: Frankfurt am Main | E17: 1 | F17: 2021-01-18 | G17: 1
A18: 250 | B18: 120 | C18: Vertrieb_1 | D18: Hamburg | E18: 1 | F18: 2021-01-19 | G18: 1
A19: 100 | B19: 100 | C19: Vertrieb_2 | D19: München | E19: 1 | F19: 2021-01-20 | G19: 1
A20: 200 | B20: 110 | C20: Vertrieb_3 | D20: Köln | E20: 1 | F20: 2021-01-21 | G20: 1
A21: 250 | B21: 120 | C21: Vertrieb_4 | D21: Frankfurt am Main | E21: 1 | F21: 2021-01-22 | G21: 1
A22: 100 | B22: 100 | C22: Vertrieb_1 | D22: Hamburg | E22: 1 | F22: 2021-01-23 | G22: 1
A23: 250 | B23: 120 | C23: Vertrieb_2 | D23: München | E23: 1 | F23: 2021-01-24 | G23: 1
A24: 100 | B24: 100 | C24: Vertrieb_3 | D24: Köln | E24: 1 | F24: 2021-01-25 | G24: 1
A25: 200 | B25: 110 | C25: Vertrieb_4 | D25: Frankfurt am Main | E25: 1 | F25: 2021-01-26 | G25: 1
A26: 250 | B26: 120 | C26: Vertrieb_1 | D26: Hamburg | E26: 1 | F26: 2021-01-27 | G26: 1
A27: 100 | B27: 100 | C27: Vertrieb_2 | D27: München | E27: 1 | F27: 2021-01-28 | G27: 1
A28: 200 | B28: 110 | C28: Vertrieb_3 | D28: Köln | E28: 1 | F28: 2021-01-29 | G28: 1
A29: 250 | B29: 120 | C29: Vertrieb_4 | D29: Frankfurt am Main | E29: 1 | F29: 2021-01-30 | G29: 1
A30: 100 | B30: 100 | C30: Vertrieb_1 | D30: Hamburg | E30: 1 | F30: 2021-01-31 | G30: 1
A31: 200 | B31: 110 | C31: Vertrieb_2 | D31: München | E31: 2 | F31: 2021-02-01 | G31: 1
A32: 250 | B32: 120 | C32: Vertrieb_3 | D32: Köln | E32: 2 | F32: 2021-02-02 | G32: 1
A33: 100 | B33: 100 | C33: Vertrieb_4 | D33: Frankfurt am Main | E33: 2 | F33: 2021-02-03 | G33: 1
A34: 200 | B34: 110 | C34: Vertrieb_1 | D34: Hamburg | E34: 2 | F34: 2021-02-04 | G34: 1
A35: 250 | B35: 120 | C35: Vertrieb_2 | D35: München | E35: 2 | F35: 2021-02-05 | G35: 1
A36: 100 | B36: 100 | C36: Vertrieb_3 | D36: Köln | E36: 2 | F36: 2021-02-06 | G36: 1
A37: 200 | B37: 110 | C37: Vertrieb_4 | D37: Frankfurt am Main | E37: 2 | F37: 2021-02-07 | G37: 1
A38: 250 | B38: 120 | C38: Vertrieb_1 | D38: Hamburg | E38: 2 | F38: 2021-02-08 | G38: 1
A39: 100 | B39: 100 | C39: Vertrieb_2 | D39: München | E39: 2 | F39: 2021-02-09 | G39: 1
A40: 200 | B40: 110 | C40: Vertrieb_3 | D40: Köln | E40: 2 | F40: 2021-02-10 | G40: 1
A41: 250 | B41: 120 | C41: Vertrieb_4 | D41: Frankfurt am Main | E41: 2 | F41: 2021-02-11 | G41: 1
A42: 100 | B42: 100 | C42: Vertrieb_1 | D42: Hamburg | E42: 2 | F42: 2021-02-12 | G42: 1
A43: 200 | B43: 110 | C43: Vertrieb_2 | D43: München | E43: 2 | F43: 2021-02-13 | G43: 1
A44: 250 | B44: 120 | C44: Vertrieb_3 | D44: Köln | E44: 2 | F44: 2021-02-14 | G44: 1
A45: 100 | B45: 100 | C45: Vertrieb_4 | D45: Frankfurt am Main | E45: 2 | F45: 2021-02-15 | G45: 1
A46: 200 | B46: 110 | C46: Vertrieb_1 | D46: Hamburg | E46: 2 | F46: 2021-02-16 | G46: 1
A47: 250 | B47: 120 | C47: Vertrieb_2 | D47: München | E47: 2 | F47: 2021-02-17 | G47: 1
A48: 100 | B48: 100 | C48: Vertrieb_3 | D48: Köln | E48: 2 | F48: 2021-02-18 | G48: 1
A49: 200 | B49: 110 | C49: Vertrieb_4 | D49: Frankfurt am Main | E49: 2 | F49: 2021-02-19 | G49: 1
A50: 250 | B50: 120 | C50: Vertrieb_1 | D50: Hamburg | E50: 2 | F50: 2021-02-20 | G50: 1
A51: 100 | B51: 100 | C51: Vertrieb_2 | D51: München | E51: 2 | F51: 2021-02-21 | G51: 1
A52: 200 | B52: 110 | C52: Vertrieb_3 | D52: Köln | E52: 2 | F52: 2021-02-22 | G52: 1
A53: 250 | B53: 120 | C53: Vertrieb_4 | D53: Frankfurt am Main | E53: 2 | F53: 2021-02-23 | G53: 1
A54: 200 | B54: 110 | C54: Vertrieb_1 | D54: Hamburg | E54: 2 | F54: 2021-02-24 | G54: 1
A55: 250 | B55: 120 | C55: Vertrieb_2 | D55: München | E55: 2 | F55: 2021-02-25 | G55: 1
A56: 100 | B56: 100 | C56: Vertrieb_3 | D56: Köln | E56: 2 | F56: 2021-02-26 | G56: 1
A57: 200 | B57: 110 | C57: Vertrieb_4 | D57: Frankfurt am Main | E57: 2 | F57: 2021-02-27 | G57: 1
A58: 250 | B58: 120 | C58: Vertrieb_1 | D58: Hamburg | E58: 2 | F58: 2021-02-28 | G58: 1
A59: 100 | B59: 100 | C59: Vertrieb_2 | D59: München | E59: 3 | F59: 2021-03-01 | G59: 1
A60: 200 | B60: 110 | C60: Vertrieb_3 | D60: Köln | E60: 3 | F60: 2021-03-02 | G60: 1
A61: 250 | B61: 120 | C61: Vertrieb_4 | D61: Frankfurt am Main | E61: 3 | F61: 2021-03-03 | G61: 1
A62: 100 | B62: 100 | C62: Vertrieb_1 | D62: Hamburg | E62: 3 | F62: 2021-03-04 | G62: 1
A63: 200 | B63: 110 | C63: Vertrieb_2 | D63: München | E63: 3 | F63: 2021-03-05 | G63: 1
A64: 250 | B64: 120 | C64: Vertrieb_3 | D64: Köln | E64: 3 | F64: 2021-03-06 | G64: 1
A65: 100 | B65: 100 | C65: Vertrieb_4 | D65: Frankfurt am Main | E65: 3 | F65: 2021-03-07 | G65: 1
A66: 200 | B66: 110 | C66: Vertrieb_1 | D66: Hamburg | E66: 3 | F66: 2021-03-08 | G66: 1
A67: =VLOOKUP(B67,M:N,2,FALSE) -> 250 | B67: 120 | C67: Vertrieb_2 | D67: =VLOOKUP(C67,J:K,2,FALSE) -> München | E67: =MONTH(F67) -> 3 | F67: 2021-03-09 | G67: 1
A68: 100 | B68: 100 | C68: Vertrieb_3 | D68: Köln | E68: 3 | F68: =F67+1 -> 2021-03-10 | G68: 1
A69: 200 | B69: 110 | C69: Vertrieb_4 | D69: Frankfurt am Main | E69: 3 | F69: 2021-03-11 | G69: 1
A70: 250 | B70: 120 | C70: Vertrieb_1 | D70: Hamburg | E70: 3 | F70: 2021-03-12 | G70: 1
A71: 100 | B71: 100 | C71: Vertrieb_2 | D71: München | E71: 3 | F71: 2021-03-13 | G71: 1
A72: 200 | B72: 110 | C72: Vertrieb_3 | D72: Köln | E72: 3 | F72: 2021-03-14 | G72: 1
A73: 250 | B73: 120 | C73: Vertrieb_4 | D73: Frankfurt am Main | E73: 3 | F73: 2021-03-15 | G73: 1
A74: 100 | B74: 100 | C74: Vertrieb_1 | D74: Hamburg | E74: 3 | F74: 2021-03-16 | G74: 1
A75: 200 | B75: 110 | C75: Vertrieb_2 | D75: München | E75: 3 | F75: 2021-03-17 | G75: 1
A76: 250 | B76: 120 | C76: Vertrieb_3 | D76: Köln | E76: 3 | F76: 2021-03-18 | G76: 1
A77: 100 | B77: 100 | C77: Vertrieb_4 | D77: Frankfurt am Main | E77: 3 | F77: 2021-03-19 | G77: 1
A78: 200 | B78: 110 | C78: Vertrieb_1 | D78: Hamburg | E78: 3 | F78: 2021-03-20 | G78: 1
A79: 250 | B79: 120 | C79: Vertrieb_2 | D79: München | E79: 3 | F79: 2021-03-21 | G79: 1
A80: 100 | B80: 100 | C80: Vertrieb_3 | D80: Köln | E80: 3 | F80: 2021-03-22 | G80: 1
A81: 200 | B81: 110 | C81: Vertrieb_4 | D81: Frankfurt am Main | E81: 3 | F81: 2021-03-23 | G81: 1
A82: 250 | B82: 120 | C82: Vertrieb_1 | D82: Hamburg | E82: 3 | F82: 2021-03-24 | G82: 1
A83: 100 | B83: 100 | C83: Vertrieb_2 | D83: München | E83: 3 | F83: 2021-03-25 | G83: 1
A84: 200 | B84: 110 | C84: Vertrieb_3 | D84: Köln | E84: 3 | F84: 2021-03-26 | G84: 1
A85: 100 | B85: 100 | C85: Vertrieb_4 | D85: Frankfurt am Main | E85: 3 | F85: 2021-03-27 | G85: 1
A86: 200 | B86: 110 | C86: Vertrieb_1 | D86: Hamburg | E86: 3 | F86: 2021-03-28 | G86: 1
A87: 250 | B87: 120 | C87: Vertrieb_2 | D87: München | E87: 3 | F87: 2021-03-29 | G87: 1
A88: 100 | B88: 100 | C88: Vertrieb_3 | D88: Köln | E88: 3 | F88: 2021-03-30 | G88: 1
A89: 200 | B89: 110 | C89: Vertrieb_4 | D89: Frankfurt am Main | E89: 3 | F89: 2021-03-31 | G89: 1
A90: 250 | B90: 120 | C90: Vertrieb_1 | D90: Hamburg | E90: 4 | F90: 2021-04-01 | G90: 1
A91: 100 | B91: 100 | C91: Vertrieb_2 | D91: München | E91: 4 | F91: 2021-04-02 | G91: 1
A92: 200 | B92: 110 | C92: Vertrieb_3 | D92: Köln | E92: 4 | F92: 2021-04-03 | G92: 1
A93: 250 | B93: 120 | C93: Vertrieb_4 | D93: Frankfurt am Main | E93: 4 | F93: 2021-04-04 | G93: 1
A94: 100 | B94: 100 | C94: Vertrieb_1 | D94: Hamburg | E94: 4 | F94: 2021-04-05 | G94: 1
A95: 200 | B95: 110 | C95: Vertrieb_2 | D95: München | E95: 4 | F95: 2021-04-06 | G95: 1
A96: 250 | B96: 120 | C96: Vertrieb_3 | D96: Köln | E96: 4 | F96: 2021-04-07 | G96: 1
A97: 100 | B97: 100 | C97: Vertrieb_4 | D97: Frankfurt am Main | E97: 4 | F97: 2021-04-08 | G97: 1
A98: 200 | B98: 110 | C98: Vertrieb_1 | D98: Hamburg | E98: 4 | F98: 2021-04-09 | G98: 1
A99: 250 | B99: 120 | C99: Vertrieb_2 | D99: München | E99: 4 | F99: 2021-04-10 | G99: 1
A100: 100 | B100: 100 | C100: Vertrieb_3 | D100: Köln | E100: 4 | F100: 2021-04-11 | G100: 1
A101: 200 | B101: 110 | C101: Vertrieb_4 | D101: Frankfurt am Main | E101: 4 | F101: 2021-04-12 | G101: 1
A102: 250 | B102: 120 | C102: Vertrieb_1 | D102: Hamburg | E102: 4 | F102: 2021-04-13 | G102: 1
A103: 100 | B103: 100 | C103: Vertrieb_2 | D103: München | E103: 4 | F103: 2021-04-14 | G103: 1
A104: 200 | B104: 110 | C104: Vertrieb_3 | D104: Köln | E104: 4 | F104: 2021-04-15 | G104: 1
A105: 250 | B105: 120 | C105: Vertrieb_4 | D105: Frankfurt am Main | E105: 4 | F105: 2021-04-16 | G105: 1
A106: 100 | B106: 100 | C106: Vertrieb_1 | D106: Hamburg | E106: 4 | F106: 2021-04-17 | G106: 1
A107: 200 | B107: 110 | C107: Vertrieb_2 | D107: München | E107: 4 | F107: 2021-04-18 | G107: 1
A108: 250 | B108: 120 | C108: Vertrieb_3 | D108: Köln | E108: 4 | F108: 2021-04-19 | G108: 1
A109: 100 | B109: 100 | C109: Vertrieb_4 | D109: Frankfurt am Main | E109: 4 | F109: 2021-04-20 | G109: 1
A110: 200 | B110: 110 | C110: Vertrieb_1 | D110: Hamburg | E110: 4 | F110: 2021-04-21 | G110: 1
A111: 250 | B111: 120 | C111: Vertrieb_2 | D111: München | E111: 4 | F111: 2021-04-22 | G111: 1
A112: 100 | B112: 100 | C112: Vertrieb_3 | D112: Köln | E112: 4 | F112: 2021-04-23 | G112: 1
A113: 200 | B113: 110 | C113: Vertrieb_4 | D113: Frankfurt am Main | E113: 4 | F113: 2021-04-24 | G113: 1
A114: 250 | B114: 120 | C114: Vertrieb_1 | D114: Hamburg | E114: 4 | F114: 2021-04-25 | G114: 1
A115: 100 | B115: 100 | C115: Vertrieb_2 | D115: München | E115: 4 | F115: 2021-04-26 | G115: 1
A116: 100 | B116: 100 | C116: Vertrieb_3 | D116: Köln | E116: 4 | F116: 2021-04-27 | G116: 1
A117: 200 | B117: 110 | C117: Vertrieb_4 | D117: Frankfurt am Main | E117: 4 | F117: 2021-04-28 | G117: 1
A118: 250 | B118: 120 | C118: Vertrieb_1 | D118: Hamburg | E118: 4 | F118: 2021-04-29 | G118: 1
A119: 100 | B119: 100 | C119: Vertrieb_2 | D119: München | E119: 4 | F119: 2021-04-30 | G119: 1
A120: 200 | B120: 110 | C120: Vertrieb_3 | D120: Köln | E120: 5 | F120: 2021-05-01 | G120: 1
A121: 250 | B121: 120 | C121: Vertrieb_4 | D121: Frankfurt am Main | E121: 5 | F121: 2021-05-02 | G121: 1
A122: 100 | B122: 100 | C122: Vertrieb_1 | D122: Hamburg | E122: 5 | F122: 2021-05-03 | G122: 1
A123: 200 | B123: 110 | C123: Vertrieb_2 | D123: München | E123: 5 | F123: 2021-05-04 | G123: 1
A124: 250 | B124: 120 | C124: Vertrieb_3 | D124: Köln | E124: 5 | F124: 2021-05-05 | G124: 1
A125: 100 | B125: 100 | C125: Vertrieb_4 | D125: Frankfurt am Main | E125: 5 | F125: 2021-05-06 | G125: 1
A126: 200 | B126: 110 | C126: Vertrieb_1 | D126: Hamburg | E126: 5 | F126: 2021-05-07 | G126: 1
A127: 250 | B127: 120 | C127: Vertrieb_2 | D127: München | E127: 5 | F127: 2021-05-08 | G127: 1
A128: 100 | B128: 100 | C128: Vertrieb_3 | D128: Köln | E128: 5 | F128: 2021-05-09 | G128: 1
A129: 200 | B129: 110 | C129: Vertrieb_4 | D129: Frankfurt am Main | E129: 5 | F129: 2021-05-10 | G129: 1
A130: 250 | B130: 120 | C130: Vertrieb_1 | D130: Hamburg | E130: 5 | F130: 2021-05-11 | G130: 1
A131: =VLOOKUP(B131,M:N,2,FALSE) -> 100 | B131: 100 | C131: Vertrieb_2 | D131: =VLOOKUP(C131,J:K,2,FALSE) -> München | E131: =MONTH(F131) -> 5 | F131: 2021-05-12 | G131: 1
A132: 200 | B132: 110 | C132: Vertrieb_3 | D132: Köln | E132: 5 | F132: =F131+1 -> 2021-05-13 | G132: 1
A133: 250 | B133: 120 | C133: Vertrieb_4 | D133: Frankfurt am Main | E133: 5 | F133: 2021-05-14 | G133: 1
A134: 100 | B134: 100 | C134: Vertrieb_1 | D134: Hamburg | E134: 5 | F134: 2021-05-15 | G134: 1
A135: 200 | B135: 110 | C135: Vertrieb_2 | D135: München | E135: 5 | F135: 2021-05-16 | G135: 1
A136: 250 | B136: 120 | C136: Vertrieb_3 | D136: Köln | E136: 5 | F136: 2021-05-17 | G136: 1
A137: 100 | B137: 100 | C137: Vertrieb_4 | D137: Frankfurt am Main | E137: 5 | F137: 2021-05-18 | G137: 1
A138: 200 | B138: 110 | C138: Vertrieb_1 | D138: Hamburg | E138: 5 | F138: 2021-05-19 | G138: 1
A139: 250 | B139: 120 | C139: Vertrieb_2 | D139: München | E139: 5 | F139: 2021-05-20 | G139: 1
A140: 100 | B140: 100 | C140: Vertrieb_3 | D140: Köln | E140: 5 | F140: 2021-05-21 | G140: 1
A141: 200 | B141: 110 | C141: Vertrieb_4 | D141: Frankfurt am Main | E141: 5 | F141: 2021-05-22 | G141: 1
A142: 250 | B142: 120 | C142: Vertrieb_1 | D142: Hamburg | E142: 5 | F142: 2021-05-23 | G142: 1
A143: 100 | B143: 100 | C143: Vertrieb_2 | D143: München | E143: 5 | F143: 2021-05-24 | G143: 1
A144: 200 | B144: 110 | C144: Vertrieb_3 | D144: Köln | E144: 5 | F144: 2021-05-25 | G144: 1
A145: 250 | B145: 120 | C145: Vertrieb_4 | D145: Frankfurt am Main | E145: 5 | F145: 2021-05-26 | G145: 1
A146: 100 | B146: 100 | C146: Vertrieb_1 | D146: Hamburg | E146: 5 | F146: 2021-05-27 | G146: 1
A147: 250 | B147: 120 | C147: Vertrieb_2 | D147: München | E147: 5 | F147: 2021-05-28 | G147: 1
A148: 100 | B148: 100 | C148: Vertrieb_3 | D148: Köln | E148: 5 | F148: 2021-05-29 | G148: 1
A149: 200 | B149: 110 | C149: Vertrieb_4 | D149: Frankfurt am Main | E149: 5 | F149: 2021-05-30 | G149: 1
A150: 250 | B150: 120 | C150: Vertrieb_1 | D150: Hamburg | E150: 5 | F150: 2021-05-31 | G150: 1
A151: 100 | B151: 100 | C151: Vertrieb_2 | D151: München | E151: 6 | F151: 2021-06-01 | G151: 1
A152: 200 | B152: 110 | C152: Vertrieb_3 | D152: Köln | E152: 6 | F152: 2021-06-02 | G152: 1
A153: 250 | B153: 120 | C153: Vertrieb_4 | D153: Frankfurt am Main | E153: 6 | F153: 2021-06-03 | G153: 1
A154: 100 | B154: 100 | C154: Vertrieb_1 | D154: Hamburg | E154: 6 | F154: 2021-06-04 | G154: 1
A155: 200 | B155: 110 | C155: Vertrieb_2 | D155: München | E155: 6 | F155: 2021-06-05 | G155: 1
A156: 250 | B156: 120 | C156: Vertrieb_3 | D156: Köln | E156: 6 | F156: 2021-06-06 | G156: 1
A157: 100 | B157: 100 | C157: Vertrieb_4 | D157: Frankfurt am Main | E157: 6 | F157: 2021-06-07 | G157: 1
A158: 200 | B158: 110 | C158: Vertrieb_1 | D158: Hamburg | E158: 6 | F158: 2021-06-08 | G158: 1
A159: 250 | B159: 120 | C159: Vertrieb_2 | D159: München | E159: 6 | F159: 2021-06-09 | G159: 1
A160: 100 | B160: 100 | C160: Vertrieb_3 | D160: Köln | E160: 6 | F160: 2021-06-10 | G160: 1
A161: 200 | B161: 110 | C161: Vertrieb_4 | D161: Frankfurt am Main | E161: 6 | F161: 2021-06-11 | G161: 1
A162: 250 | B162: 120 | C162: Vertrieb_1 | D162: Hamburg | E162: 6 | F162: 2021-06-12 | G162: 1
A163: 100 | B163: 100 | C163: Vertrieb_2 | D163: München | E163: 6 | F163: 2021-06-13 | G163: 1
A164: 200 | B164: 110 | C164: Vertrieb_3 | D164: Köln | E164: 6 | F164: 2021-06-14 | G164: 1
A165: 250 | B165: 120 | C165: Vertrieb_4 | D165: Frankfurt am Main | E165: 6 | F165: 2021-06-15 | G165: 1
A166: 100 | B166: 100 | C166: Vertrieb_1 | D166: Hamburg | E166: 6 | F166: 2021-06-16 | G166: 1
A167: 200 | B167: 110 | C167: Vertrieb_2 | D167: München | E167: 6 | F167: 2021-06-17 | G167: 1
A168: 250 | B168: 120 | C168: Vertrieb_3 | D168: Köln | E168: 6 | F168: 2021-06-18 | G168: 1
A169: 100 | B169: 100 | C169: Vertrieb_4 | D169: Frankfurt am Main | E169: 6 | F169: 2021-06-19 | G169: 1
A170: 200 | B170: 110 | C170: Vertrieb_1 | D170: Hamburg | E170: 6 | F170: 2021-06-20 | G170: 1
A171: 250 | B171: 120 | C171: Vertrieb_2 | D171: München | E171: 6 | F171: 2021-06-21 | G171: 1
A172: 100 | B172: 100 | C172: Vertrieb_3 | D172: Köln | E172: 6 | F172: 2021-06-22 | G172: 1
A173: 200 | B173: 110 | C173: Vertrieb_4 | D173: Frankfurt am Main | E173: 6 | F173: 2021-06-23 | G173: 1
A174: 250 | B174: 120 | C174: Vertrieb_1 | D174: Hamburg | E174: 6 | F174: 2021-06-24 | G174: 1
A175: 100 | B175: 100 | C175: Vertrieb_2 | D175: München | E175: 6 | F175: 2021-06-25 | G175: 1
A176: 200 | B176: 110 | C176: Vertrieb_3 | D176: Köln | E176: 6 | F176: 2021-06-26 | G176: 1
A177: 250 | B177: 120 | C177: Vertrieb_4 | D177: Frankfurt am Main | E177: 6 | F177: 2021-06-27 | G177: 1
A178: 200 | B178: 110 | C178: Vertrieb_1 | D178: Hamburg | E178: 6 | F178: 2021-06-28 | G178: 1
A179: 250 | B179: 120 | C179: Vertrieb_2 | D179: München | E179: 6 | F179: 2021-06-29 | G179: 1
A180: 100 | B180: 100 | C180: Vertrieb_3 | D180: Köln | E180: 6 | F180: 2021-06-30 | G180: 1
A181: 200 | B181: 110 | C181: Vertrieb_4 | D181: Frankfurt am Main | E181: 7 | F181: 2021-07-01 | G181: 1
A182: 250 | B182: 120 | C182: Vertrieb_1 | D182: Hamburg | E182: 7 | F182: 2021-07-02 | G182: 1
A183: 100 | B183: 100 | C183: Vertrieb_2 | D183: München | E183: 7 | F183: 2021-07-03 | G183: 1
A184: 200 | B184: 110 | C184: Vertrieb_3 | D184: Köln | E184: 7 | F184: 2021-07-04 | G184: 1
A185: 250 | B185: 120 | C185: Vertrieb_4 | D185: Frankfurt am Main | E185: 7 | F185: 2021-07-05 | G185: 1
A186: 100 | B186: 100 | C186: Vertrieb_1 | D186: Hamburg | E186: 7 | F186: 2021-07-06 | G186: 1
A187: 200 | B187: 110 | C187: Vertrieb_2 | D187: München | E187: 7 | F187: 2021-07-07 | G187: 1
A188: 250 | B188: 120 | C188: Vertrieb_3 | D188: Köln | E188: 7 | F188: 2021-07-08 | G188: 1
A189: 100 | B189: 100 | C189: Vertrieb_4 | D189: Frankfurt am Main | E189: 7 | F189: 2021-07-09 | G189: 1
A190: 200 | B190: 110 | C190: Vertrieb_1 | D190: Hamburg | E190: 7 | F190: 2021-07-10 | G190: 1
A191: 250 | B191: 120 | C191: Vertrieb_2 | D191: München | E191: 7 | F191: 2021-07-11 | G191: 1
A192: 100 | B192: 100 | C192: Vertrieb_3 | D192: Köln | E192: 7 | F192: 2021-07-12 | G192: 1
A193: 200 | B193: 110 | C193: Vertrieb_4 | D193: Frankfurt am Main | E193: 7 | F193: 2021-07-13 | G193: 1
A194: 250 | B194: 120 | C194: Vertrieb_1 | D194: Hamburg | E194: 7 | F194: 2021-07-14 | G194: 1
A195: =VLOOKUP(B195,M:N,2,FALSE) -> 100 | B195: 100 | C195: Vertrieb_2 | D195: =VLOOKUP(C195,J:K,2,FALSE) -> München | E195: =MONTH(F195) -> 7 | F195: 2021-07-15 | G195: 1
A196: 200 | B196: 110 | C196: Vertrieb_3 | D196: Köln | E196: 7 | F196: =F195+1 -> 2021-07-16 | G196: 1
A197: 250 | B197: 120 | C197: Vertrieb_4 | D197: Frankfurt am Main | E197: 7 | F197: 2021-07-17 | G197: 1
A198: 100 | B198: 100 | C198: Vertrieb_1 | D198: Hamburg | E198: 7 | F198: 2021-07-18 | G198: 1
A199: 200 | B199: 110 | C199: Vertrieb_2 | D199: München | E199: 7 | F199: 2021-07-19 | G199: 1
A200: 250 | B200: 120 | C200: Vertrieb_3 | D200: Köln | E200: 7 | F200: 2021-07-20 | G200: 1
... 164 more rows

Sheet Jahreslisten Grundang. Params (hidden)
A1: WU-Tools Version | B1: V2.38
A2: Beginnzeile der Liste | B2: 2
A3: Kopfzeile | B3: 1
A4: Rechnungsdatumspalte | B4: F

Sheet Jahreslisten erstellen Params (hidden)
A1: WU-Tools Version | B1: V2.38
A4: Hauptkriteriumspalte | B4: B
A6: Rechnungsbetragspalte | B6: A
A7: Anzahl Jahre | B7: 1
A8: Jahre für die Listen erstellt werden | B8: 2021

Sheet Matrix Auswert. Grund. Params (hidden)
A1: WU-Tools Version | B1: V2.38
A2: Kopfzeile | B2: 1
A3: Als Matrix-Tabelle in Blatt | B3: FALSE
A4: Tabelle mit Formeln | B4: TRUE
A5: Tabelle mit Werten | B5: FALSE
A6: Als Pivot-Tabelle in Blatt | B6: TRUE
A7: Letzte Zeile nicht berücksichtigen | B7: FALSE

Sheet Matrix-Auswertung Params (hidden)
A1: WU-Tools Version | B1: V2.38
A4: Matrix-Zeilen | B4: Vertrieb
A5: Matrix-Spalten | B5: Produkt
A6: Matrix-Werte | B6: Umsatz

Sheet Grundlagen
A1: lfd. Nr. | B1: Anzahl | C1: Umsatz | D1: Produkt | E1: Vertrieb | F1: Ort | G1: Monat | H1: Datum | I1: Anzahl
A2: 1 | B2: 1 | C2: 100 | D2: 100 | E2: Vertrieb_1 | F2: Hamburg | G2: 1 | H2: 2021-01-03 | I2: 1
A3: =A2+1 -> 2 | B3: 1 | C3: 200 | D3: 110 | E3: Vertrieb_2 | F3: München | G3: 1 | H3: 2021-01-04 | I3: 1
A4: =A3+1 -> 3 | B4: 1 | C4: 250 | D4: 120 | E4: Vertrieb_3 | F4: Köln | G4: 1 | H4: 2021-01-05 | I4: 1
A5: 4 | B5: 1 | C5: 100 | D5: 100 | E5: Vertrieb_4 | F5: Frankfurt am Main | G5: 1 | H5: 2021-01-06 | I5: 1
A6: 5 | B6: 1 | C6: 200 | D6: 110 | E6: Vertrieb_1 | F6: Hamburg | G6: 1 | H6: 2021-01-07 | I6: 1
A7: 6 | B7: 1 | C7: 200 | D7: 110 | E7: Vertrieb_2 | F7: München | G7: 1 | H7: 2021-01-08 | I7: 1
A8: 7 | B8: 1 | C8: 250 | D8: 120 | E8: Vertrieb_3 | F8: Köln | G8: 1 | H8: 2021-01-09 | I8: 1
A9: 8 | B9: 1 | C9: 100 | D9: 100 | E9: Vertrieb_4 | F9: Frankfurt am Main | G9: 1 | H9: 2021-01-10 | I9: 1
A10: 9 | B10: 1 | C10: 200 | D10: 110 | E10: Vertrieb_1 | F10: Hamburg | G10: 1 | H10: 2021-01-11 | I10: 1
A11: 10 | B11: 1 | C11: 250 | D11: 120 | E11: Vertrieb_2 | F11: München | G11: 1 | H11: 2021-01-12 | I11: 1
A12: 11 | B12: 1 | C12: 250 | D12: 120 | E12: Vertrieb_3 | F12: Köln | G12: 1 | H12: 2021-01-13 | I12: 1
A13: 12 | B13: 1 | C13: 100 | D13: 100 | E13: Vertrieb_4 | F13: Frankfurt am Main | G13: 1 | H13: 2021-01-14 | I13: 1
A14: 13 | B14: 1 | C14: 200 | D14: 110 | E14: Vertrieb_1 | F14: Hamburg | G14: 1 | H14: 2021-01-15 | I14: 1
A15: 14 | B15: 1 | C15: 250 | D15: 120 | E15: Vertrieb_2 | F15: München | G15: 1 | H15: 2021-01-16 | I15: 1
A16: 15 | B16: 1 | C16: 100 | D16: 100 | E16: Vertrieb_3 | F16: Köln | G16: 1 | H16: 2021-01-17 | I16: 1
A17: 16 | B17: 1 | C17: 200 | D17: 110 | E17: Vertrieb_4 | F17: Frankfurt am Main | G17: 1 | H17: 2021-01-18 | I17: 1
A18: 17 | B18: 1 | C18: 250 | D18: 120 | E18: Vertrieb_1 | F18: Hamburg | G18: 1 | H18: 2021-01-19 | I18: 1
A19: 18 | B19: 1 | C19: 100 | D19: 100 | E19: Vertrieb_2 | F19: München | G19: 1 | H19: 2021-01-20 | I19: 1
A20: 19 | B20: 1 | C20: 200 | D20: 110 | E20: Vertrieb_3 | F20: Köln | G20: 1 | H20: 2021-01-21 | I20: 1
A21: 20 | B21: 1 | C21: 250 | D21: 120 | E21: Vertrieb_4 | F21: Frankfurt am Main | G21: 1 | H21: 2021-01-22 | I21: 1
A22: 21 | B22: 1 | C22: 100 | D22: 100 | E22: Vertrieb_1 | F22: Hamburg | G22: 1 | H22: 2021-01-23 | I22: 1
A23: 22 | B23: 1 | C23: 250 | D23: 120 | E23: Vertrieb_2 | F23: München | G23: 1 | H23: 2021-01-24 | I23: 1
A24: 23 | B24: 1 | C24: 100 | D24: 100 | E24: Vertrieb_3 | F24: Köln | G24: 1 | H24: 2021-01-25 | I24: 1
A25: 24 | B25: 1 | C25: 200 | D25: 110 | E25: Vertrieb_4 | F25: Frankfurt am Main | G25: 1 | H25: 2021-01-26 | I25: 1
A26: 25 | B26: 1 | C26: 250 | D26: 120 | E26: Vertrieb_1 | F26: Hamburg | G26: 1 | H26: 2021-01-27 | I26: 1
A27: 26 | B27: 1 | C27: 100 | D27: 100 | E27: Vertrieb_2 | F27: München | G27: 1 | H27: 2021-01-28 | I27: 1
A28: 27 | B28: 1 | C28: 200 | D28: 110 | E28: Vertrieb_3 | F28: Köln | G28: 1 | H28: 2021-01-29 | I28: 1
A29: 28 | B29: 1 | C29: 250 | D29: 120 | E29: Vertrieb_4 | F29: Frankfurt am Main | G29: 1 | H29: 2021-01-30 | I29: 1
A30: 29 | B30: 1 | C30: 100 | D30: 100 | E30: Vertrieb_1 | F30: Hamburg | G30: 1 | H30: 2021-01-31 | I30: 1
A31: 30 | B31: 1 | C31: 200 | D31: 110 | E31: Vertrieb_2 | F31: München | G31: 2 | H31: 2021-02-01 | I31: 1
A32: 31 | B32: 1 | C32: 250 | D32: 120 | E32: Vertrieb_3 | F32: Köln | G32: 2 | H32: 2021-02-02 | I32: 1
A33: 32 | B33: 1 | C33: 100 | D33: 100 | E33: Vertrieb_4 | F33: Frankfurt am Main | G33: 2 | H33: 2021-02-03 | I33: 1
A34: 33 | B34: 1 | C34: 200 | D34: 110 | E34: Vertrieb_1 | F34: Hamburg | G34: 2 | H34: 2021-02-04 | I34: 1
A35: 34 | B35: 1 | C35: 250 | D35: 120 | E35: Vertrieb_2 | F35: München | G35: 2 | H35: 2021-02-05 | I35: 1
A36: 35 | B36: 1 | C36: 100 | D36: 100 | E36: Vertrieb_3 | F36: Köln | G36: 2 | H36: 2021-02-06 | I36: 1
A37: 36 | B37: 1 | C37: 200 | D37: 110 | E37: Vertrieb_4 | F37: Frankfurt am Main | G37: 2 | H37: 2021-02-07 | I37: 1
A38: 37 | B38: 1 | C38: 250 | D38: 120 | E38: Vertrieb_1 | F38: Hamburg | G38: 2 | H38: 2021-02-08 | I38: 1
A39: 38 | B39: 1 | C39: 100 | D39: 100 | E39: Vertrieb_2 | F39: München | G39: 2 | H39: 2021-02-09 | I39: 1
A40: 39 | B40: 1 | C40: 200 | D40: 110 | E40: Vertrieb_3 | F40: Köln | G40: 2 | H40: 2021-02-10 | I40: 1
A41: 40 | B41: 1 | C41: 250 | D41: 120 | E41: Vertrieb_4 | F41: Frankfurt am Main | G41: 2 | H41: 2021-02-11 | I41: 1
A42: 41 | B42: 1 | C42: 100 | D42: 100 | E42: Vertrieb_1 | F42: Hamburg | G42: 2 | H42: 2021-02-12 | I42: 1
A43: 42 | B43: 1 | C43: 200 | D43: 110 | E43: Vertrieb_2 | F43: München | G43: 2 | H43: 2021-02-13 | I43: 1
A44: 43 | B44: 1 | C44: 250 | D44: 120 | E44: Vertrieb_3 | F44: Köln | G44: 2 | H44: 2021-02-14 | I44: 1
A45: 44 | B45: 1 | C45: 100 | D45: 100 | E45: Vertrieb_4 | F45: Frankfurt am Main | G45: 2 | H45: 2021-02-15 | I45: 1
A46: 45 | B46: 1 | C46: 200 | D46: 110 | E46: Vertrieb_1 | F46: Hamburg | G46: 2 | H46: 2021-02-16 | I46: 1
A47: 46 | B47: 1 | C47: 250 | D47: 120 | E47: Vertrieb_2 | F47: München | G47: 2 | H47: 2021-02-17 | I47: 1
A48: 47 | B48: 1 | C48: 100 | D48: 100 | E48: Vertrieb_3 | F48: Köln | G48: 2 | H48: 2021-02-18 | I48: 1
A49: 48 | B49: 1 | C49: 200 | D49: 110 | E49: Vertrieb_4 | F49: Frankfurt am Main | G49: 2 | H49: 2021-02-19 | I49: 1
A50: 49 | B50: 1 | C50: 250 | D50: 120 | E50: Vertrieb_1 | F50: Hamburg | G50: 2 | H50: 2021-02-20 | I50: 1
A51: 50 | B51: 1 | C51: 100 | D51: 100 | E51: Vertrieb_2 | F51: München | G51: 2 | H51: 2021-02-21 | I51: 1
A52: 51 | B52: 1 | C52: 200 | D52: 110 | E52: Vertrieb_3 | F52: Köln | G52: 2 | H52: 2021-02-22 | I52: 1
A53: 52 | B53: 1 | C53: 250 | D53: 120 | E53: Vertrieb_4 | F53: Frankfurt am Main | G53: 2 | H53: 2021-02-23 | I53: 1
A54: 53 | B54: 1 | C54: 200 | D54: 110 | E54: Vertrieb_1 | F54: Hamburg | G54: 2 | H54: 2021-02-24 | I54: 1
A55: 54 | B55: 1 | C55: 250 | D55: 120 | E55: Vertrieb_2 | F55: München | G55: 2 | H55: 2021-02-25 | I55: 1
A56: 55 | B56: 1 | C56: 100 | D56: 100 | E56: Vertrieb_3 | F56: Köln | G56: 2 | H56: 2021-02-26 | I56: 1
A57: 56 | B57: 1 | C57: 200 | D57: 110 | E57: Vertrieb_4 | F57: Frankfurt am Main | G57: 2 | H57: 2021-02-27 | I57: 1
A58: 57 | B58: 1 | C58: 250 | D58: 120 | E58: Vertrieb_1 | F58: Hamburg | G58: 2 | H58: 2021-02-28 | I58: 1
A59: 58 | B59: 1 | C59: 100 | D59: 100 | E59: Vertrieb_2 | F59: München | G59: 3 | H59: 2021-03-01 | I59: 1
A60: 59 | B60: 1 | C60: 200 | D60: 110 | E60: Vertrieb_3 | F60: Köln | G60: 3 | H60: 2021-03-02 | I60: 1
A61: 60 | B61: 1 | C61: 250 | D61: 120 | E61: Vertrieb_4 | F61: Frankfurt am Main | G61: 3 | H61: 2021-03-03 | I61: 1
A62: 61 | B62: 1 | C62: 100 | D62: 100 | E62: Vertrieb_1 | F62: Hamburg | G62: 3 | H62: 2021-03-04 | I62: 1
A63: 62 | B63: 1 | C63: 200 | D63: 110 | E63: Vertrieb_2 | F63: München | G63: 3 | H63: 2021-03-05 | I63: 1
A64: 63 | B64: 1 | C64: 250 | D64: 120 | E64: Vertrieb_3 | F64: Köln | G64: 3 | H64: 2021-03-06 | I64: 1
A65: 64 | B65: 1 | C65: 100 | D65: 100 | E65: Vertrieb_4 | F65: Frankfurt am Main | G65: 3 | H65: 2021-03-07 | I65: 1
A66: 65 | B66: 1 | C66: 200 | D66: 110 | E66: Vertrieb_1 | F66: Hamburg | G66: 3 | H66: 2021-03-08 | I66: 1
A67: 66 | B67: 1 | C67: 250 | D67: 120 | E67: Vertrieb_2 | F67: München | G67: 3 | H67: 2021-03-09 | I67: 1
A68: =A67+1 -> 67 | B68: 1 | C68: 100 | D68: 100 | E68: Vertrieb_3 | F68: Köln | G68: 3 | H68: 2021-03-10 | I68: 1
A69: 68 | B69: 1 | C69: 200 | D69: 110 | E69: Vertrieb_4 | F69: Frankfurt am Main | G69: 3 | H69: 2021-03-11 | I69: 1
A70: 69 | B70: 1 | C70: 250 | D70: 120 | E70: Vertrieb_1 | F70: Hamburg | G70: 3 | H70: 2021-03-12 | I70: 1
A71: 70 | B71: 1 | C71: 100 | D71: 100 | E71: Vertrieb_2 | F71: München | G71: 3 | H71: 2021-03-13 | I71: 1
A72: 71 | B72: 1 | C72: 200 | D72: 110 | E72: Vertrieb_3 | F72: Köln | G72: 3 | H72: 2021-03-14 | I72: 1
A73: 72 | B73: 1 | C73: 250 | D73: 120 | E73: Vertrieb_4 | F73: Frankfurt am Main | G73: 3 | H73: 2021-03-15 | I73: 1
A74: 73 | B74: 1 | C74: 100 | D74: 100 | E74: Vertrieb_1 | F74: Hamburg | G74: 3 | H74: 2021-03-16 | I74: 1
A75: 74 | B75: 1 | C75: 200 | D75: 110 | E75: Vertrieb_2 | F75: München | G75: 3 | H75: 2021-03-17 | I75: 1
A76: 75 | B76: 1 | C76: 250 | D76: 120 | E76: Vertrieb_3 | F76: Köln | G76: 3 | H76: 2021-03-18 | I76: 1
A77: 76 | B77: 1 | C77: 100 | D77: 100 | E77: Vertrieb_4 | F77: Frankfurt am Main | G77: 3 | H77: 2021-03-19 | I77: 1
A78: 77 | B78: 1 | C78: 200 | D78: 110 | E78: Vertrieb_1 | F78: Hamburg | G78: 3 | H78: 2021-03-20 | I78: 1
A79: 78 | B79: 1 | C79: 250 | D79: 120 | E79: Vertrieb_2 | F79: München | G79: 3 | H79: 2021-03-21 | I79: 1
A80: 79 | B80: 1 | C80: 100 | D80: 100 | E80: Vertrieb_3 | F80: Köln | G80: 3 | H80: 2021-03-22 | I80: 1
A81: 80 | B81: 1 | C81: 200 | D81: 110 | E81: Vertrieb_4 | F81: Frankfurt am Main | G81: 3 | H81: 2021-03-23 | I81: 1
A82: 81 | B82: 1 | C82: 250 | D82: 120 | E82: Vertrieb_1 | F82: Hamburg | G82: 3 | H82: 2021-03-24 | I82: 1
A83: 82 | B83: 1 | C83: 100 | D83: 100 | E83: Vertrieb_2 | F83: München | G83: 3 | H83: 2021-03-25 | I83: 1
A84: 83 | B84: 1 | C84: 200 | D84: 110 | E84: Vertrieb_3 | F84: Köln | G84: 3 | H84: 2021-03-26 | I84: 1
A85: 84 | B85: 1 | C85: 100 | D85: 100 | E85: Vertrieb_4 | F85: Frankfurt am Main | G85: 3 | H85: 2021-03-27 | I85: 1
A86: 85 | B86: 1 | C86: 200 | D86: 110 | E86: Vertrieb_1 | F86: Hamburg | G86: 3 | H86: 2021-03-28 | I86: 1
A87: 86 | B87: 1 | C87: 250 | D87: 120 | E87: Vertrieb_2 | F87: München | G87: 3 | H87: 2021-03-29 | I87: 1
A88: 87 | B88: 1 | C88: 100 | D88: 100 | E88: Vertrieb_3 | F88: Köln | G88: 3 | H88: 2021-03-30 | I88: 1
A89: 88 | B89: 1 | C89: 200 | D89: 110 | E89: Vertrieb_4 | F89: Frankfurt am Main | G89: 3 | H89: 2021-03-31 | I89: 1
A90: 89 | B90: 1 | C90: 250 | D90: 120 | E90: Vertrieb_1 | F90: Hamburg | G90: 4 | H90: 2021-04-01 | I90: 1
A91: 90 | B91: 1 | C91: 100 | D91: 100 | E91: Vertrieb_2 | F91: München | G91: 4 | H91: 2021-04-02 | I91: 1
A92: 91 | B92: 1 | C92: 200 | D92: 110 | E92: Vertrieb_3 | F92: Köln | G92: 4 | H92: 2021-04-03 | I92: 1
A93: 92 | B93: 1 | C93: 250 | D93: 120 | E93: Vertrieb_4 | F93: Frankfurt am Main | G93: 4 | H93: 2021-04-04 | I93: 1
A94: 93 | B94: 1 | C94: 100 | D94: 100 | E94: Vertrieb_1 | F94: Hamburg | G94: 4 | H94: 2021-04-05 | I94: 1
A95: 94 | B95: 1 | C95: 200 | D95: 110 | E95: Vertrieb_2 | F95: München | G95: 4 | H95: 2021-04-06 | I95: 1
A96: 95 | B96: 1 | C96: 250 | D96: 120 | E96: Vertrieb_3 | F96: Köln | G96: 4 | H96: 2021-04-07 | I96: 1
A97: 96 | B97: 1 | C97: 100 | D97: 100 | E97: Vertrieb_4 | F97: Frankfurt am Main | G97: 4 | H97: 2021-04-08 | I97: 1
A98: 97 | B98: 1 | C98: 200 | D98: 110 | E98: Vertrieb_1 | F98: Hamburg | G98: 4 | H98: 2021-04-09 | I98: 1
A99: 98 | B99: 1 | C99: 250 | D99: 120 | E99: Vertrieb_2 | F99: München | G99: 4 | H99: 2021-04-10 | I99: 1
A100: 99 | B100: 1 | C100: 100 | D100: 100 | E100: Vertrieb_3 | F100: Köln | G100: 4 | H100: 2021-04-11 | I100: 1
A101: 100 | B101: 1 | C101: 200 | D101: 110 | E101: Vertrieb_4 | F101: Frankfurt am Main | G101: 4 | H101: 2021-04-12 | I101: 1
A102: 101 | B102: 1 | C102: 250 | D102: 120 | E102: Vertrieb_1 | F102: Hamburg | G102: 4 | H102: 2021-04-13 | I102: 1
A103: 102 | B103: 1 | C103: 100 | D103: 100 | E103: Vertrieb_2 | F103: München | G103: 4 | H103: 2021-04-14 | I103: 1
A104: 103 | B104: 1 | C104: 200 | D104: 110 | E104: Vertrieb_3 | F104: Köln | G104: 4 | H104: 2021-04-15 | I104: 1
A105: 104 | B105: 1 | C105: 250 | D105: 120 | E105: Vertrieb_4 | F105: Frankfurt am Main | G105: 4 | H105: 2021-04-16 | I105: 1
A106: 105 | B106: 1 | C106: 100 | D106: 100 | E106: Vertrieb_1 | F106: Hamburg | G106: 4 | H106: 2021-04-17 | I106: 1
A107: 106 | B107: 1 | C107: 200 | D107: 110 | E107: Vertrieb_2 | F107: München | G107: 4 | H107: 2021-04-18 | I107: 1
A108: 107 | B108: 1 | C108: 250 | D108: 120 | E108: Vertrieb_3 | F108: Köln | G108: 4 | H108: 2021-04-19 | I108: 1
A109: 108 | B109: 1 | C109: 100 | D109: 100 | E109: Vertrieb_4 | F109: Frankfurt am Main | G109: 4 | H109: 2021-04-20 | I109: 1
A110: 109 | B110: 1 | C110: 200 | D110: 110 | E110: Vertrieb_1 | F110: Hamburg | G110: 4 | H110: 2021-04-21 | I110: 1
A111: 110 | B111: 1 | C111: 250 | D111: 120 | E111: Vertrieb_2 | F111: München | G111: 4 | H111: 2021-04-22 | I111: 1
A112: 111 | B112: 1 | C112: 100 | D112: 100 | E112: Vertrieb_3 | F112: Köln | G112: 4 | H112: 2021-04-23 | I112: 1
A113: 112 | B113: 1 | C113: 200 | D113: 110 | E113: Vertrieb_4 | F113: Frankfurt am Main | G113: 4 | H113: 2021-04-24 | I113: 1
A114: 113 | B114: 1 | C114: 250 | D114: 120 | E114: Vertrieb_1 | F114: Hamburg | G114: 4 | H114: 2021-04-25 | I114: 1
A115: 114 | B115: 1 | C115: 100 | D115: 100 | E115: Vertrieb_2 | F115: München | G115: 4 | H115: 2021-04-26 | I115: 1
A116: 115 | B116: 1 | C116: 100 | D116: 100 | E116: Vertrieb_3 | F116: Köln | G116: 4 | H116: 2021-04-27 | I116: 1
A117: 116 | B117: 1 | C117: 200 | D117: 110 | E117: Vertrieb_4 | F117: Frankfurt am Main | G117: 4 | H117: 2021-04-28 | I117: 1
A118: 117 | B118: 1 | C118: 250 | D118: 120 | E118: Vertrieb_1 | F118: Hamburg | G118: 4 | H118: 2021-04-29 | I118: 1
A119: 118 | B119: 1 | C119: 100 | D119: 100 | E119: Vertrieb_2 | F119: München | G119: 4 | H119: 2021-04-30 | I119: 1
A120: 119 | B120: 1 | C120: 200 | D120: 110 | E120: Vertrieb_3 | F120: Köln | G120: 5 | H120: 2021-05-01 | I120: 1
A121: 120 | B121: 1 | C121: 250 | D121: 120 | E121: Vertrieb_4 | F121: Frankfurt am Main | G121: 5 | H121: 2021-05-02 | I121: 1
A122: 121 | B122: 1 | C122: 100 | D122: 100 | E122: Vertrieb_1 | F122: Hamburg | G122: 5 | H122: 2021-05-03 | I122: 1
A123: 122 | B123: 1 | C123: 200 | D123: 110 | E123: Vertrieb_2 | F123: München | G123: 5 | H123: 2021-05-04 | I123: 1
A124: 123 | B124: 1 | C124: 250 | D124: 120 | E124: Vertrieb_3 | F124: Köln | G124: 5 | H124: 2021-05-05 | I124: 1
A125: 124 | B125: 1 | C125: 100 | D125: 100 | E125: Vertrieb_4 | F125: Frankfurt am Main | G125: 5 | H125: 2021-05-06 | I125: 1
A126: 125 | B126: 1 | C126: 200 | D126: 110 | E126: Vertrieb_1 | F126: Hamburg | G126: 5 | H126: 2021-05-07 | I126: 1
A127: 126 | B127: 1 | C127: 250 | D127: 120 | E127: Vertrieb_2 | F127: München | G127: 5 | H127: 2021-05-08 | I127: 1
A128: 127 | B128: 1 | C128: 100 | D128: 100 | E128: Vertrieb_3 | F128: Köln | G128: 5 | H128: 2021-05-09 | I128: 1
A129: 128 | B129: 1 | C129: 200 | D129: 110 | E129: Vertrieb_4 | F129: Frankfurt am Main | G129: 5 | H129: 2021-05-10 | I129: 1
A130: 129 | B130: 1 | C130: 250 | D130: 120 | E130: Vertrieb_1 | F130: Hamburg | G130: 5 | H130: 2021-05-11 | I130: 1
A131: 130 | B131: 1 | C131: 100 | D131: 100 | E131: Vertrieb_2 | F131: München | G131: 5 | H131: 2021-05-12 | I131: 1
A132: =A131+1 -> 131 | B132: 1 | C132: 200 | D132: 110 | E132: Vertrieb_3 | F132: Köln | G132: 5 | H132: 2021-05-13 | I132: 1
A133: 132 | B133: 1 | C133: 250 | D133: 120 | E133: Vertrieb_4 | F133: Frankfurt am Main | G133: 5 | H133: 2021-05-14 | I133: 1
A134: 133 | B134: 1 | C134: 100 | D134: 100 | E134: Vertrieb_1 | F134: Hamburg | G134: 5 | H134: 2021-05-15 | I134: 1
A135: 134 | B135: 1 | C135: 200 | D135: 110 | E135: Vertrieb_2 | F135: München | G135: 5 | H135: 2021-05-16 | I135: 1
A136: 135 | B136: 1 | C136: 250 | D136: 120 | E136: Vertrieb_3 | F136: Köln | G136: 5 | H136: 2021-05-17 | I136: 1
A137: 136 | B137: 1 | C137: 100 | D137: 100 | E137: Vertrieb_4 | F137: Frankfurt am Main | G137: 5 | H137: 2021-05-18 | I137: 1
A138: 137 | B138: 1 | C138: 200 | D138: 110 | E138: Vertrieb_1 | F138: Hamburg | G138: 5 | H138: 2021-05-19 | I138: 1
A139: 138 | B139: 1 | C139: 250 | D139: 120 | E139: Vertrieb_2 | F139: München | G139: 5 | H139: 2021-05-20 | I139: 1
A140: 139 | B140: 1 | C140: 100 | D140: 100 | E140: Vertrieb_3 | F140: Köln | G140: 5 | H140: 2021-05-21 | I140: 1
A141: 140 | B141: 1 | C141: 200 | D141: 110 | E141: Vertrieb_4 | F141: Frankfurt am Main | G141: 5 | H141: 2021-05-22 | I141: 1
A142: 141 | B142: 1 | C142: 250 | D142: 120 | E142: Vertrieb_1 | F142: Hamburg | G142: 5 | H142: 2021-05-23 | I142: 1
A143: 142 | B143: 1 | C143: 100 | D143: 100 | E143: Vertrieb_2 | F143: München | G143: 5 | H143: 2021-05-24 | I143: 1
A144: 143 | B144: 1 | C144: 200 | D144: 110 | E144: Vertrieb_3 | F144: Köln | G144: 5 | H144: 2021-05-25 | I144: 1
A145: 144 | B145: 1 | C145: 250 | D145: 120 | E145: Vertrieb_4 | F145: Frankfurt am Main | G145: 5 | H145: 2021-05-26 | I145: 1
A146: 145 | B146: 1 | C146: 100 | D146: 100 | E146: Vertrieb_1 | F146: Hamburg | G146: 5 | H146: 2021-05-27 | I146: 1
A147: 146 | B147: 1 | C147: 250 | D147: 120 | E147: Vertrieb_2 | F147: München | G147: 5 | H147: 2021-05-28 | I147: 1
A148: 147 | B148: 1 | C148: 100 | D148: 100 | E148: Vertrieb_3 | F148: Köln | G148: 5 | H148: 2021-05-29 | I148: 1
A149: 148 | B149: 1 | C149: 200 | D149: 110 | E149: Vertrieb_4 | F149: Frankfurt am Main | G149: 5 | H149: 2021-05-30 | I149: 1
A150: 149 | B150: 1 | C150: 250 | D150: 120 | E150: Vertrieb_1 | F150: Hamburg | G150: 5 | H150: 2021-05-31 | I150: 1
A151: 150 | B151: 1 | C151: 100 | D151: 100 | E151: Vertrieb_2 | F151: München | G151: 6 | H151: 2021-06-01 | I151: 1
A152: 151 | B152: 1 | C152: 200 | D152: 110 | E152: Vertrieb_3 | F152: Köln | G152: 6 | H152: 2021-06-02 | I152: 1
A153: 152 | B153: 1 | C153: 250 | D153: 120 | E153: Vertrieb_4 | F153: Frankfurt am Main | G153: 6 | H153: 2021-06-03 | I153: 1
A154: 153 | B154: 1 | C154: 100 | D154: 100 | E154: Vertrieb_1 | F154: Hamburg | G154: 6 | H154: 2021-06-04 | I154: 1
A155: 154 | B155: 1 | C155: 200 | D155: 110 | E155: Vertrieb_2 | F155: München | G155: 6 | H155: 2021-06-05 | I155: 1
A156: 155 | B156: 1 | C156: 250 | D156: 120 | E156: Vertrieb_3 | F156: Köln | G156: 6 | H156: 2021-06-06 | I156: 1
A157: 156 | B157: 1 | C157: 100 | D157: 100 | E157: Vertrieb_4 | F157: Frankfurt am Main | G157: 6 | H157: 2021-06-07 | I157: 1
A158: 157 | B158: 1 | C158: 200 | D158: 110 | E158: Vertrieb_1 | F158: Hamburg | G158: 6 | H158: 2021-06-08 | I158: 1
A159: 158 | B159: 1 | C159: 250 | D159: 120 | E159: Vertrieb_2 | F159: München | G159: 6 | H159: 2021-06-09 | I159: 1
A160: 159 | B160: 1 | C160: 100 | D160: 100 | E160: Vertrieb_3 | F160: Köln | G160: 6 | H160: 2021-06-10 | I160: 1
A161: 160 | B161: 1 | C161: 200 | D161: 110 | E161: Vertrieb_4 | F161: Frankfurt am Main | G161: 6 | H161: 2021-06-11 | I161: 1
A162: 161 | B162: 1 | C162: 250 | D162: 120 | E162: Vertrieb_1 | F162: Hamburg | G162: 6 | H162: 2021-06-12 | I162: 1
A163: 162 | B163: 1 | C163: 100 | D163: 100 | E163: Vertrieb_2 | F163: München | G163: 6 | H163: 2021-06-13 | I163: 1
A164: 163 | B164: 1 | C164: 200 | D164: 110 | E164: Vertrieb_3 | F164: Köln | G164: 6 | H164: 2021-06-14 | I164: 1
A165: 164 | B165: 1 | C165: 250 | D165: 120 | E165: Vertrieb_4 | F165: Frankfurt am Main | G165: 6 | H165: 2021-06-15 | I165: 1
A166: 165 | B166: 1 | C166: 100 | D166: 100 | E166: Vertrieb_1 | F166: Hamburg | G166: 6 | H166: 2021-06-16 | I166: 1
A167: 166 | B167: 1 | C167: 200 | D167: 110 | E167: Vertrieb_2 | F167: München | G167: 6 | H167: 2021-06-17 | I167: 1
A168: 167 | B168: 1 | C168: 250 | D168: 120 | E168: Vertrieb_3 | F168: Köln | G168: 6 | H168: 2021-06-18 | I168: 1
A169: 168 | B169: 1 | C169: 100 | D169: 100 | E169: Vertrieb_4 | F169: Frankfurt am Main | G169: 6 | H169: 2021-06-19 | I169: 1
A170: 169 | B170: 1 | C170: 200 | D170: 110 | E170: Vertrieb_1 | F170: Hamburg | G170: 6 | H170: 2021-06-20 | I170: 1
A171: 170 | B171: 1 | C171: 250 | D171: 120 | E171: Vertrieb_2 | F171: München | G171: 6 | H171: 2021-06-21 | I171: 1
A172: 171 | B172: 1 | C172: 100 | D172: 100 | E172: Vertrieb_3 | F172: Köln | G172: 6 | H172: 2021-06-22 | I172: 1
A173: 172 | B173: 1 | C173: 200 | D173: 110 | E173: Vertrieb_4 | F173: Frankfurt am Main | G173: 6 | H173: 2021-06-23 | I173: 1
A174: 173 | B174: 1 | C174: 250 | D174: 120 | E174: Vertrieb_1 | F174: Hamburg | G174: 6 | H174: 2021-06-24 | I174: 1
A175: 174 | B175: 1 | C175: 100 | D175: 100 | E175: Vertrieb_2 | F175: München | G175: 6 | H175: 2021-06-25 | I175: 1
A176: 175 | B176: 1 | C176: 200 | D176: 110 | E176: Vertrieb_3 | F176: Köln | G176: 6 | H176: 2021-06-26 | I176: 1
A177: 176 | B177: 1 | C177: 250 | D177: 120 | E177: Vertrieb_4 | F177: Frankfurt am Main | G177: 6 | H177: 2021-06-27 | I177: 1
A178: 177 | B178: 1 | C178: 200 | D178: 110 | E178: Vertrieb_1 | F178: Hamburg | G178: 6 | H178: 2021-06-28 | I178: 1
A179: 178 | B179: 1 | C179: 250 | D179: 120 | E179: Vertrieb_2 | F179: München | G179: 6 | H179: 2021-06-29 | I179: 1
A180: 179 | B180: 1 | C180: 100 | D180: 100 | E180: Vertrieb_3 | F180: Köln | G180: 6 | H180: 2021-06-30 | I180: 1
A181: 180 | B181: 1 | C181: 200 | D181: 110 | E181: Vertrieb_4 | F181: Frankfurt am Main | G181: 7 | H181: 2021-07-01 | I181: 1
A182: 181 | B182: 1 | C182: 250 | D182: 120 | E182: Vertrieb_1 | F182: Hamburg | G182: 7 | H182: 2021-07-02 | I182: 1
A183: 182 | B183: 1 | C183: 100 | D183: 100 | E183: Vertrieb_2 | F183: München | G183: 7 | H183: 2021-07-03 | I183: 1
A184: 183 | B184: 1 | C184: 200 | D184: 110 | E184: Vertrieb_3 | F184: Köln | G184: 7 | H184: 2021-07-04 | I184: 1
A185: 184 | B185: 1 | C185: 250 | D185: 120 | E185: Vertrieb_4 | F185: Frankfurt am Main | G185: 7 | H185: 2021-07-05 | I185: 1
A186: 185 | B186: 1 | C186: 100 | D186: 100 | E186: Vertrieb_1 | F186: Hamburg | G186: 7 | H186: 2021-07-06 | I186: 1
A187: 186 | B187: 1 | C187: 200 | D187: 110 | E187: Vertrieb_2 | F187: München | G187: 7 | H187: 2021-07-07 | I187: 1
A188: 187 | B188: 1 | C188: 250 | D188: 120 | E188: Vertrieb_3 | F188: Köln | G188: 7 | H188: 2021-07-08 | I188: 1
A189: 188 | B189: 1 | C189: 100 | D189: 100 | E189: Vertrieb_4 | F189: Frankfurt am Main | G189: 7 | H189: 2021-07-09 | I189: 1
A190: 189 | B190: 1 | C190: 200 | D190: 110 | E190: Vertrieb_1 | F190: Hamburg | G190: 7 | H190: 2021-07-10 | I190: 1
A191: 190 | B191: 1 | C191: 250 | D191: 120 | E191: Vertrieb_2 | F191: München | G191: 7 | H191: 2021-07-11 | I191: 1
A192: 191 | B192: 1 | C192: 100 | D192: 100 | E192: Vertrieb_3 | F192: Köln | G192: 7 | H192: 2021-07-12 | I192: 1
A193: 192 | B193: 1 | C193: 200 | D193: 110 | E193: Vertrieb_4 | F193: Frankfurt am Main | G193: 7 | H193: 2021-07-13 | I193: 1
A194: 193 | B194: 1 | C194: 250 | D194: 120 | E194: Vertrieb_1 | F194: Hamburg | G194: 7 | H194: 2021-07-14 | I194: 1
A195: 194 | B195: 1 | C195: 100 | D195: 100 | E195: Vertrieb_2 | F195: München | G195: 7 | H195: 2021-07-15 | I195: 1
A196: =A195+1 -> 195 | B196: 1 | C196: 200 | D196: 110 | E196: Vertrieb_3 | F196: Köln | G196: 7 | H196: 2021-07-16 | I196: 1
A197: 196 | B197: 1 | C197: 250 | D197: 120 | E197: Vertrieb_4 | F197: Frankfurt am Main | G197: 7 | H197: 2021-07-17 | I197: 1
A198: 197 | B198: 1 | C198: 100 | D198: 100 | E198: Vertrieb_1 | F198: Hamburg | G198: 7 | H198: 2021-07-18 | I198: 1
A199: 198 | B199: 1 | C199: 200 | D199: 110 | E199: Vertrieb_2 | F199: München | G199: 7 | H199: 2021-07-19 | I199: 1
A200: 199 | B200: 1 | C200: 250 | D200: 120 | E200: Vertrieb_3 | F200: Köln | G200: 7 | H200: 2021-07-20 | I200: 1
... 165 more rows

Sheet Excel_Tabellenblatt_Microsoft B

Sheet Pivot_Umsatz_Produkt_Region
A3: Summe von Umsatz | B3: Spaltenbeschriftungen
A4: Zeilenbeschriftungen | B4: Frankfurt am Main | C4: Hamburg | D4: Köln | E4: München | F4: Gesamtergebnis
A5: 100 | B5: 2800 | C5: 2600 | D5: 3500 | E5: 3400 | F5: 12300
A6: 110 | B6: 6800 | C6: 6200 | D6: 6200 | E6: 4800 | F6: 24000
A7: 120 | B7: 7000 | C7: 8500 | D7: 6250 | E7: 8250 | F7: 30000
A8: Gesamtergebnis | B8: 16600 | C8: 17300 | D8: 15950 | E8: 16450 | F8: 66300

Sheet Pivot_Umsatz_Vertrieb
A3: Summe von Umsatz | B3: Spaltenbeschriftungen
A4: Zeilenbeschriftungen | B4: 100 | C4: 110 | D4: 120 | E4: Gesamtergebnis
A5: Vertrieb_1 | B5: 2600 | C5: 6200 | D5: 8500 | E5: 17300
A6: Vertrieb_2 | B6: 3400 | C6: 4800 | D6: 8250 | E6: 16450
A7: Vertrieb_3 | B7: 3500 | C7: 6200 | D7: 6250 | E7: 15950
A8: Vertrieb_4 | B8: 2800 | C8: 6800 | D8: 7000 | E8: 16600
A9: Gesamtergebnis | B9: 12300 | C9: 24000 | D9: 30000 | E9: 66300

Sheet Pivot_Umsatz_Ort
A3: Zeilenbeschriftungen | B3: Summe von Umsatz | C3: Summe von Anzahl
A4: Frankfurt am Main | B4: 16600 | C4: 90
A5: Hamburg | B5: 17300 | C5: 91
A6: Köln | B6: 15950 | C6: 91
A7: München | B7: 16450 | C7: 91
A8: Gesamtergebnis | B8: 66300 | C8: 363

Sheet Vorlage_TE
A1: lfd. Nr. | B1: Anzahl | C1: Umsatz | D1: Produkt | E1: Vertrieb | F1: Ort | G1: Monat | H1: Datum
A2: 1 | B2: 1 | C2: 100 | D2: 100 | E2: Vertrieb_1 | F2: Hamburg | G2: 1 | H2: 2021-01-03
A3: 2 | B3: 1 | C3: 200 | D3: 110 | E3: Vertrieb_2 | F3: München | G3: 1 | H3: 2021-01-04
A4: 3 | B4: 1 | C4: 250 | D4: 120 | E4: Vertrieb_3 | F4: Köln | G4: 1 | H4: 2021-01-05
A5: 4 | B5: 1 | C5: 100 | D5: 100 | E5: Vertrieb_4 | F5: Frankfurt am Main | G5: 1 | H5: 2021-01-06
A6: 5 | B6: 1 | C6: 200 | D6: 110 | E6: Vertrieb_1 | F6: Hamburg | G6: 1 | H6: 2021-01-07
A7: 6 | B7: 1 | C7: 200 | D7: 110 | E7: Vertrieb_2 | F7: München | G7: 1 | H7: 2021-01-08
A8: 7 | B8: 1 | C8: 250 | D8: 120 | E8: Vertrieb_3 | F8: Köln | G8: 1 | H8: 2021-01-09
A9: 8 | B9: 1 | C9: 100 | D9: 100 | E9: Vertrieb_4 | F9: Frankfurt am Main | G9: 1 | H9: 2021-01-10
A10: 9 | B10: 1 | C10: 200 | D10: 110 | E10: Vertrieb_1 | F10: Hamburg | G10: 1 | H10: 2021-01-11
A11: 10 | B11: 1 | C11: 250 | D11: 120 | E11: Vertrieb_2 | F11: München | G11: 1 | H11: 2021-01-12
A12: 11 | B12: 1 | C12: 250 | D12: 120 | E12: Vertrieb_3 | F12: Köln | G12: 1 | H12: 2021-01-13
A13: 12 | B13: 1 | C13: 100 | D13: 100 | E13: Vertrieb_4 | F13: Frankfurt am Main | G13: 1 | H13: 2021-01-14
A14: 13 | B14: 1 | C14: 200 | D14: 110 | E14: Vertrieb_1 | F14: Hamburg | G14: 1 | H14: 2021-01-15
A15: 14 | B15: 1 | C15: 250 | D15: 120 | E15: Vertrieb_2 | F15: München | G15: 1 | H15: 2021-01-16
A16: 15 | B16: 1 | C16: 100 | D16: 100 | E16: Vertrieb_3 | F16: Köln | G16: 1 | H16: 2021-01-17
A17: 16 | B17: 1 | C17: 200 | D17: 110 | E17: Vertrieb_4 | F17: Frankfurt am Main | G17: 1 | H17: 2021-01-18
A18: 17 | B18: 1 | C18: 250 | D18: 120 | E18: Vertrieb_1 | F18: Hamburg | G18: 1 | H18: 2021-01-19
A19: 18 | B19: 1 | C19: 100 | D19: 100 | E19: Vertrieb_2 | F19: München | G19: 1 | H19: 2021-01-20
A20: 19 | B20: 1 | C20: 200 | D20: 110 | E20: Vertrieb_3 | F20: Köln | G20: 1 | H20: 2021-01-21
A21: 20 | B21: 1 | C21: 250 | D21: 120 | E21: Vertrieb_4 | F21: Frankfurt am Main | G21: 1 | H21: 2021-01-22
A22: 21 | B22: 1 | C22: 100 | D22: 100 | E22: Vertrieb_1 | F22: Hamburg | G22: 1 | H22: 2021-01-23
A23: 22 | B23: 1 | C23: 250 | D23: 120 | E23: Vertrieb_2 | F23: München | G23: 1 | H23: 2021-01-24
A24: 23 | B24: 1 | C24: 100 | D24: 100 | E24: Vertrieb_3 | F24: Köln | G24: 1 | H24: 2021-01-25
A25: 24 | B25: 1 | C25: 200 | D25: 110 | E25: Vertrieb_4 | F25: Frankfurt am Main | G25: 1 | H25: 2021-01-26
A26: 25 | B26: 1 | C26: 250 | D26: 120 | E26: Vertrieb_1 | F26: Hamburg | G26: 1 | H26: 2021-01-27
A27: 26 | B27: 1 | C27: 100 | D27: 100 | E27: Vertrieb_2 | F27: München | G27: 1 | H27: 2021-01-28
A28: 27 | B28: 1 | C28: 200 | D28: 110 | E28: Vertrieb_3 | F28: Köln | G28: 1 | H28: 2021-01-29
A29: 28 | B29: 1 | C29: 250 | D29: 120 | E29: Vertrieb_4 | F29: Frankfurt am Main | G29: 1 | H29: 2021-01-30
A30: 29 | B30: 1 | C30: 100 | D30: 100 | E30: Vertrieb_1 | F30: Hamburg | G30: 1 | H30: 2021-01-31
A31: 30 | B31: 1 | C31: 200 | D31: 110 | E31: Vertrieb_2 | F31: München | G31: 2 | H31: 2021-02-01
A32: 31 | B32: 1 | C32: 250 | D32: 120 | E32: Vertrieb_3 | F32: Köln | G32: 2 | H32: 2021-02-02
A33: 32 | B33: 1 | C33: 100 | D33: 100 | E33: Vertrieb_4 | F33: Frankfurt am Main | G33: 2 | H33: 2021-02-03
A34: 33 | B34: 1 | C34: 200 | D34: 110 | E34: Vertrieb_1 | F34: Hamburg | G34: 2 | H34: 2021-02-04
A35: 34 | B35: 1 | C35: 250 | D35: 120 | E35: Vertrieb_2 | F35: München | G35: 2 | H35: 2021-02-05
A36: 35 | B36: 1 | C36: 100 | D36: 100 | E36: Vertrieb_3 | F36: Köln | G36: 2 | H36: 2021-02-06
A37: 36 | B37: 1 | C37: 200 | D37: 110 | E37: Vertrieb_4 | F37: Frankfurt am Main | G37: 2 | H37: 2021-02-07
A38: 37 | B38: 1 | C38: 250 | D38: 120 | E38: Vertrieb_1 | F38: Hamburg | G38: 2 | H38: 2021-02-08
A39: 38 | B39: 1 | C39: 100 | D39: 100 | E39: Vertrieb_2 | F39: München | G39: 2 | H39: 2021-02-09
A40: 39 | B40: 1 | C40: 200 | D40: 110 | E40: Vertrieb_3 | F40: Köln | G40: 2 | H40: 2021-02-10
A41: 40 | B41: 1 | C41: 250 | D41: 120 | E41: Vertrieb_4 | F41: Frankfurt am Main | G41: 2 | H41: 2021-02-11
A42: 41 | B42: 1 | C42: 100 | D42: 100 | E42: Vertrieb_1 | F42: Hamburg | G42: 2 | H42: 2021-02-12
A43: 42 | B43: 1 | C43: 200 | D43: 110 | E43: Vertrieb_2 | F43: München | G43: 2 | H43: 2021-02-13
A44: 43 | B44: 1 | C44: 250 | D44: 120 | E44: Vertrieb_3 | F44: Köln | G44: 2 | H44: 2021-02-14
A45: 44 | B45: 1 | C45: 100 | D45: 100 | E45: Vertrieb_4 | F45: Frankfurt am Main | G45: 2 | H45: 2021-02-15
A46: 45 | B46: 1 | C46: 200 | D46: 110 | E46: Vertrieb_1 | F46: Hamburg | G46: 2 | H46: 2021-02-16
A47: 46 | B47: 1 | C47: 250 | D47: 120 | E47: Vertrieb_2 | F47: München | G47: 2 | H47: 2021-02-17
A48: 47 | B48: 1 | C48: 100 | D48: 100 | E48: Vertrieb_3 | F48: Köln | G48: 2 | H48: 2021-02-18
A49: 48 | B49: 1 | C49: 200 | D49: 110 | E49: Vertrieb_4 | F49: Frankfurt am Main | G49: 2 | H49: 2021-02-19
A50: 49 | B50: 1 | C50: 250 | D50: 120 | E50: Vertrieb_1 | F50: Hamburg | G50: 2 | H50: 2021-02-20
A51: 50 | B51: 1 | C51: 100 | D51: 100 | E51: Vertrieb_2 | F51: München | G51: 2 | H51: 2021-02-21
A52: 51 | B52: 1 | C52: 200 | D52: 110 | E52: Vertrieb_3 | F52: Köln | G52: 2 | H52: 2021-02-22
A53: 52 | B53: 1 | C53: 250 | D53: 120 | E53: Vertrieb_4 | F53: Frankfurt am Main | G53: 2 | H53: 2021-02-23
A54: 53 | B54: 1 | C54: 200 | D54: 110 | E54: Vertrieb_1 | F54: Hamburg | G54: 2 | H54: 2021-02-24
A55: 54 | B55: 1 | C55: 250 | D55: 120 | E55: Vertrieb_2 | F55: München | G55: 2 | H55: 2021-02-25
A56: 55 | B56: 1 | C56: 100 | D56: 100 | E56: Vertrieb_3 | F56: Köln | G56: 2 | H56: 2021-02-26
A57: 56 | B57: 1 | C57: 200 | D57: 110 | E57: Vertrieb_4 | F57: Frankfurt am Main | G57: 2 | H57: 2021-02-27
A58: 57 | B58: 1 | C58: 250 | D58: 120 | E58: Vertrieb_1 | F58: Hamburg | G58: 2 | H58: 2021-02-28
A59: 58 | B59: 1 | C59: 100 | D59: 100 | E59: Vertrieb_2 | F59: München | G59: 3 | H59: 2021-03-01
A60: 59 | B60: 1 | C60: 200 | D60: 110 | E60: Vertrieb_3 | F60: Köln | G60: 3 | H60: 2021-03-02
A61: 60 | B61: 1 | C61: 250 | D61: 120 | E61: Vertrieb_4 | F61: Frankfurt am Main | G61: 3 | H61: 2021-03-03
A62: 61 | B62: 1 | C62: 100 | D62: 100 | E62: Vertrieb_1 | F62: Hamburg | G62: 3 | H62: 2021-03-04
A63: 62 | B63: 1 | C63: 200 | D63: 110 | E63: Vertrieb_2 | F63: München | G63: 3 | H63: 2021-03-05
A64: 63 | B64: 1 | C64: 250 | D64: 120 | E64: Vertrieb_3 | F64: Köln | G64: 3 | H64: 2021-03-06
A65: 64 | B65: 1 | C65: 100 | D65: 100 | E65: Vertrieb_4 | F65: Frankfurt am Main | G65: 3 | H65: 2021-03-07
A66: 65 | B66: 1 | C66: 200 | D66: 110 | E66: Vertrieb_1 | F66: Hamburg | G66: 3 | H66: 2021-03-08
A67: 66 | B67: 1 | C67: 250 | D67: 120 | E67: Vertrieb_2 | F67: München | G67: 3 | H67: 2021-03-09
A68: 67 | B68: 1 | C68: 100 | D68: 100 | E68: Vertrieb_3 | F68: Köln | G68: 3 | H68: 2021-03-10
A69: 68 | B69: 1 | C69: 200 | D69: 110 | E69: Vertrieb_4 | F69: Frankfurt am Main | G69: 3 | H69: 2021-03-11
A70: 69 | B70: 1 | C70: 250 | D70: 120 | E70: Vertrieb_1 | F70: Hamburg | G70: 3 | H70: 2021-03-12
A71: 70 | B71: 1 | C71: 100 | D71: 100 | E71: Vertrieb_2 | F71: München | G71: 3 | H71: 2021-03-13
A72: 71 | B72: 1 | C72: 200 | D72: 110 | E72: Vertrieb_3 | F72: Köln | G72: 3 | H72: 2021-03-14
A73: 72 | B73: 1 | C73: 250 | D73: 120 | E73: Vertrieb_4 | F73: Frankfurt am Main | G73: 3 | H73: 2021-03-15
A74: 73 | B74: 1 | C74: 100 | D74: 100 | E74: Vertrieb_1 | F74: Hamburg | G74: 3 | H74: 2021-03-16
A75: 74 | B75: 1 | C75: 200 | D75: 110 | E75: Vertrieb_2 | F75: München | G75: 3 | H75: 2021-03-17
A76: 75 | B76: 1 | C76: 250 | D76: 120 | E76: Vertrieb_3 | F76: Köln | G76: 3 | H76: 2021-03-18
A77: 76 | B77: 1 | C77: 100 | D77: 100 | E77: Vertrieb_4 | F77: Frankfurt am Main | G77: 3 | H77: 2021-03-19
A78: 77 | B78: 1 | C78: 200 | D78: 110 | E78: Vertrieb_1 | F78: Hamburg | G78: 3 | H78: 2021-03-20
A79: 78 | B79: 1 | C79: 250 | D79: 120 | E79: Vertrieb_2 | F79: München | G79: 3 | H79: 2021-03-21
A80: 79 | B80: 1 | C80: 100 | D80: 100 | E80: Vertrieb_3 | F80: Köln | G80: 3 | H80: 2021-03-22
A81: 80 | B81: 1 | C81: 200 | D81: 110 | E81: Vertrieb_4 | F81: Frankfurt am Main | G81: 3 | H81: 2021-03-23
A82: 81 | B82: 1 | C82: 250 | D82: 120 | E82: Vertrieb_1 | F82: Hamburg | G82: 3 | H82: 2021-03-24
A83: 82 | B83: 1 | C83: 100 | D83: 100 | E83: Vertrieb_2 | F83: München | G83: 3 | H83: 2021-03-25
A84: 83 | B84: 1 | C84: 200 | D84: 110 | E84: Vertrieb_3 | F84: Köln | G84: 3 | H84: 2021-03-26
A85: 84 | B85: 1 | C85: 100 | D85: 100 | E85: Vertrieb_4 | F85: Frankfurt am Main | G85: 3 | H85: 2021-03-27
A86: 85 | B86: 1 | C86: 200 | D86: 110 | E86: Vertrieb_1 | F86: Hamburg | G86: 3 | H86: 2021-03-28
A87: 86 | B87: 1 | C87: 250 | D87: 120 | E87: Vertrieb_2 | F87: München | G87: 3 | H87: 2021-03-29
A88: 87 | B88: 1 | C88: 100 | D88: 100 | E88: Vertrieb_3 | F88: Köln | G88: 3 | H88: 2021-03-30
A89: 88 | B89: 1 | C89: 200 | D89: 110 | E89: Vertrieb_4 | F89: Frankfurt am Main | G89: 3 | H89: 2021-03-31
A90: 89 | B90: 1 | C90: 250 | D90: 120 | E90: Vertrieb_1 | F90: Hamburg | G90: 4 | H90: 2021-04-01
A91: 90 | B91: 1 | C91: 100 | D91: 100 | E91: Vertrieb_2 | F91: München | G91: 4 | H91: 2021-04-02
A92: 91 | B92: 1 | C92: 200 | D92: 110 | E92: Vertrieb_3 | F92: Köln | G92: 4 | H92: 2021-04-03
A93: 92 | B93: 1 | C93: 250 | D93: 120 | E93: Vertrieb_4 | F93: Frankfurt am Main | G93: 4 | H93: 2021-04-04
A94: 93 | B94: 1 | C94: 100 | D94: 100 | E94: Vertrieb_1 | F94: Hamburg | G94: 4 | H94: 2021-04-05
A95: 94 | B95: 1 | C95: 200 | D95: 110 | E95: Vertrieb_2 | F95: München | G95: 4 | H95: 2021-04-06
A96: 95 | B96: 1 | C96: 250 | D96: 120 | E96: Vertrieb_3 | F96: Köln | G96: 4 | H96: 2021-04-07
A97: 96 | B97: 1 | C97: 100 | D97: 100 | E97: Vertrieb_4 | F97: Frankfurt am Main | G97: 4 | H97: 2021-04-08
A98: 97 | B98: 1 | C98: 200 | D98: 110 | E98: Vertrieb_1 | F98: Hamburg | G98: 4 | H98: 2021-04-09
A99: 98 | B99: 1 | C99: 250 | D99: 120 | E99: Vertrieb_2 | F99: München | G99: 4 | H99: 2021-04-10
A100: 99 | B100: 1 | C100: 100 | D100: 100 | E100: Vertrieb_3 | F100: Köln | G100: 4 | H100: 2021-04-11
A101: 100 | B101: 1 | C101: 200 | D101: 110 | E101: Vertrieb_4 | F101: Frankfurt am Main | G101: 4 | H101: 2021-04-12
A102: 101 | B102: 1 | C102: 250 | D102: 120 | E102: Vertrieb_1 | F102: Hamburg | G102: 4 | H102: 2021-04-13
A103: 102 | B103: 1 | C103: 100 | D103: 100 | E103: Vertrieb_2 | F103: München | G103: 4 | H103: 2021-04-14
A104: 103 | B104: 1 | C104: 200 | D104: 110 | E104: Vertrieb_3 | F104: Köln | G104: 4 | H104: 2021-04-15
A105: 104 | B105: 1 | C105: 250 | D105: 120 | E105: Vertrieb_4 | F105: Frankfurt am Main | G105: 4 | H105: 2021-04-16
A106: 105 | B106: 1 | C106: 100 | D106: 100 | E106: Vertrieb_1 | F106: Hamburg | G106: 4 | H106: 2021-04-17
A107: 106 | B107: 1 | C107: 200 | D107: 110 | E107: Vertrieb_2 | F107: München | G107: 4 | H107: 2021-04-18
A108: 107 | B108: 1 | C108: 250 | D108: 120 | E108: Vertrieb_3 | F108: Köln | G108: 4 | H108: 2021-04-19
A109: 108 | B109: 1 | C109: 100 | D109: 100 | E109: Vertrieb_4 | F109: Frankfurt am Main | G109: 4 | H109: 2021-04-20
A110: 109 | B110: 1 | C110: 200 | D110: 110 | E110: Vertrieb_1 | F110: Hamburg | G110: 4 | H110: 2021-04-21
A111: 110 | B111: 1 | C111: 250 | D111: 120 | E111: Vertrieb_2 | F111: München | G111: 4 | H111: 2021-04-22
A112: 111 | B112: 1 | C112: 100 | D112: 100 | E112: Vertrieb_3 | F112: Köln | G112: 4 | H112: 2021-04-23
A113: 112 | B113: 1 | C113: 200 | D113: 110 | E113: Vertrieb_4 | F113: Frankfurt am Main | G113: 4 | H113: 2021-04-24
A114: 113 | B114: 1 | C114: 250 | D114: 120 | E114: Vertrieb_1 | F114: Hamburg | G114: 4 | H114: 2021-04-25
A115: 114 | B115: 1 | C115: 100 | D115: 100 | E115: Vertrieb_2 | F115: München | G115: 4 | H115: 2021-04-26
A116: 115 | B116: 1 | C116: 100 | D116: 100 | E116: Vertrieb_3 | F116: Köln | G116: 4 | H116: 2021-04-27
A117: 116 | B117: 1 | C117: 200 | D117: 110 | E117: Vertrieb_4 | F117: Frankfurt am Main | G117: 4 | H117: 2021-04-28
A118: 117 | B118: 1 | C118: 250 | D118: 120 | E118: Vertrieb_1 | F118: Hamburg | G118: 4 | H118: 2021-04-29
A119: 118 | B119: 1 | C119: 100 | D119: 100 | E119: Vertrieb_2 | F119: München | G119: 4 | H119: 2021-04-30
A120: 119 | B120: 1 | C120: 200 | D120: 110 | E120: Vertrieb_3 | F120: Köln | G120: 5 | H120: 2021-05-01
A121: 120 | B121: 1 | C121: 250 | D121: 120 | E121: Vertrieb_4 | F121: Frankfurt am Main | G121: 5 | H121: 2021-05-02
A122: 121 | B122: 1 | C122: 100 | D122: 100 | E122: Vertrieb_1 | F122: Hamburg | G122: 5 | H122: 2021-05-03
A123: 122 | B123: 1 | C123: 200 | D123: 110 | E123: Vertrieb_2 | F123: München | G123: 5 | H123: 2021-05-04
A124: 123 | B124: 1 | C124: 250 | D124: 120 | E124: Vertrieb_3 | F124: Köln | G124: 5 | H124: 2021-05-05
A125: 124 | B125: 1 | C125: 100 | D125: 100 | E125: Vertrieb_4 | F125: Frankfurt am Main | G125: 5 | H125: 2021-05-06
A126: 125 | B126: 1 | C126: 200 | D126: 110 | E126: Vertrieb_1 | F126: Hamburg | G126: 5 | H126: 2021-05-07
A127: 126 | B127: 1 | C127: 250 | D127: 120 | E127: Vertrieb_2 | F127: München | G127: 5 | H127: 2021-05-08
A128: 127 | B128: 1 | C128: 100 | D128: 100 | E128: Vertrieb_3 | F128: Köln | G128: 5 | H128: 2021-05-09
A129: 128 | B129: 1 | C129: 200 | D129: 110 | E129: Vertrieb_4 | F129: Frankfurt am Main | G129: 5 | H129: 2021-05-10
A130: 129 | B130: 1 | C130: 250 | D130: 120 | E130: Vertrieb_1 | F130: Hamburg | G130: 5 | H130: 2021-05-11
A131: 130 | B131: 1 | C131: 100 | D131: 100 | E131: Vertrieb_2 | F131: München | G131: 5 | H131: 2021-05-12
A132: 131 | B132: 1 | C132: 200 | D132: 110 | E132: Vertrieb_3 | F132: Köln | G132: 5 | H132: 2021-05-13
A133: 132 | B133: 1 | C133: 250 | D133: 120 | E133: Vertrieb_4 | F133: Frankfurt am Main | G133: 5 | H133: 2021-05-14
A134: 133 | B134: 1 | C134: 100 | D134: 100 | E134: Vertrieb_1 | F134: Hamburg | G134: 5 | H134: 2021-05-15
A135: 134 | B135: 1 | C135: 200 | D135: 110 | E135: Vertrieb_2 | F135: München | G135: 5 | H135: 2021-05-16
A136: 135 | B136: 1 | C136: 250 | D136: 120 | E136: Vertrieb_3 | F136: Köln | G136: 5 | H136: 2021-05-17
A137: 136 | B137: 1 | C137: 100 | D137: 100 | E137: Vertrieb_4 | F137: Frankfurt am Main | G137: 5 | H137: 2021-05-18
A138: 137 | B138: 1 | C138: 200 | D138: 110 | E138: Vertrieb_1 | F138: Hamburg | G138: 5 | H138: 2021-05-19
A139: 138 | B139: 1 | C139: 250 | D139: 120 | E139: Vertrieb_2 | F139: München | G139: 5 | H139: 2021-05-20
A140: 139 | B140: 1 | C140: 100 | D140: 100 | E140: Vertrieb_3 | F140: Köln | G140: 5 | H140: 2021-05-21
A141: 140 | B141: 1 | C141: 200 | D141: 110 | E141: Vertrieb_4 | F141: Frankfurt am Main | G141: 5 | H141: 2021-05-22
A142: 141 | B142: 1 | C142: 250 | D142: 120 | E142: Vertrieb_1 | F142: Hamburg | G142: 5 | H142: 2021-05-23
A143: 142 | B143: 1 | C143: 100 | D143: 100 | E143: Vertrieb_2 | F143: München | G143: 5 | H143: 2021-05-24
A144: 143 | B144: 1 | C144: 200 | D144: 110 | E144: Vertrieb_3 | F144: Köln | G144: 5 | H144: 2021-05-25
A145: 144 | B145: 1 | C145: 250 | D145: 120 | E145: Vertrieb_4 | F145: Frankfurt am Main | G145: 5 | H145: 2021-05-26
A146: 145 | B146: 1 | C146: 100 | D146: 100 | E146: Vertrieb_1 | F146: Hamburg | G146: 5 | H146: 2021-05-27
A147: 146 | B147: 1 | C147: 250 | D147: 120 | E147: Vertrieb_2 | F147: München | G147: 5 | H147: 2021-05-28
A148: 147 | B148: 1 | C148: 100 | D148: 100 | E148: Vertrieb_3 | F148: Köln | G148: 5 | H148: 2021-05-29
A149: 148 | B149: 1 | C149: 200 | D149: 110 | E149: Vertrieb_4 | F149: Frankfurt am Main | G149: 5 | H149: 2021-05-30
A150: 149 | B150: 1 | C150: 250 | D150: 120 | E150: Vertrieb_1 | F150: Hamburg | G150: 5 | H150: 2021-05-31
A151: 150 | B151: 1 | C151: 100 | D151: 100 | E151: Vertrieb_2 | F151: München | G151: 6 | H151: 2021-06-01
A152: 151 | B152: 1 | C152: 200 | D152: 110 | E152: Vertrieb_3 | F152: Köln | G152: 6 | H152: 2021-06-02
A153: 152 | B153: 1 | C153: 250 | D153: 120 | E153: Vertrieb_4 | F153: Frankfurt am Main | G153: 6 | H153: 2021-06-03
A154: 153 | B154: 1 | C154: 100 | D154: 100 | E154: Vertrieb_1 | F154: Hamburg | G154: 6 | H154: 2021-06-04
A155: 154 | B155: 1 | C155: 200 | D155: 110 | E155: Vertrieb_2 | F155: München | G155: 6 | H155: 2021-06-05
A156: 155 | B156: 1 | C156: 250 | D156: 120 | E156: Vertrieb_3 | F156: Köln | G156: 6 | H156: 2021-06-06
A157: 156 | B157: 1 | C157: 100 | D157: 100 | E157: Vertrieb_4 | F157: Frankfurt am Main | G157: 6 | H157: 2021-06-07
A158: 157 | B158: 1 | C158: 200 | D158: 110 | E158: Vertrieb_1 | F158: Hamburg | G158: 6 | H158: 2021-06-08
A159: 158 | B159: 1 | C159: 250 | D159: 120 | E159: Vertrieb_2 | F159: München | G159: 6 | H159: 2021-06-09
A160: 159 | B160: 1 | C160: 100 | D160: 100 | E160: Vertrieb_3 | F160: Köln | G160: 6 | H160: 2021-06-10
A161: 160 | B161: 1 | C161: 200 | D161: 110 | E161: Vertrieb_4 | F161: Frankfurt am Main | G161: 6 | H161: 2021-06-11
A162: 161 | B162: 1 | C162: 250 | D162: 120 | E162: Vertrieb_1 | F162: Hamburg | G162: 6 | H162: 2021-06-12
A163: 162 | B163: 1 | C163: 100 | D163: 100 | E163: Vertrieb_2 | F163: München | G163: 6 | H163: 2021-06-13
A164: 163 | B164: 1 | C164: 200 | D164: 110 | E164: Vertrieb_3 | F164: Köln | G164: 6 | H164: 2021-06-14
A165: 164 | B165: 1 | C165: 250 | D165: 120 | E165: Vertrieb_4 | F165: Frankfurt am Main | G165: 6 | H165: 2021-06-15
A166: 165 | B166: 1 | C166: 100 | D166: 100 | E166: Vertrieb_1 | F166: Hamburg | G166: 6 | H166: 2021-06-16
A167: 166 | B167: 1 | C167: 200 | D167: 110 | E167: Vertrieb_2 | F167: München | G167: 6 | H167: 2021-06-17
A168: 167 | B168: 1 | C168: 250 | D168: 120 | E168: Vertrieb_3 | F168: Köln | G168: 6 | H168: 2021-06-18
A169: 168 | B169: 1 | C169: 100 | D169: 100 | E169: Vertrieb_4 | F169: Frankfurt am Main | G169: 6 | H169: 2021-06-19
A170: 169 | B170: 1 | C170: 200 | D170: 110 | E170: Vertrieb_1 | F170: Hamburg | G170: 6 | H170: 2021-06-20
A171: 170 | B171: 1 | C171: 250 | D171: 120 | E171: Vertrieb_2 | F171: München | G171: 6 | H171: 2021-06-21
A172: 171 | B172: 1 | C172: 100 | D172: 100 | E172: Vertrieb_3 | F172: Köln | G172: 6 | H172: 2021-06-22
A173: 172 | B173: 1 | C173: 200 | D173: 110 | E173: Vertrieb_4 | F173: Frankfurt am Main | G173: 6 | H173: 2021-06-23
A174: 173 | B174: 1 | C174: 250 | D174: 120 | E174: Vertrieb_1 | F174: Hamburg | G174: 6 | H174: 2021-06-24
A175: 174 | B175: 1 | C175: 100 | D175: 100 | E175: Vertrieb_2 | F175: München | G175: 6 | H175: 2021-06-25
A176: 175 | B176: 1 | C176: 200 | D176: 110 | E176: Vertrieb_3 | F176: Köln | G176: 6 | H176: 2021-06-26
A177: 176 | B177: 1 | C177: 250 | D177: 120 | E177: Vertrieb_4 | F177: Frankfurt am Main | G177: 6 | H177: 2021-06-27
A178: 177 | B178: 1 | C178: 200 | D178: 110 | E178: Vertrieb_1 | F178: Hamburg | G178: 6 | H178: 2021-06-28
A179: 178 | B179: 1 | C179: 250 | D179: 120 | E179: Vertrieb_2 | F179: München | G179: 6 | H179: 2021-06-29
A180: 179 | B180: 1 | C180: 100 | D180: 100 | E180: Vertrieb_3 | F180: Köln | G180: 6 | H180: 2021-06-30
A181: 180 | B181: 1 | C181: 200 | D181: 110 | E181: Vertrieb_4 | F181: Frankfurt am Main | G181: 7 | H181: 2021-07-01
A182: 181 | B182: 1 | C182: 250 | D182: 120 | E182: Vertrieb_1 | F182: Hamburg | G182: 7 | H182: 2021-07-02
A183: 182 | B183: 1 | C183: 100 | D183: 100 | E183: Vertrieb_2 | F183: München | G183: 7 | H183: 2021-07-03
A184: 183 | B184: 1 | C184: 200 | D184: 110 | E184: Vertrieb_3 | F184: Köln | G184: 7 | H184: 2021-07-04
A185: 184 | B185: 1 | C185: 250 | D185: 120 | E185: Vertrieb_4 | F185: Frankfurt am Main | G185: 7 | H185: 2021-07-05
A186: 185 | B186: 1 | C186: 100 | D186: 100 | E186: Vertrieb_1 | F186: Hamburg | G186: 7 | H186: 2021-07-06
A187: 186 | B187: 1 | C187: 200 | D187: 110 | E187: Vertrieb_2 | F187: München | G187: 7 | H187: 2021-07-07
A188: 187 | B188: 1 | C188: 250 | D188: 120 | E188: Vertrieb_3 | F188: Köln | G188: 7 | H188: 2021-07-08
A189: 188 | B189: 1 | C189: 100 | D189: 100 | E189: Vertrieb_4 | F189: Frankfurt am Main | G189: 7 | H189: 2021-07-09
A190: 189 | B190: 1 | C190: 200 | D190: 110 | E190: Vertrieb_1 | F190: Hamburg | G190: 7 | H190: 2021-07-10
A191: 190 | B191: 1 | C191: 250 | D191: 120 | E191: Vertrieb_2 | F191: München | G191: 7 | H191: 2021-07-11
A192: 191 | B192: 1 | C192: 100 | D192: 100 | E192: Vertrieb_3 | F192: Köln | G192: 7 | H192: 2021-07-12
A193: 192 | B193: 1 | C193: 200 | D193: 110 | E193: Vertrieb_4 | F193: Frankfurt am Main | G193: 7 | H193: 2021-07-13
A194: 193 | B194: 1 | C194: 250 | D194: 120 | E194: Vertrieb_1 | F194: Hamburg | G194: 7 | H194: 2021-07-14
A195: 194 | B195: 1 | C195: 100 | D195: 100 | E195: Vertrieb_2 | F195: München | G195: 7 | H195: 2021-07-15
A196: 195 | B196: 1 | C196: 200 | D196: 110 | E196: Vertrieb_3 | F196: Köln | G196: 7 | H196: 2021-07-16
A197: 196 | B197: 1 | C197: 250 | D197: 120 | E197: Vertrieb_4 | F197: Frankfurt am Main | G197: 7 | H197: 2021-07-17
A198: 197 | B198: 1 | C198: 100 | D198: 100 | E198: Vertrieb_1 | F198: Hamburg | G198: 7 | H198: 2021-07-18
A199: 198 | B199: 1 | C199: 200 | D199: 110 | E199: Vertrieb_2 | F199: München | G199: 7 | H199: 2021-07-19
A200: 199 | B200: 1 | C200: 250 | D200: 120 | E200: Vertrieb_3 | F200: Köln | G200: 7 | H200: 2021-07-20
... 164 more rows

Sheet TE_Vertrieb
A1: lfd. Nr. | B1: Anzahl | C1: Umsatz | D1: Produkt | E1: Vertrieb | F1: Ort | G1: Monat | H1: Datum
A2: 1 | B2: 1 | C2: 100 | D2: 100 | E2: Vertrieb_1 | F2: Hamburg | G2: 1 | H2: 2021-01-03
A3: 5 | B3: 1 | C3: 200 | D3: 110 | E3: Vertrieb_1 | F3: Hamburg | G3: 1 | H3: 2021-01-07
A4: 9 | B4: 1 | C4: 200 | D4: 110 | E4: Vertrieb_1 | F4: Hamburg | G4: 1 | H4: 2021-01-11
A5: 13 | B5: 1 | C5: 200 | D5: 110 | E5: Vertrieb_1 | F5: Hamburg | G5: 1 | H5: 2021-01-15
A6: 17 | B6: 1 | C6: 250 | D6: 120 | E6: Vertrieb_1 | F6: Hamburg | G6: 1 | H6: 2021-01-19
A7: 21 | B7: 1 | C7: 100 | D7: 100 | E7: Vertrieb_1 | F7: Hamburg | G7: 1 | H7: 2021-01-23
A8: 25 | B8: 1 | C8: 250 | D8: 120 | E8: Vertrieb_1 | F8: Hamburg | G8: 1 | H8: 2021-01-27
A9: 29 | B9: 1 | C9: 100 | D9: 100 | E9: Vertrieb_1 | F9: Hamburg | G9: 1 | H9: 2021-01-31
A10: 33 | B10: 1 | C10: 200 | D10: 110 | E10: Vertrieb_1 | F10: Hamburg | G10: 2 | H10: 2021-02-04
A11: 37 | B11: 1 | C11: 250 | D11: 120 | E11: Vertrieb_1 | F11: Hamburg | G11: 2 | H11: 2021-02-08
A12: 41 | B12: 1 | C12: 100 | D12: 100 | E12: Vertrieb_1 | F12: Hamburg | G12: 2 | H12: 2021-02-12
A13: 45 | B13: 1 | C13: 200 | D13: 110 | E13: Vertrieb_1 | F13: Hamburg | G13: 2 | H13: 2021-02-16
A14: 49 | B14: 1 | C14: 250 | D14: 120 | E14: Vertrieb_1 | F14: Hamburg | G14: 2 | H14: 2021-02-20
A15: 53 | B15: 1 | C15: 200 | D15: 110 | E15: Vertrieb_1 | F15: Hamburg | G15: 2 | H15: 2021-02-24
A16: 57 | B16: 1 | C16: 250 | D16: 120 | E16: Vertrieb_1 | F16: Hamburg | G16: 2 | H16: 2021-02-28
A17: 61 | B17: 1 | C17: 100 | D17: 100 | E17: Vertrieb_1 | F17: Hamburg | G17: 3 | H17: 2021-03-04
A18: 65 | B18: 1 | C18: 200 | D18: 110 | E18: Vertrieb_1 | F18: Hamburg | G18: 3 | H18: 2021-03-08
A19: 69 | B19: 1 | C19: 250 | D19: 120 | E19: Vertrieb_1 | F19: Hamburg | G19: 3 | H19: 2021-03-12
A20: 73 | B20: 1 | C20: 100 | D20: 100 | E20: Vertrieb_1 | F20: Hamburg | G20: 3 | H20: 2021-03-16
A21: 77 | B21: 1 | C21: 200 | D21: 110 | E21: Vertrieb_1 | F21: Hamburg | G21: 3 | H21: 2021-03-20
A22: 81 | B22: 1 | C22: 250 | D22: 120 | E22: Vertrieb_1 | F22: Hamburg | G22: 3 | H22: 2021-03-24
A23: 85 | B23: 1 | C23: 200 | D23: 110 | E23: Vertrieb_1 | F23: Hamburg | G23: 3 | H23: 2021-03-28
A24: 89 | B24: 1 | C24: 250 | D24: 120 | E24: Vertrieb_1 | F24: Hamburg | G24: 4 | H24: 2021-04-01
A25: 93 | B25: 1 | C25: 100 | D25: 100 | E25: Vertrieb_1 | F25: Hamburg | G25: 4 | H25: 2021-04-05
A26: 97 | B26: 1 | C26: 200 | D26: 110 | E26: Vertrieb_1 | F26: Hamburg | G26: 4 | H26: 2021-04-09
A27: 101 | B27: 1 | C27: 250 | D27: 120 | E27: Vertrieb_1 | F27: Hamburg | G27: 4 | H27: 2021-04-13
A28: 105 | B28: 1 | C28: 100 | D28: 100 | E28: Vertrieb_1 | F28: Hamburg | G28: 4 | H28: 2021-04-17
A29: 109 | B29: 1 | C29: 200 | D29: 110 | E29: Vertrieb_1 | F29: Hamburg | G29: 4 | H29: 2021-04-21
A30: 113 | B30: 1 | C30: 250 | D30: 120 | E30: Vertrieb_1 | F30: Hamburg | G30: 4 | H30: 2021-04-25
A31: 117 | B31: 1 | C31: 250 | D31: 120 | E31: Vertrieb_1 | F31: Hamburg | G31: 4 | H31: 2021-04-29
A32: 121 | B32: 1 | C32: 100 | D32: 100 | E32: Vertrieb_1 | F32: Hamburg | G32: 5 | H32: 2021-05-03
A33: 125 | B33: 1 | C33: 200 | D33: 110 | E33: Vertrieb_1 | F33: Hamburg | G33: 5 | H33: 2021-05-07
A34: 129 | B34: 1 | C34: 250 | D34: 120 | E34: Vertrieb_1 | F34: Hamburg | G34: 5 | H34: 2021-05-11
A35: 133 | B35: 1 | C35: 100 | D35: 100 | E35: Vertrieb_1 | F35: Hamburg | G35: 5 | H35: 2021-05-15
A36: 137 | B36: 1 | C36: 200 | D36: 110 | E36: Vertrieb_1 | F36: Hamburg | G36: 5 | H36: 2021-05-19
A37: 141 | B37: 1 | C37: 250 | D37: 120 | E37: Vertrieb_1 | F37: Hamburg | G37: 5 | H37: 2021-05-23
A38: 145 | B38: 1 | C38: 100 | D38: 100 | E38: Vertrieb_1 | F38: Hamburg | G38: 5 | H38: 2021-05-27
A39: 149 | B39: 1 | C39: 250 | D39: 120 | E39: Vertrieb_1 | F39: Hamburg | G39: 5 | H39: 2021-05-31
A40: 153 | B40: 1 | C40: 100 | D40: 100 | E40: Vertrieb_1 | F40: Hamburg | G40: 6 | H40: 2021-06-04
A41: 157 | B41: 1 | C41: 200 | D41: 110 | E41: Vertrieb_1 | F41: Hamburg | G41: 6 | H41: 2021-06-08
A42: 161 | B42: 1 | C42: 250 | D42: 120 | E42: Vertrieb_1 | F42: Hamburg | G42: 6 | H42: 2021-06-12
A43: 165 | B43: 1 | C43: 100 | D43: 100 | E43: Vertrieb_1 | F43: Hamburg | G43: 6 | H43: 2021-06-16
A44: 169 | B44: 1 | C44: 200 | D44: 110 | E44: Vertrieb_1 | F44: Hamburg | G44: 6 | H44: 2021-06-20
A45: 173 | B45: 1 | C45: 250 | D45: 120 | E45: Vertrieb_1 | F45: Hamburg | G45: 6 | H45: 2021-06-24
A46: 177 | B46: 1 | C46: 200 | D46: 110 | E46: Vertrieb_1 | F46: Hamburg | G46: 6 | H46: 2021-06-28
A47: 181 | B47: 1 | C47: 250 | D47: 120 | E47: Vertrieb_1 | F47: Hamburg | G47: 7 | H47: 2021-07-02
A48: 185 | B48: 1 | C48: 100 | D48: 100 | E48: Vertrieb_1 | F48: Hamburg | G48: 7 | H48: 2021-07-06
A49: 189 | B49: 1 | C49: 200 | D49: 110 | E49: Vertrieb_1 | F49: Hamburg | G49: 7 | H49: 2021-07-10
A50: 193 | B50: 1 | C50: 250 | D50: 120 | E50: Vertrieb_1 | F50: Hamburg | G50: 7 | H50: 2021-07-14
A51: 197 | B51: 1 | C51: 100 | D51: 100 | E51: Vertrieb_1 | F51: Hamburg | G51: 7 | H51: 2021-07-18
A52: 201 | B52: 1 | C52: 200 | D52: 110 | E52: Vertrieb_1 | F52: Hamburg | G52: 7 | H52: 2021-07-22
A53: 205 | B53: 1 | C53: 250 | D53: 120 | E53: Vertrieb_1 | F53: Hamburg | G53: 7 | H53: 2021-07-26
A54: 209 | B54: 1 | C54: 200 | D54: 110 | E54: Vertrieb_1 | F54: Hamburg | G54: 7 | H54: 2021-07-30
A55: 213 | B55: 1 | C55: 250 | D55: 120 | E55: Vertrieb_1 | F55: Hamburg | G55: 8 | H55: 2021-08-03
A56: 217 | B56: 1 | C56: 100 | D56: 100 | E56: Vertrieb_1 | F56: Hamburg | G56: 8 | H56: 2021-08-07
A57: 221 | B57: 1 | C57: 200 | D57: 110 | E57: Vertrieb_1 | F57: Hamburg | G57: 8 | H57: 2021-08-11
A58: 225 | B58: 1 | C58: 250 | D58: 120 | E58: Vertrieb_1 | F58: Hamburg | G58: 8 | H58: 2021-08-15
A59: 229 | B59: 1 | C59: 100 | D59: 100 | E59: Vertrieb_1 | F59: Hamburg | G59: 8 | H59: 2021-08-19
A60: 233 | B60: 1 | C60: 200 | D60: 110 | E60: Vertrieb_1 | F60: Hamburg | G60: 8 | H60: 2021-08-23
A61: 237 | B61: 1 | C61: 250 | D61: 120 | E61: Vertrieb_1 | F61: Hamburg | G61: 8 | H61: 2021-08-27
A62: 241 | B62: 1 | C62: 250 | D62: 120 | E62: Vertrieb_1 | F62: Hamburg | G62: 8 | H62: 2021-08-31
A63: 245 | B63: 1 | C63: 100 | D63: 100 | E63: Vertrieb_1 | F63: Hamburg | G63: 9 | H63: 2021-09-04
A64: 249 | B64: 1 | C64: 200 | D64: 110 | E64: Vertrieb_1 | F64: Hamburg | G64: 9 | H64: 2021-09-08
A65: 253 | B65: 1 | C65: 250 | D65: 120 | E65: Vertrieb_1 | F65: Hamburg | G65: 9 | H65: 2021-09-12
A66: 257 | B66: 1 | C66: 100 | D66: 100 | E66: Vertrieb_1 | F66: Hamburg | G66: 9 | H66: 2021-09-16
A67: 261 | B67: 1 | C67: 200 | D67: 110 | E67: Vertrieb_1 | F67: Hamburg | G67: 9 | H67: 2021-09-20
A68: 265 | B68: 1 | C68: 250 | D68: 120 | E68: Vertrieb_1 | F68: Hamburg | G68: 9 | H68: 2021-09-24
A69: 269 | B69: 1 | C69: 100 | D69: 100 | E69: Vertrieb_1 | F69: Hamburg | G69: 9 | H69: 2021-09-28
A70: 273 | B70: 1 | C70: 250 | D70: 120 | E70: Vertrieb_1 | F70: Hamburg | G70: 10 | H70: 2021-10-02
A71: 277 | B71: 1 | C71: 100 | D71: 100 | E71: Vertrieb_1 | F71: Hamburg | G71: 10 | H71: 2021-10-06
A72: 281 | B72: 1 | C72: 200 | D72: 110 | E72: Vertrieb_1 | F72: Hamburg | G72: 10 | H72: 2021-10-10
A73: 285 | B73: 1 | C73: 250 | D73: 120 | E73: Vertrieb_1 | F73: Hamburg | G73: 10 | H73: 2021-10-14
A74: 289 | B74: 1 | C74: 100 | D74: 100 | E74: Vertrieb_1 | F74: Hamburg | G74: 10 | H74: 2021-10-18
A75: 293 | B75: 1 | C75: 200 | D75: 110 | E75: Vertrieb_1 | F75: Hamburg | G75: 10 | H75: 2021-10-22
A76: 297 | B76: 1 | C76: 250 | D76: 120 | E76: Vertrieb_1 | F76: Hamburg | G76: 10 | H76: 2021-10-26
A77: 301 | B77: 1 | C77: 200 | D77: 110 | E77: Vertrieb_1 | F77: Hamburg | G77: 10 | H77: 2021-10-30
A78: 305 | B78: 1 | C78: 250 | D78: 120 | E78: Vertrieb_1 | F78: Hamburg | G78: 11 | H78: 2021-11-03
A79: 309 | B79: 1 | C79: 100 | D79: 100 | E79: Vertrieb_1 | F79: Hamburg | G79: 11 | H79: 2021-11-07
A80: 313 | B80: 1 | C80: 200 | D80: 110 | E80: Vertrieb_1 | F80: Hamburg | G80: 11 | H80: 2021-11-11
A81: 317 | B81: 1 | C81: 250 | D81: 120 | E81: Vertrieb_1 | F81: Hamburg | G81: 11 | H81: 2021-11-15
A82: 321 | B82: 1 | C82: 100 | D82: 100 | E82: Vertrieb_1 | F82: Hamburg | G82: 11 | H82: 2021-11-19
A83: 325 | B83: 1 | C83: 200 | D83: 110 | E83: Vertrieb_1 | F83: Hamburg | G83: 11 | H83: 2021-11-23
A84: 329 | B84: 1 | C84: 250 | D84: 120 | E84: Vertrieb_1 | F84: Hamburg | G84: 11 | H84: 2021-11-27
A85: 333 | B85: 1 | C85: 200 | D85: 110 | E85: Vertrieb_1 | F85: Hamburg | G85: 12 | H85: 2021-12-01
A86: 337 | B86: 1 | C86: 250 | D86: 120 | E86: Vertrieb_1 | F86: Hamburg | G86: 12 | H86: 2021-12-05
A87: 341 | B87: 1 | C87: 100 | D87: 100 | E87: Vertrieb_1 | F87: Hamburg | G87: 12 | H87: 2021-12-09
A88: 345 | B88: 1 | C88: 200 | D88: 110 | E88: Vertrieb_1 | F88: Hamburg | G88: 12 | H88: 2021-12-13
A89: 349 | B89: 1 | C89: 250 | D89: 120 | E89: Vertrieb_1 | F89: Hamburg | G89: 12 | H89: 2021-12-17
A90: 353 | B90: 1 | C90: 100 | D90: 100 | E90: Vertrieb_1 | F90: Hamburg | G90: 12 | H90: 2021-12-21
A91: 357 | B91: 1 | C91: 200 | D91: 110 | E91: Vertrieb_1 | F91: Hamburg | G91: 12 | H91: 2021-12-25
A92: 361 | B92: 1 | C92: 250 | D92: 120 | E92: Vertrieb_1 | F92: Hamburg | G92: 12 | H92: 2021-12-29
B93: =SUBTOTAL(9,B2:B92) -> 91 | C93: =SUBTOTAL(9,C2:C92) -> 17300 | E93: Vertrieb_1 Ergebnis
A94: 2 | B94: 1 | C94: 200 | D94: 110 | E94: Vertrieb_2 | F94: München | G94: 1 | H94: 2021-01-04
A95: 6 | B95: 1 | C95: 200 | D95: 110 | E95: Vertrieb_2 | F95: München | G95: 1 | H95: 2021-01-08
A96: 10 | B96: 1 | C96: 250 | D96: 120 | E96: Vertrieb_2 | F96: München | G96: 1 | H96: 2021-01-12
A97: 14 | B97: 1 | C97: 250 | D97: 120 | E97: Vertrieb_2 | F97: München | G97: 1 | H97: 2021-01-16
A98: 18 | B98: 1 | C98: 100 | D98: 100 | E98: Vertrieb_2 | F98: München | G98: 1 | H98: 2021-01-20
A99: 22 | B99: 1 | C99: 250 | D99: 120 | E99: Vertrieb_2 | F99: München | G99: 1 | H99: 2021-01-24
A100: 26 | B100: 1 | C100: 100 | D100: 100 | E100: Vertrieb_2 | F100: München | G100: 1 | H100: 2021-01-28
A101: 30 | B101: 1 | C101: 200 | D101: 110 | E101: Vertrieb_2 | F101: München | G101: 2 | H101: 2021-02-01
A102: 34 | B102: 1 | C102: 250 | D102: 120 | E102: Vertrieb_2 | F102: München | G102: 2 | H102: 2021-02-05
A103: 38 | B103: 1 | C103: 100 | D103: 100 | E103: Vertrieb_2 | F103: München | G103: 2 | H103: 2021-02-09
A104: 42 | B104: 1 | C104: 200 | D104: 110 | E104: Vertrieb_2 | F104: München | G104: 2 | H104: 2021-02-13
A105: 46 | B105: 1 | C105: 250 | D105: 120 | E105: Vertrieb_2 | F105: München | G105: 2 | H105: 2021-02-17
A106: 50 | B106: 1 | C106: 100 | D106: 100 | E106: Vertrieb_2 | F106: München | G106: 2 | H106: 2021-02-21
A107: 54 | B107: 1 | C107: 250 | D107: 120 | E107: Vertrieb_2 | F107: München | G107: 2 | H107: 2021-02-25
A108: 58 | B108: 1 | C108: 100 | D108: 100 | E108: Vertrieb_2 | F108: München | G108: 3 | H108: 2021-03-01
A109: 62 | B109: 1 | C109: 200 | D109: 110 | E109: Vertrieb_2 | F109: München | G109: 3 | H109: 2021-03-05
A110: 66 | B110: 1 | C110: 250 | D110: 120 | E110: Vertrieb_2 | F110: München | G110: 3 | H110: 2021-03-09
A111: 70 | B111: 1 | C111: 100 | D111: 100 | E111: Vertrieb_2 | F111: München | G111: 3 | H111: 2021-03-13
A112: 74 | B112: 1 | C112: 200 | D112: 110 | E112: Vertrieb_2 | F112: München | G112: 3 | H112: 2021-03-17
A113: 78 | B113: 1 | C113: 250 | D113: 120 | E113: Vertrieb_2 | F113: München | G113: 3 | H113: 2021-03-21
A114: 82 | B114: 1 | C114: 100 | D114: 100 | E114: Vertrieb_2 | F114: München | G114: 3 | H114: 2021-03-25
A115: 86 | B115: 1 | C115: 250 | D115: 120 | E115: Vertrieb_2 | F115: München | G115: 3 | H115: 2021-03-29
A116: 90 | B116: 1 | C116: 100 | D116: 100 | E116: Vertrieb_2 | F116: München | G116: 4 | H116: 2021-04-02
A117: 94 | B117: 1 | C117: 200 | D117: 110 | E117: Vertrieb_2 | F117: München | G117: 4 | H117: 2021-04-06
A118: 98 | B118: 1 | C118: 250 | D118: 120 | E118: Vertrieb_2 | F118: München | G118: 4 | H118: 2021-04-10
A119: 102 | B119: 1 | C119: 100 | D119: 100 | E119: Vertrieb_2 | F119: München | G119: 4 | H119: 2021-04-14
A120: 106 | B120: 1 | C120: 200 | D120: 110 | E120: Vertrieb_2 | F120: München | G120: 4 | H120: 2021-04-18
A121: 110 | B121: 1 | C121: 250 | D121: 120 | E121: Vertrieb_2 | F121: München | G121: 4 | H121: 2021-04-22
A122: 114 | B122: 1 | C122: 100 | D122: 100 | E122: Vertrieb_2 | F122: München | G122: 4 | H122: 2021-04-26
A123: 118 | B123: 1 | C123: 100 | D123: 100 | E123: Vertrieb_2 | F123: München | G123: 4 | H123: 2021-04-30
A124: 122 | B124: 1 | C124: 200 | D124: 110 | E124: Vertrieb_2 | F124: München | G124: 5 | H124: 2021-05-04
A125: 126 | B125: 1 | C125: 250 | D125: 120 | E125: Vertrieb_2 | F125: München | G125: 5 | H125: 2021-05-08
A126: 130 | B126: 1 | C126: 100 | D126: 100 | E126: Vertrieb_2 | F126: München | G126: 5 | H126: 2021-05-12
A127: 134 | B127: 1 | C127: 200 | D127: 110 | E127: Vertrieb_2 | F127: München | G127: 5 | H127: 2021-05-16
A128: 138 | B128: 1 | C128: 250 | D128: 120 | E128: Vertrieb_2 | F128: München | G128: 5 | H128: 2021-05-20
A129: 142 | B129: 1 | C129: 100 | D129: 100 | E129: Vertrieb_2 | F129: München | G129: 5 | H129: 2021-05-24
A130: 146 | B130: 1 | C130: 250 | D130: 120 | E130: Vertrieb_2 | F130: München | G130: 5 | H130: 2021-05-28
A131: 150 | B131: 1 | C131: 100 | D131: 100 | E131: Vertrieb_2 | F131: München | G131: 6 | H131: 2021-06-01
A132: 154 | B132: 1 | C132: 200 | D132: 110 | E132: Vertrieb_2 | F132: München | G132: 6 | H132: 2021-06-05
A133: 158 | B133: 1 | C133: 250 | D133: 120 | E133: Vertrieb_2 | F133: München | G133: 6 | H133: 2021-06-09
A134: 162 | B134: 1 | C134: 100 | D134: 100 | E134: Vertrieb_2 | F134: München | G134: 6 | H134: 2021-06-13
A135: 166 | B135: 1 | C135: 200 | D135: 110 | E135: Vertrieb_2 | F135: München | G135: 6 | H135: 2021-06-17
A136: 170 | B136: 1 | C136: 250 | D136: 120 | E136: Vertrieb_2 | F136: München | G136: 6 | H136: 2021-06-21
A137: 174 | B137: 1 | C137: 100 | D137: 100 | E137: Vertrieb_2 | F137: München | G137: 6 | H137: 2021-06-25
A138: 178 | B138: 1 | C138: 250 | D138: 120 | E138: Vertrieb_2 | F138: München | G138: 6 | H138: 2021-06-29
A139: 182 | B139: 1 | C139: 100 | D139: 100 | E139: Vertrieb_2 | F139: München | G139: 7 | H139: 2021-07-03
A140: 186 | B140: 1 | C140: 200 | D140: 110 | E140: Vertrieb_2 | F140: München | G140: 7 | H140: 2021-07-07
A141: 190 | B141: 1 | C141: 250 | D141: 120 | E141: Vertrieb_2 | F141: München | G141: 7 | H141: 2021-07-11
A142: 194 | B142: 1 | C142: 100 | D142: 100 | E142: Vertrieb_2 | F142: München | G142: 7 | H142: 2021-07-15
A143: 198 | B143: 1 | C143: 200 | D143: 110 | E143: Vertrieb_2 | F143: München | G143: 7 | H143: 2021-07-19
A144: 202 | B144: 1 | C144: 250 | D144: 120 | E144: Vertrieb_2 | F144: München | G144: 7 | H144: 2021-07-23
A145: 206 | B145: 1 | C145: 100 | D145: 100 | E145: Vertrieb_2 | F145: München | G145: 7 | H145: 2021-07-27
A146: 210 | B146: 1 | C146: 250 | D146: 120 | E146: Vertrieb_2 | F146: München | G146: 7 | H146: 2021-07-31
A147: 214 | B147: 1 | C147: 100 | D147: 100 | E147: Vertrieb_2 | F147: München | G147: 8 | H147: 2021-08-04
A148: 218 | B148: 1 | C148: 200 | D148: 110 | E148: Vertrieb_2 | F148: München | G148: 8 | H148: 2021-08-08
A149: 222 | B149: 1 | C149: 250 | D149: 120 | E149: Vertrieb_2 | F149: München | G149: 8 | H149: 2021-08-12
A150: 226 | B150: 1 | C150: 100 | D150: 100 | E150: Vertrieb_2 | F150: München | G150: 8 | H150: 2021-08-16
A151: 230 | B151: 1 | C151: 200 | D151: 110 | E151: Vertrieb_2 | F151: München | G151: 8 | H151: 2021-08-20
A152: 234 | B152: 1 | C152: 250 | D152: 120 | E152: Vertrieb_2 | F152: München | G152: 8 | H152: 2021-08-24
A153: 238 | B153: 1 | C153: 100 | D153: 100 | E153: Vertrieb_2 | F153: München | G153: 8 | H153: 2021-08-28
A154: 242 | B154: 1 | C154: 100 | D154: 100 | E154: Vertrieb_2 | F154: München | G154: 9 | H154: 2021-09-01
A155: 246 | B155: 1 | C155: 200 | D155: 110 | E155: Vertrieb_2 | F155: München | G155: 9 | H155: 2021-09-05
A156: 250 | B156: 1 | C156: 250 | D156: 120 | E156: Vertrieb_2 | F156: München | G156: 9 | H156: 2021-09-09
A157: 254 | B157: 1 | C157: 100 | D157: 100 | E157: Vertrieb_2 | F157: München | G157: 9 | H157: 2021-09-13
A158: 258 | B158: 1 | C158: 200 | D158: 110 | E158: Vertrieb_2 | F158: München | G158: 9 | H158: 2021-09-17
A159: 262 | B159: 1 | C159: 250 | D159: 120 | E159: Vertrieb_2 | F159: München | G159: 9 | H159: 2021-09-21
A160: 266 | B160: 1 | C160: 100 | D160: 100 | E160: Vertrieb_2 | F160: München | G160: 9 | H160: 2021-09-25
A161: 270 | B161: 1 | C161: 250 | D161: 120 | E161: Vertrieb_2 | F161: München | G161: 9 | H161: 2021-09-29
A162: 274 | B162: 1 | C162: 100 | D162: 100 | E162: Vertrieb_2 | F162: München | G162: 10 | H162: 2021-10-03
A163: 278 | B163: 1 | C163: 200 | D163: 110 | E163: Vertrieb_2 | F163: München | G163: 10 | H163: 2021-10-07
A164: 282 | B164: 1 | C164: 250 | D164: 120 | E164: Vertrieb_2 | F164: München | G164: 10 | H164: 2021-10-11
A165: 286 | B165: 1 | C165: 100 | D165: 100 | E165: Vertrieb_2 | F165: München | G165: 10 | H165: 2021-10-15
A166: 290 | B166: 1 | C166: 200 | D166: 110 | E166: Vertrieb_2 | F166: München | G166: 10 | H166: 2021-10-19
A167: 294 | B167: 1 | C167: 250 | D167: 120 | E167: Vertrieb_2 | F167: München | G167: 10 | H167: 2021-10-23
A168: 298 | B168: 1 | C168: 100 | D168: 100 | E168: Vertrieb_2 | F168: München | G168: 10 | H168: 2021-10-27
A169: 302 | B169: 1 | C169: 250 | D169: 120 | E169: Vertrieb_2 | F169: München | G169: 10 | H169: 2021-10-31
A170: 306 | B170: 1 | C170: 100 | D170: 100 | E170: Vertrieb_2 | F170: München | G170: 11 | H170: 2021-11-04
A171: 310 | B171: 1 | C171: 200 | D171: 110 | E171: Vertrieb_2 | F171: München | G171: 11 | H171: 2021-11-08
A172: 314 | B172: 1 | C172: 250 | D172: 120 | E172: Vertrieb_2 | F172: München | G172: 11 | H172: 2021-11-12
A173: 318 | B173: 1 | C173: 100 | D173: 100 | E173: Vertrieb_2 | F173: München | G173: 11 | H173: 2021-11-16
A174: 322 | B174: 1 | C174: 200 | D174: 110 | E174: Vertrieb_2 | F174: München | G174: 11 | H174: 2021-11-20
A175: 326 | B175: 1 | C175: 250 | D175: 120 | E175: Vertrieb_2 | F175: München | G175: 11 | H175: 2021-11-24
A176: 330 | B176: 1 | C176: 100 | D176: 100 | E176: Vertrieb_2 | F176: München | G176: 11 | H176: 2021-11-28
A177: 334 | B177: 1 | C177: 250 | D177: 120 | E177: Vertrieb_2 | F177: München | G177: 12 | H177: 2021-12-02
A178: 338 | B178: 1 | C178: 100 | D178: 100 | E178: Vertrieb_2 | F178: München | G178: 12 | H178: 2021-12-06
A179: 342 | B179: 1 | C179: 200 | D179: 110 | E179: Vertrieb_2 | F179: München | G179: 12 | H179: 2021-12-10
A180: 346 | B180: 1 | C180: 250 | D180: 120 | E180: Vertrieb_2 | F180: München | G180: 12 | H180: 2021-12-14
A181: 350 | B181: 1 | C181: 100 | D181: 100 | E181: Vertrieb_2 | F181: München | G181: 12 | H181: 2021-12-18
A182: 354 | B182: 1 | C182: 200 | D182: 110 | E182: Vertrieb_2 | F182: München | G182: 12 | H182: 2021-12-22
A183: 358 | B183: 1 | C183: 250 | D183: 120 | E183: Vertrieb_2 | F183: München | G183: 12 | H183: 2021-12-26
A184: 362 | B184: 1 | C184: 100 | D184: 100 | E184: Vertrieb_2 | F184: München | G184: 12 | H184: 2021-12-30
B185: =SUBTOTAL(9,B94:B184) -> 91 | C185: =SUBTOTAL(9,C94:C184) -> 16450 | E185: Vertrieb_2 Ergebnis
A186: 3 | B186: 1 | C186: 250 | D186: 120 | E186: Vertrieb_3 | F186: Köln | G186: 1 | H186: 2021-01-05
A187: 7 | B187: 1 | C187: 250 | D187: 120 | E187: Vertrieb_3 | F187: Köln | G187: 1 | H187: 2021-01-09
A188: 11 | B188: 1 | C188: 250 | D188: 120 | E188: Vertrieb_3 | F188: Köln | G188: 1 | H188: 2021-01-13
A189: 15 | B189: 1 | C189: 100 | D189: 100 | E189: Vertrieb_3 | F189: Köln | G189: 1 | H189: 2021-01-17
A190: 19 | B190: 1 | C190: 200 | D190: 110 | E190: Vertrieb_3 | F190: Köln | G190: 1 | H190: 2021-01-21
A191: 23 | B191: 1 | C191: 100 | D191: 100 | E191: Vertrieb_3 | F191: Köln | G191: 1 | H191: 2021-01-25
A192: 27 | B192: 1 | C192: 200 | D192: 110 | E192: Vertrieb_3 | F192: Köln | G192: 1 | H192: 2021-01-29
A193: 31 | B193: 1 | C193: 250 | D193: 120 | E193: Vertrieb_3 | F193: Köln | G193: 2 | H193: 2021-02-02
A194: 35 | B194: 1 | C194: 100 | D194: 100 | E194: Vertrieb_3 | F194: Köln | G194: 2 | H194: 2021-02-06
A195: 39 | B195: 1 | C195: 200 | D195: 110 | E195: Vertrieb_3 | F195: Köln | G195: 2 | H195: 2021-02-10
A196: 43 | B196: 1 | C196: 250 | D196: 120 | E196: Vertrieb_3 | F196: Köln | G196: 2 | H196: 2021-02-14
A197: 47 | B197: 1 | C197: 100 | D197: 100 | E197: Vertrieb_3 | F197: Köln | G197: 2 | H197: 2021-02-18
A198: 51 | B198: 1 | C198: 200 | D198: 110 | E198: Vertrieb_3 | F198: Köln | G198: 2 | H198: 2021-02-22
A199: 55 | B199: 1 | C199: 100 | D199: 100 | E199: Vertrieb_3 | F199: Köln | G199: 2 | H199: 2021-02-26
A200: 59 | B200: 1 | C200: 200 | D200: 110 | E200: Vertrieb_3 | F200: Köln | G200: 3 | H200: 2021-03-02
... 169 more rows

Sheet TE_Produkt
A1: lfd. Nr. | B1: Anzahl | C1: Umsatz | D1: Produkt | E1: Vertrieb | F1: Ort | G1: Monat | H1: Datum
A2: 1 | B2: 1 | C2: 100 | D2: 100 | E2: Vertrieb_1 | F2: Hamburg | G2: 1 | H2: 2021-01-03
A3: 4 | B3: 1 | C3: 100 | D3: 100 | E3: Vertrieb_4 | F3: Frankfurt am Main | G3: 1 | H3: 2021-01-06
A4: 8 | B4: 1 | C4: 100 | D4: 100 | E4: Vertrieb_4 | F4: Frankfurt am Main | G4: 1 | H4: 2021-01-10
A5: 12 | B5: 1 | C5: 100 | D5: 100 | E5: Vertrieb_4 | F5: Frankfurt am Main | G5: 1 | H5: 2021-01-14
A6: 15 | B6: 1 | C6: 100 | D6: 100 | E6: Vertrieb_3 | F6: Köln | G6: 1 | H6: 2021-01-17
A7: 18 | B7: 1 | C7: 100 | D7: 100 | E7: Vertrieb_2 | F7: München | G7: 1 | H7: 2021-01-20
A8: 21 | B8: 1 | C8: 100 | D8: 100 | E8: Vertrieb_1 | F8: Hamburg | G8: 1 | H8: 2021-01-23
A9: 23 | B9: 1 | C9: 100 | D9: 100 | E9: Vertrieb_3 | F9: Köln | G9: 1 | H9: 2021-01-25
A10: 26 | B10: 1 | C10: 100 | D10: 100 | E10: Vertrieb_2 | F10: München | G10: 1 | H10: 2021-01-28
A11: 29 | B11: 1 | C11: 100 | D11: 100 | E11: Vertrieb_1 | F11: Hamburg | G11: 1 | H11: 2021-01-31
A12: 32 | B12: 1 | C12: 100 | D12: 100 | E12: Vertrieb_4 | F12: Frankfurt am Main | G12: 2 | H12: 2021-02-03
A13: 35 | B13: 1 | C13: 100 | D13: 100 | E13: Vertrieb_3 | F13: Köln | G13: 2 | H13: 2021-02-06
A14: 38 | B14: 1 | C14: 100 | D14: 100 | E14: Vertrieb_2 | F14: München | G14: 2 | H14: 2021-02-09
A15: 41 | B15: 1 | C15: 100 | D15: 100 | E15: Vertrieb_1 | F15: Hamburg | G15: 2 | H15: 2021-02-12
A16: 44 | B16: 1 | C16: 100 | D16: 100 | E16: Vertrieb_4 | F16: Frankfurt am Main | G16: 2 | H16: 2021-02-15
A17: 47 | B17: 1 | C17: 100 | D17: 100 | E17: Vertrieb_3 | F17: Köln | G17: 2 | H17: 2021-02-18
A18: 50 | B18: 1 | C18: 100 | D18: 100 | E18: Vertrieb_2 | F18: München | G18: 2 | H18: 2021-02-21
A19: 55 | B19: 1 | C19: 100 | D19: 100 | E19: Vertrieb_3 | F19: Köln | G19: 2 | H19: 2021-02-26
A20: 58 | B20: 1 | C20: 100 | D20: 100 | E20: Vertrieb_2 | F20: München | G20: 3 | H20: 2021-03-01
A21: 61 | B21: 1 | C21: 100 | D21: 100 | E21: Vertrieb_1 | F21: Hamburg | G21: 3 | H21: 2021-03-04
A22: 64 | B22: 1 | C22: 100 | D22: 100 | E22: Vertrieb_4 | F22: Frankfurt am Main | G22: 3 | H22: 2021-03-07
A23: 67 | B23: 1 | C23: 100 | D23: 100 | E23: Vertrieb_3 | F23: Köln | G23: 3 | H23: 2021-03-10
A24: 70 | B24: 1 | C24: 100 | D24: 100 | E24: Vertrieb_2 | F24: München | G24: 3 | H24: 2021-03-13
A25: 73 | B25: 1 | C25: 100 | D25: 100 | E25: Vertrieb_1 | F25: Hamburg | G25: 3 | H25: 2021-03-16
A26: 76 | B26: 1 | C26: 100 | D26: 100 | E26: Vertrieb_4 | F26: Frankfurt am Main | G26: 3 | H26: 2021-03-19
A27: 79 | B27: 1 | C27: 100 | D27: 100 | E27: Vertrieb_3 | F27: Köln | G27: 3 | H27: 2021-03-22
A28: 82 | B28: 1 | C28: 100 | D28: 100 | E28: Vertrieb_2 | F28: München | G28: 3 | H28: 2021-03-25
A29: 84 | B29: 1 | C29: 100 | D29: 100 | E29: Vertrieb_4 | F29: Frankfurt am Main | G29: 3 | H29: 2021-03-27
A30: 87 | B30: 1 | C30: 100 | D30: 100 | E30: Vertrieb_3 | F30: Köln | G30: 3 | H30: 2021-03-30
A31: 90 | B31: 1 | C31: 100 | D31: 100 | E31: Vertrieb_2 | F31: München | G31: 4 | H31: 2021-04-02
A32: 93 | B32: 1 | C32: 100 | D32: 100 | E32: Vertrieb_1 | F32: Hamburg | G32: 4 | H32: 2021-04-05
A33: 96 | B33: 1 | C33: 100 | D33: 100 | E33: Vertrieb_4 | F33: Frankfurt am Main | G33: 4 | H33: 2021-04-08
A34: 99 | B34: 1 | C34: 100 | D34: 100 | E34: Vertrieb_3 | F34: Köln | G34: 4 | H34: 2021-04-11
A35: 102 | B35: 1 | C35: 100 | D35: 100 | E35: Vertrieb_2 | F35: München | G35: 4 | H35: 2021-04-14
A36: 105 | B36: 1 | C36: 100 | D36: 100 | E36: Vertrieb_1 | F36: Hamburg | G36: 4 | H36: 2021-04-17
A37: 108 | B37: 1 | C37: 100 | D37: 100 | E37: Vertrieb_4 | F37: Frankfurt am Main | G37: 4 | H37: 2021-04-20
A38: 111 | B38: 1 | C38: 100 | D38: 100 | E38: Vertrieb_3 | F38: Köln | G38: 4 | H38: 2021-04-23
A39: 114 | B39: 1 | C39: 100 | D39: 100 | E39: Vertrieb_2 | F39: München | G39: 4 | H39: 2021-04-26
A40: 115 | B40: 1 | C40: 100 | D40: 100 | E40: Vertrieb_3 | F40: Köln | G40: 4 | H40: 2021-04-27
A41: 118 | B41: 1 | C41: 100 | D41: 100 | E41: Vertrieb_2 | F41: München | G41: 4 | H41: 2021-04-30
A42: 121 | B42: 1 | C42: 100 | D42: 100 | E42: Vertrieb_1 | F42: Hamburg | G42: 5 | H42: 2021-05-03
A43: 124 | B43: 1 | C43: 100 | D43: 100 | E43: Vertrieb_4 | F43: Frankfurt am Main | G43: 5 | H43: 2021-05-06
A44: 127 | B44: 1 | C44: 100 | D44: 100 | E44: Vertrieb_3 | F44: Köln | G44: 5 | H44: 2021-05-09
A45: 130 | B45: 1 | C45: 100 | D45: 100 | E45: Vertrieb_2 | F45: München | G45: 5 | H45: 2021-05-12
A46: 133 | B46: 1 | C46: 100 | D46: 100 | E46: Vertrieb_1 | F46: Hamburg | G46: 5 | H46: 2021-05-15
A47: 136 | B47: 1 | C47: 100 | D47: 100 | E47: Vertrieb_4 | F47: Frankfurt am Main | G47: 5 | H47: 2021-05-18
A48: 139 | B48: 1 | C48: 100 | D48: 100 | E48: Vertrieb_3 | F48: Köln | G48: 5 | H48: 2021-05-21
A49: 142 | B49: 1 | C49: 100 | D49: 100 | E49: Vertrieb_2 | F49: München | G49: 5 | H49: 2021-05-24
A50: 145 | B50: 1 | C50: 100 | D50: 100 | E50: Vertrieb_1 | F50: Hamburg | G50: 5 | H50: 2021-05-27
A51: 147 | B51: 1 | C51: 100 | D51: 100 | E51: Vertrieb_3 | F51: Köln | G51: 5 | H51: 2021-05-29
A52: 150 | B52: 1 | C52: 100 | D52: 100 | E52: Vertrieb_2 | F52: München | G52: 6 | H52: 2021-06-01
A53: 153 | B53: 1 | C53: 100 | D53: 100 | E53: Vertrieb_1 | F53: Hamburg | G53: 6 | H53: 2021-06-04
A54: 156 | B54: 1 | C54: 100 | D54: 100 | E54: Vertrieb_4 | F54: Frankfurt am Main | G54: 6 | H54: 2021-06-07
A55: 159 | B55: 1 | C55: 100 | D55: 100 | E55: Vertrieb_3 | F55: Köln | G55: 6 | H55: 2021-06-10
A56: 162 | B56: 1 | C56: 100 | D56: 100 | E56: Vertrieb_2 | F56: München | G56: 6 | H56: 2021-06-13
A57: 165 | B57: 1 | C57: 100 | D57: 100 | E57: Vertrieb_1 | F57: Hamburg | G57: 6 | H57: 2021-06-16
A58: 168 | B58: 1 | C58: 100 | D58: 100 | E58: Vertrieb_4 | F58: Frankfurt am Main | G58: 6 | H58: 2021-06-19
A59: 171 | B59: 1 | C59: 100 | D59: 100 | E59: Vertrieb_3 | F59: Köln | G59: 6 | H59: 2021-06-22
A60: 174 | B60: 1 | C60: 100 | D60: 100 | E60: Vertrieb_2 | F60: München | G60: 6 | H60: 2021-06-25
A61: 179 | B61: 1 | C61: 100 | D61: 100 | E61: Vertrieb_3 | F61: Köln | G61: 6 | H61: 2021-06-30
A62: 182 | B62: 1 | C62: 100 | D62: 100 | E62: Vertrieb_2 | F62: München | G62: 7 | H62: 2021-07-03
A63: 185 | B63: 1 | C63: 100 | D63: 100 | E63: Vertrieb_1 | F63: Hamburg | G63: 7 | H63: 2021-07-06
A64: 188 | B64: 1 | C64: 100 | D64: 100 | E64: Vertrieb_4 | F64: Frankfurt am Main | G64: 7 | H64: 2021-07-09
A65: 191 | B65: 1 | C65: 100 | D65: 100 | E65: Vertrieb_3 | F65: Köln | G65: 7 | H65: 2021-07-12
A66: 194 | B66: 1 | C66: 100 | D66: 100 | E66: Vertrieb_2 | F66: München | G66: 7 | H66: 2021-07-15
A67: 197 | B67: 1 | C67: 100 | D67: 100 | E67: Vertrieb_1 | F67: Hamburg | G67: 7 | H67: 2021-07-18
A68: 200 | B68: 1 | C68: 100 | D68: 100 | E68: Vertrieb_4 | F68: Frankfurt am Main | G68: 7 | H68: 2021-07-21
A69: 203 | B69: 1 | C69: 100 | D69: 100 | E69: Vertrieb_3 | F69: Köln | G69: 7 | H69: 2021-07-24
A70: 206 | B70: 1 | C70: 100 | D70: 100 | E70: Vertrieb_2 | F70: München | G70: 7 | H70: 2021-07-27
A71: 208 | B71: 1 | C71: 100 | D71: 100 | E71: Vertrieb_4 | F71: Frankfurt am Main | G71: 7 | H71: 2021-07-29
A72: 211 | B72: 1 | C72: 100 | D72: 100 | E72: Vertrieb_3 | F72: Köln | G72: 8 | H72: 2021-08-01
A73: 214 | B73: 1 | C73: 100 | D73: 100 | E73: Vertrieb_2 | F73: München | G73: 8 | H73: 2021-08-04
A74: 217 | B74: 1 | C74: 100 | D74: 100 | E74: Vertrieb_1 | F74: Hamburg | G74: 8 | H74: 2021-08-07
A75: 220 | B75: 1 | C75: 100 | D75: 100 | E75: Vertrieb_4 | F75: Frankfurt am Main | G75: 8 | H75: 2021-08-10
A76: 223 | B76: 1 | C76: 100 | D76: 100 | E76: Vertrieb_3 | F76: Köln | G76: 8 | H76: 2021-08-13
A77: 226 | B77: 1 | C77: 100 | D77: 100 | E77: Vertrieb_2 | F77: München | G77: 8 | H77: 2021-08-16
A78: 229 | B78: 1 | C78: 100 | D78: 100 | E78: Vertrieb_1 | F78: Hamburg | G78: 8 | H78: 2021-08-19
A79: 232 | B79: 1 | C79: 100 | D79: 100 | E79: Vertrieb_4 | F79: Frankfurt am Main | G79: 8 | H79: 2021-08-22
A80: 235 | B80: 1 | C80: 100 | D80: 100 | E80: Vertrieb_3 | F80: Köln | G80: 8 | H80: 2021-08-25
A81: 238 | B81: 1 | C81: 100 | D81: 100 | E81: Vertrieb_2 | F81: München | G81: 8 | H81: 2021-08-28
A82: 239 | B82: 1 | C82: 100 | D82: 100 | E82: Vertrieb_3 | F82: Köln | G82: 8 | H82: 2021-08-29
A83: 242 | B83: 1 | C83: 100 | D83: 100 | E83: Vertrieb_2 | F83: München | G83: 9 | H83: 2021-09-01
A84: 245 | B84: 1 | C84: 100 | D84: 100 | E84: Vertrieb_1 | F84: Hamburg | G84: 9 | H84: 2021-09-04
A85: 248 | B85: 1 | C85: 100 | D85: 100 | E85: Vertrieb_4 | F85: Frankfurt am Main | G85: 9 | H85: 2021-09-07
A86: 251 | B86: 1 | C86: 100 | D86: 100 | E86: Vertrieb_3 | F86: Köln | G86: 9 | H86: 2021-09-10
A87: 254 | B87: 1 | C87: 100 | D87: 100 | E87: Vertrieb_2 | F87: München | G87: 9 | H87: 2021-09-13
A88: 257 | B88: 1 | C88: 100 | D88: 100 | E88: Vertrieb_1 | F88: Hamburg | G88: 9 | H88: 2021-09-16
A89: 260 | B89: 1 | C89: 100 | D89: 100 | E89: Vertrieb_4 | F89: Frankfurt am Main | G89: 9 | H89: 2021-09-19
A90: 263 | B90: 1 | C90: 100 | D90: 100 | E90: Vertrieb_3 | F90: Köln | G90: 9 | H90: 2021-09-22
A91: 266 | B91: 1 | C91: 100 | D91: 100 | E91: Vertrieb_2 | F91: München | G91: 9 | H91: 2021-09-25
A92: 269 | B92: 1 | C92: 100 | D92: 100 | E92: Vertrieb_1 | F92: Hamburg | G92: 9 | H92: 2021-09-28
A93: 271 | B93: 1 | C93: 100 | D93: 100 | E93: Vertrieb_3 | F93: Köln | G93: 9 | H93: 2021-09-30
A94: 274 | B94: 1 | C94: 100 | D94: 100 | E94: Vertrieb_2 | F94: München | G94: 10 | H94: 2021-10-03
A95: 277 | B95: 1 | C95: 100 | D95: 100 | E95: Vertrieb_1 | F95: Hamburg | G95: 10 | H95: 2021-10-06
A96: 280 | B96: 1 | C96: 100 | D96: 100 | E96: Vertrieb_4 | F96: Frankfurt am Main | G96: 10 | H96: 2021-10-09
A97: 283 | B97: 1 | C97: 100 | D97: 100 | E97: Vertrieb_3 | F97: Köln | G97: 10 | H97: 2021-10-12
A98: 286 | B98: 1 | C98: 100 | D98: 100 | E98: Vertrieb_2 | F98: München | G98: 10 | H98: 2021-10-15
A99: 289 | B99: 1 | C99: 100 | D99: 100 | E99: Vertrieb_1 | F99: Hamburg | G99: 10 | H99: 2021-10-18
A100: 292 | B100: 1 | C100: 100 | D100: 100 | E100: Vertrieb_4 | F100: Frankfurt am Main | G100: 10 | H100: 2021-10-21
A101: 295 | B101: 1 | C101: 100 | D101: 100 | E101: Vertrieb_3 | F101: Köln | G101: 10 | H101: 2021-10-24
A102: 298 | B102: 1 | C102: 100 | D102: 100 | E102: Vertrieb_2 | F102: München | G102: 10 | H102: 2021-10-27
A103: 303 | B103: 1 | C103: 100 | D103: 100 | E103: Vertrieb_3 | F103: Köln | G103: 11 | H103: 2021-11-01
A104: 306 | B104: 1 | C104: 100 | D104: 100 | E104: Vertrieb_2 | F104: München | G104: 11 | H104: 2021-11-04
A105: 309 | B105: 1 | C105: 100 | D105: 100 | E105: Vertrieb_1 | F105: Hamburg | G105: 11 | H105: 2021-11-07
A106: 312 | B106: 1 | C106: 100 | D106: 100 | E106: Vertrieb_4 | F106: Frankfurt am Main | G106: 11 | H106: 2021-11-10
A107: 315 | B107: 1 | C107: 100 | D107: 100 | E107: Vertrieb_3 | F107: Köln | G107: 11 | H107: 2021-11-13
A108: 318 | B108: 1 | C108: 100 | D108: 100 | E108: Vertrieb_2 | F108: München | G108: 11 | H108: 2021-11-16
A109: 321 | B109: 1 | C109: 100 | D109: 100 | E109: Vertrieb_1 | F109: Hamburg | G109: 11 | H109: 2021-11-19
A110: 324 | B110: 1 | C110: 100 | D110: 100 | E110: Vertrieb_4 | F110: Frankfurt am Main | G110: 11 | H110: 2021-11-22
A111: 327 | B111: 1 | C111: 100 | D111: 100 | E111: Vertrieb_3 | F111: Köln | G111: 11 | H111: 2021-11-25
A112: 330 | B112: 1 | C112: 100 | D112: 100 | E112: Vertrieb_2 | F112: München | G112: 11 | H112: 2021-11-28
A113: 332 | B113: 1 | C113: 100 | D113: 100 | E113: Vertrieb_4 | F113: Frankfurt am Main | G113: 11 | H113: 2021-11-30
A114: 335 | B114: 1 | C114: 100 | D114: 100 | E114: Vertrieb_3 | F114: Köln | G114: 12 | H114: 2021-12-03
A115: 338 | B115: 1 | C115: 100 | D115: 100 | E115: Vertrieb_2 | F115: München | G115: 12 | H115: 2021-12-06
A116: 341 | B116: 1 | C116: 100 | D116: 100 | E116: Vertrieb_1 | F116: Hamburg | G116: 12 | H116: 2021-12-09
A117: 344 | B117: 1 | C117: 100 | D117: 100 | E117: Vertrieb_4 | F117: Frankfurt am Main | G117: 12 | H117: 2021-12-12
A118: 347 | B118: 1 | C118: 100 | D118: 100 | E118: Vertrieb_3 | F118: Köln | G118: 12 | H118: 2021-12-15
A119: 350 | B119: 1 | C119: 100 | D119: 100 | E119: Vertrieb_2 | F119: München | G119: 12 | H119: 2021-12-18
A120: 353 | B120: 1 | C120: 100 | D120: 100 | E120: Vertrieb_1 | F120: Hamburg | G120: 12 | H120: 2021-12-21
A121: 356 | B121: 1 | C121: 100 | D121: 100 | E121: Vertrieb_4 | F121: Frankfurt am Main | G121: 12 | H121: 2021-12-24
A122: 359 | B122: 1 | C122: 100 | D122: 100 | E122: Vertrieb_3 | F122: Köln | G122: 12 | H122: 2021-12-27
A123: 362 | B123: 1 | C123: 100 | D123: 100 | E123: Vertrieb_2 | F123: München | G123: 12 | H123: 2021-12-30
A124: 363 | B124: 1 | C124: 100 | D124: 100 | E124: Vertrieb_3 | F124: Köln | G124: 12 | H124: 2021-12-31
B125: =SUBTOTAL(9,B2:B124) -> 123 | C125: =SUBTOTAL(9,C2:C124) -> 12300 | D125: 100 Ergebnis
A126: 2 | B126: 1 | C126: 200 | D126: 110 | E126: Vertrieb_2 | F126: München | G126: 1 | H126: 2021-01-04
A127: 5 | B127: 1 | C127: 200 | D127: 110 | E127: Vertrieb_1 | F127: Hamburg | G127: 1 | H127: 2021-01-07
A128: 6 | B128: 1 | C128: 200 | D128: 110 | E128: Vertrieb_2 | F128: München | G128: 1 | H128: 2021-01-08
A129: 9 | B129: 1 | C129: 200 | D129: 110 | E129: Vertrieb_1 | F129: Hamburg | G129: 1 | H129: 2021-01-11
A130: 13 | B130: 1 | C130: 200 | D130: 110 | E130: Vertrieb_1 | F130: Hamburg | G130: 1 | H130: 2021-01-15
A131: 16 | B131: 1 | C131: 200 | D131: 110 | E131: Vertrieb_4 | F131: Frankfurt am Main | G131: 1 | H131: 2021-01-18
A132: 19 | B132: 1 | C132: 200 | D132: 110 | E132: Vertrieb_3 | F132: Köln | G132: 1 | H132: 2021-01-21
A133: 24 | B133: 1 | C133: 200 | D133: 110 | E133: Vertrieb_4 | F133: Frankfurt am Main | G133: 1 | H133: 2021-01-26
A134: 27 | B134: 1 | C134: 200 | D134: 110 | E134: Vertrieb_3 | F134: Köln | G134: 1 | H134: 2021-01-29
A135: 30 | B135: 1 | C135: 200 | D135: 110 | E135: Vertrieb_2 | F135: München | G135: 2 | H135: 2021-02-01
A136: 33 | B136: 1 | C136: 200 | D136: 110 | E136: Vertrieb_1 | F136: Hamburg | G136: 2 | H136: 2021-02-04
A137: 36 | B137: 1 | C137: 200 | D137: 110 | E137: Vertrieb_4 | F137: Frankfurt am Main | G137: 2 | H137: 2021-02-07
A138: 39 | B138: 1 | C138: 200 | D138: 110 | E138: Vertrieb_3 | F138: Köln | G138: 2 | H138: 2021-02-10
A139: 42 | B139: 1 | C139: 200 | D139: 110 | E139: Vertrieb_2 | F139: München | G139: 2 | H139: 2021-02-13
A140: 45 | B140: 1 | C140: 200 | D140: 110 | E140: Vertrieb_1 | F140: Hamburg | G140: 2 | H140: 2021-02-16
A141: 48 | B141: 1 | C141: 200 | D141: 110 | E141: Vertrieb_4 | F141: Frankfurt am Main | G141: 2 | H141: 2021-02-19
A142: 51 | B142: 1 | C142: 200 | D142: 110 | E142: Vertrieb_3 | F142: Köln | G142: 2 | H142: 2021-02-22
A143: 53 | B143: 1 | C143: 200 | D143: 110 | E143: Vertrieb_1 | F143: Hamburg | G143: 2 | H143: 2021-02-24
A144: 56 | B144: 1 | C144: 200 | D144: 110 | E144: Vertrieb_4 | F144: Frankfurt am Main | G144: 2 | H144: 2021-02-27
A145: 59 | B145: 1 | C145: 200 | D145: 110 | E145: Vertrieb_3 | F145: Köln | G145: 3 | H145: 2021-03-02
A146: 62 | B146: 1 | C146: 200 | D146: 110 | E146: Vertrieb_2 | F146: München | G146: 3 | H146: 2021-03-05
A147: 65 | B147: 1 | C147: 200 | D147: 110 | E147: Vertrieb_1 | F147: Hamburg | G147: 3 | H147: 2021-03-08
A148: 68 | B148: 1 | C148: 200 | D148: 110 | E148: Vertrieb_4 | F148: Frankfurt am Main | G148: 3 | H148: 2021-03-11
A149: 71 | B149: 1 | C149: 200 | D149: 110 | E149: Vertrieb_3 | F149: Köln | G149: 3 | H149: 2021-03-14
A150: 74 | B150: 1 | C150: 200 | D150: 110 | E150: Vertrieb_2 | F150: München | G150: 3 | H150: 2021-03-17
A151: 77 | B151: 1 | C151: 200 | D151: 110 | E151: Vertrieb_1 | F151: Hamburg | G151: 3 | H151: 2021-03-20
A152: 80 | B152: 1 | C152: 200 | D152: 110 | E152: Vertrieb_4 | F152: Frankfurt am Main | G152: 3 | H152: 2021-03-23
A153: 83 | B153: 1 | C153: 200 | D153: 110 | E153: Vertrieb_3 | F153: Köln | G153: 3 | H153: 2021-03-26
A154: 85 | B154: 1 | C154: 200 | D154: 110 | E154: Vertrieb_1 | F154: Hamburg | G154: 3 | H154: 2021-03-28
A155: 88 | B155: 1 | C155: 200 | D155: 110 | E155: Vertrieb_4 | F155: Frankfurt am Main | G155: 3 | H155: 2021-03-31
A156: 91 | B156: 1 | C156: 200 | D156: 110 | E156: Vertrieb_3 | F156: Köln | G156: 4 | H156: 2021-04-03
A157: 94 | B157: 1 | C157: 200 | D157: 110 | E157: Vertrieb_2 | F157: München | G157: 4 | H157: 2021-04-06
A158: 97 | B158: 1 | C158: 200 | D158: 110 | E158: Vertrieb_1 | F158: Hamburg | G158: 4 | H158: 2021-04-09
A159: 100 | B159: 1 | C159: 200 | D159: 110 | E159: Vertrieb_4 | F159: Frankfurt am Main | G159: 4 | H159: 2021-04-12
A160: 103 | B160: 1 | C160: 200 | D160: 110 | E160: Vertrieb_3 | F160: Köln | G160: 4 | H160: 2021-04-15
A161: 106 | B161: 1 | C161: 200 | D161: 110 | E161: Vertrieb_2 | F161: München | G161: 4 | H161: 2021-04-18
A162: 109 | B162: 1 | C162: 200 | D162: 110 | E162: Vertrieb_1 | F162: Hamburg | G162: 4 | H162: 2021-04-21
A163: 112 | B163: 1 | C163: 200 | D163: 110 | E163: Vertrieb_4 | F163: Frankfurt am Main | G163: 4 | H163: 2021-04-24
A164: 116 | B164: 1 | C164: 200 | D164: 110 | E164: Vertrieb_4 | F164: Frankfurt am Main | G164: 4 | H164: 2021-04-28
A165: 119 | B165: 1 | C165: 200 | D165: 110 | E165: Vertrieb_3 | F165: Köln | G165: 5 | H165: 2021-05-01
A166: 122 | B166: 1 | C166: 200 | D166: 110 | E166: Vertrieb_2 | F166: München | G166: 5 | H166: 2021-05-04
A167: 125 | B167: 1 | C167: 200 | D167: 110 | E167: Vertrieb_1 | F167: Hamburg | G167: 5 | H167: 2021-05-07
A168: 128 | B168: 1 | C168: 200 | D168: 110 | E168: Vertrieb_4 | F168: Frankfurt am Main | G168: 5 | H168: 2021-05-10
A169: 131 | B169: 1 | C169: 200 | D169: 110 | E169: Vertrieb_3 | F169: Köln | G169: 5 | H169: 2021-05-13
A170: 134 | B170: 1 | C170: 200 | D170: 110 | E170: Vertrieb_2 | F170: München | G170: 5 | H170: 2021-05-16
A171: 137 | B171: 1 | C171: 200 | D171: 110 | E171: Vertrieb_1 | F171: Hamburg | G171: 5 | H171: 2021-05-19
A172: 140 | B172: 1 | C172: 200 | D172: 110 | E172: Vertrieb_4 | F172: Frankfurt am Main | G172: 5 | H172: 2021-05-22
A173: 143 | B173: 1 | C173: 200 | D173: 110 | E173: Vertrieb_3 | F173: Köln | G173: 5 | H173: 2021-05-25
A174: 148 | B174: 1 | C174: 200 | D174: 110 | E174: Vertrieb_4 | F174: Frankfurt am Main | G174: 5 | H174: 2021-05-30
A175: 151 | B175: 1 | C175: 200 | D175: 110 | E175: Vertrieb_3 | F175: Köln | G175: 6 | H175: 2021-06-02
A176: 154 | B176: 1 | C176: 200 | D176: 110 | E176: Vertrieb_2 | F176: München | G176: 6 | H176: 2021-06-05
A177: 157 | B177: 1 | C177: 200 | D177: 110 | E177: Vertrieb_1 | F177: Hamburg | G177: 6 | H177: 2021-06-08
A178: 160 | B178: 1 | C178: 200 | D178: 110 | E178: Vertrieb_4 | F178: Frankfurt am Main | G178: 6 | H178: 2021-06-11
A179: 163 | B179: 1 | C179: 200 | D179: 110 | E179: Vertrieb_3 | F179: Köln | G179: 6 | H179: 2021-06-14
A180: 166 | B180: 1 | C180: 200 | D180: 110 | E180: Vertrieb_2 | F180: München | G180: 6 | H180: 2021-06-17
A181: 169 | B181: 1 | C181: 200 | D181: 110 | E181: Vertrieb_1 | F181: Hamburg | G181: 6 | H181: 2021-06-20
A182: 172 | B182: 1 | C182: 200 | D182: 110 | E182: Vertrieb_4 | F182: Frankfurt am Main | G182: 6 | H182: 2021-06-23
A183: 175 | B183: 1 | C183: 200 | D183: 110 | E183: Vertrieb_3 | F183: Köln | G183: 6 | H183: 2021-06-26
A184: 177 | B184: 1 | C184: 200 | D184: 110 | E184: Vertrieb_1 | F184: Hamburg | G184: 6 | H184: 2021-06-28
A185: 180 | B185: 1 | C185: 200 | D185: 110 | E185: Vertrieb_4 | F185: Frankfurt am Main | G185: 7 | H185: 2021-07-01
A186: 183 | B186: 1 | C186: 200 | D186: 110 | E186: Vertrieb_3 | F186: Köln | G186: 7 | H186: 2021-07-04
A187: 186 | B187: 1 | C187: 200 | D187: 110 | E187: Vertrieb_2 | F187: München | G187: 7 | H187: 2021-07-07
A188: 189 | B188: 1 | C188: 200 | D188: 110 | E188: Vertrieb_1 | F188: Hamburg | G188: 7 | H188: 2021-07-10
A189: 192 | B189: 1 | C189: 200 | D189: 110 | E189: Vertrieb_4 | F189: Frankfurt am Main | G189: 7 | H189: 2021-07-13
A190: 195 | B190: 1 | C190: 200 | D190: 110 | E190: Vertrieb_3 | F190: Köln | G190: 7 | H190: 2021-07-16
A191: 198 | B191: 1 | C191: 200 | D191: 110 | E191: Vertrieb_2 | F191: München | G191: 7 | H191: 2021-07-19
A192: 201 | B192: 1 | C192: 200 | D192: 110 | E192: Vertrieb_1 | F192: Hamburg | G192: 7 | H192: 2021-07-22
A193: 204 | B193: 1 | C193: 200 | D193: 110 | E193: Vertrieb_4 | F193: Frankfurt am Main | G193: 7 | H193: 2021-07-25
A194: 207 | B194: 1 | C194: 200 | D194: 110 | E194: Vertrieb_3 | F194: Köln | G194: 7 | H194: 2021-07-28
A195: 209 | B195: 1 | C195: 200 | D195: 110 | E195: Vertrieb_1 | F195: Hamburg | G195: 7 | H195: 2021-07-30
A196: 212 | B196: 1 | C196: 200 | D196: 110 | E196: Vertrieb_4 | F196: Frankfurt am Main | G196: 8 | H196: 2021-08-02
A197: 215 | B197: 1 | C197: 200 | D197: 110 | E197: Vertrieb_3 | F197: Köln | G197: 8 | H197: 2021-08-05
A198: 218 | B198: 1 | C198: 200 | D198: 110 | E198: Vertrieb_2 | F198: München | G198: 8 | H198: 2021-08-08
A199: 221 | B199: 1 | C199: 200 | D199: 110 | E199: Vertrieb_1 | F199: Hamburg | G199: 8 | H199: 2021-08-11
A200: 224 | B200: 1 | C200: 200 | D200: 110 | E200: Vertrieb_4 | F200: Frankfurt am Main | G200: 8 | H200: 2021-08-14
... 168 more rows

Sheet TE_Ort
A1: lfd. Nr. | B1: Anzahl | C1: Umsatz | D1: Produkt | E1: Vertrieb | F1: Ort | G1: Monat | H1: Datum
A2: 4 | B2: 1 | C2: 100 | D2: 100 | E2: Vertrieb_4 | F2: Frankfurt am Main | G2: 1 | H2: 2021-01-06
A3: 8 | B3: 1 | C3: 100 | D3: 100 | E3: Vertrieb_4 | F3: Frankfurt am Main | G3: 1 | H3: 2021-01-10
A4: 12 | B4: 1 | C4: 100 | D4: 100 | E4: Vertrieb_4 | F4: Frankfurt am Main | G4: 1 | H4: 2021-01-14
A5: 16 | B5: 1 | C5: 200 | D5: 110 | E5: Vertrieb_4 | F5: Frankfurt am Main | G5: 1 | H5: 2021-01-18
A6: 20 | B6: 1 | C6: 250 | D6: 120 | E6: Vertrieb_4 | F6: Frankfurt am Main | G6: 1 | H6: 2021-01-22
A7: 24 | B7: 1 | C7: 200 | D7: 110 | E7: Vertrieb_4 | F7: Frankfurt am Main | G7: 1 | H7: 2021-01-26
A8: 28 | B8: 1 | C8: 250 | D8: 120 | E8: Vertrieb_4 | F8: Frankfurt am Main | G8: 1 | H8: 2021-01-30
A9: 32 | B9: 1 | C9: 100 | D9: 100 | E9: Vertrieb_4 | F9: Frankfurt am Main | G9: 2 | H9: 2021-02-03
A10: 36 | B10: 1 | C10: 200 | D10: 110 | E10: Vertrieb_4 | F10: Frankfurt am Main | G10: 2 | H10: 2021-02-07
A11: 40 | B11: 1 | C11: 250 | D11: 120 | E11: Vertrieb_4 | F11: Frankfurt am Main | G11: 2 | H11: 2021-02-11
A12: 44 | B12: 1 | C12: 100 | D12: 100 | E12: Vertrieb_4 | F12: Frankfurt am Main | G12: 2 | H12: 2021-02-15
A13: 48 | B13: 1 | C13: 200 | D13: 110 | E13: Vertrieb_4 | F13: Frankfurt am Main | G13: 2 | H13: 2021-02-19
A14: 52 | B14: 1 | C14: 250 | D14: 120 | E14: Vertrieb_4 | F14: Frankfurt am Main | G14: 2 | H14: 2021-02-23
A15: 56 | B15: 1 | C15: 200 | D15: 110 | E15: Vertrieb_4 | F15: Frankfurt am Main | G15: 2 | H15: 2021-02-27
A16: 60 | B16: 1 | C16: 250 | D16: 120 | E16: Vertrieb_4 | F16: Frankfurt am Main | G16: 3 | H16: 2021-03-03
A17: 64 | B17: 1 | C17: 100 | D17: 100 | E17: Vertrieb_4 | F17: Frankfurt am Main | G17: 3 | H17: 2021-03-07
A18: 68 | B18: 1 | C18: 200 | D18: 110 | E18: Vertrieb_4 | F18: Frankfurt am Main | G18: 3 | H18: 2021-03-11
A19: 72 | B19: 1 | C19: 250 | D19: 120 | E19: Vertrieb_4 | F19: Frankfurt am Main | G19: 3 | H19: 2021-03-15
A20: 76 | B20: 1 | C20: 100 | D20: 100 | E20: Vertrieb_4 | F20: Frankfurt am Main | G20: 3 | H20: 2021-03-19
A21: 80 | B21: 1 | C21: 200 | D21: 110 | E21: Vertrieb_4 | F21: Frankfurt am Main | G21: 3 | H21: 2021-03-23
A22: 84 | B22: 1 | C22: 100 | D22: 100 | E22: Vertrieb_4 | F22: Frankfurt am Main | G22: 3 | H22: 2021-03-27
A23: 88 | B23: 1 | C23: 200 | D23: 110 | E23: Vertrieb_4 | F23: Frankfurt am Main | G23: 3 | H23: 2021-03-31
A24: 92 | B24: 1 | C24: 250 | D24: 120 | E24: Vertrieb_4 | F24: Frankfurt am Main | G24: 4 | H24: 2021-04-04
A25: 96 | B25: 1 | C25: 100 | D25: 100 | E25: Vertrieb_4 | F25: Frankfurt am Main | G25: 4 | H25: 2021-04-08
A26: 100 | B26: 1 | C26: 200 | D26: 110 | E26: Vertrieb_4 | F26: Frankfurt am Main | G26: 4 | H26: 2021-04-12
A27: 104 | B27: 1 | C27: 250 | D27: 120 | E27: Vertrieb_4 | F27: Frankfurt am Main | G27: 4 | H27: 2021-04-16
A28: 108 | B28: 1 | C28: 100 | D28: 100 | E28: Vertrieb_4 | F28: Frankfurt am Main | G28: 4 | H28: 2021-04-20
A29: 112 | B29: 1 | C29: 200 | D29: 110 | E29: Vertrieb_4 | F29: Frankfurt am Main | G29: 4 | H29: 2021-04-24
A30: 116 | B30: 1 | C30: 200 | D30: 110 | E30: Vertrieb_4 | F30: Frankfurt am Main | G30: 4 | H30: 2021-04-28
A31: 120 | B31: 1 | C31: 250 | D31: 120 | E31: Vertrieb_4 | F31: Frankfurt am Main | G31: 5 | H31: 2021-05-02
A32: 124 | B32: 1 | C32: 100 | D32: 100 | E32: Vertrieb_4 | F32: Frankfurt am Main | G32: 5 | H32: 2021-05-06
A33: 128 | B33: 1 | C33: 200 | D33: 110 | E33: Vertrieb_4 | F33: Frankfurt am Main | G33: 5 | H33: 2021-05-10
A34: 132 | B34: 1 | C34: 250 | D34: 120 | E34: Vertrieb_4 | F34: Frankfurt am Main | G34: 5 | H34: 2021-05-14
A35: 136 | B35: 1 | C35: 100 | D35: 100 | E35: Vertrieb_4 | F35: Frankfurt am Main | G35: 5 | H35: 2021-05-18
A36: 140 | B36: 1 | C36: 200 | D36: 110 | E36: Vertrieb_4 | F36: Frankfurt am Main | G36: 5 | H36: 2021-05-22
A37: 144 | B37: 1 | C37: 250 | D37: 120 | E37: Vertrieb_4 | F37: Frankfurt am Main | G37: 5 | H37: 2021-05-26
A38: 148 | B38: 1 | C38: 200 | D38: 110 | E38: Vertrieb_4 | F38: Frankfurt am Main | G38: 5 | H38: 2021-05-30
A39: 152 | B39: 1 | C39: 250 | D39: 120 | E39: Vertrieb_4 | F39: Frankfurt am Main | G39: 6 | H39: 2021-06-03
A40: 156 | B40: 1 | C40: 100 | D40: 100 | E40: Vertrieb_4 | F40: Frankfurt am Main | G40: 6 | H40: 2021-06-07
A41: 160 | B41: 1 | C41: 200 | D41: 110 | E41: Vertrieb_4 | F41: Frankfurt am Main | G41: 6 | H41: 2021-06-11
A42: 164 | B42: 1 | C42: 250 | D42: 120 | E42: Vertrieb_4 | F42: Frankfurt am Main | G42: 6 | H42: 2021-06-15
A43: 168 | B43: 1 | C43: 100 | D43: 100 | E43: Vertrieb_4 | F43: Frankfurt am Main | G43: 6 | H43: 2021-06-19
A44: 172 | B44: 1 | C44: 200 | D44: 110 | E44: Vertrieb_4 | F44: Frankfurt am Main | G44: 6 | H44: 2021-06-23
A45: 176 | B45: 1 | C45: 250 | D45: 120 | E45: Vertrieb_4 | F45: Frankfurt am Main | G45: 6 | H45: 2021-06-27
A46: 180 | B46: 1 | C46: 200 | D46: 110 | E46: Vertrieb_4 | F46: Frankfurt am Main | G46: 7 | H46: 2021-07-01
A47: 184 | B47: 1 | C47: 250 | D47: 120 | E47: Vertrieb_4 | F47: Frankfurt am Main | G47: 7 | H47: 2021-07-05
A48: 188 | B48: 1 | C48: 100 | D48: 100 | E48: Vertrieb_4 | F48: Frankfurt am Main | G48: 7 | H48: 2021-07-09
A49: 192 | B49: 1 | C49: 200 | D49: 110 | E49: Vertrieb_4 | F49: Frankfurt am Main | G49: 7 | H49: 2021-07-13
A50: 196 | B50: 1 | C50: 250 | D50: 120 | E50: Vertrieb_4 | F50: Frankfurt am Main | G50: 7 | H50: 2021-07-17
A51: 200 | B51: 1 | C51: 100 | D51: 100 | E51: Vertrieb_4 | F51: Frankfurt am Main | G51: 7 | H51: 2021-07-21
A52: 204 | B52: 1 | C52: 200 | D52: 110 | E52: Vertrieb_4 | F52: Frankfurt am Main | G52: 7 | H52: 2021-07-25
A53: 208 | B53: 1 | C53: 100 | D53: 100 | E53: Vertrieb_4 | F53: Frankfurt am Main | G53: 7 | H53: 2021-07-29
A54: 212 | B54: 1 | C54: 200 | D54: 110 | E54: Vertrieb_4 | F54: Frankfurt am Main | G54: 8 | H54: 2021-08-02
A55: 216 | B55: 1 | C55: 250 | D55: 120 | E55: Vertrieb_4 | F55: Frankfurt am Main | G55: 8 | H55: 2021-08-06
A56: 220 | B56: 1 | C56: 100 | D56: 100 | E56: Vertrieb_4 | F56: Frankfurt am Main | G56: 8 | H56: 2021-08-10
A57: 224 | B57: 1 | C57: 200 | D57: 110 | E57: Vertrieb_4 | F57: Frankfurt am Main | G57: 8 | H57: 2021-08-14
A58: 228 | B58: 1 | C58: 250 | D58: 120 | E58: Vertrieb_4 | F58: Frankfurt am Main | G58: 8 | H58: 2021-08-18
A59: 232 | B59: 1 | C59: 100 | D59: 100 | E59: Vertrieb_4 | F59: Frankfurt am Main | G59: 8 | H59: 2021-08-22
A60: 236 | B60: 1 | C60: 200 | D60: 110 | E60: Vertrieb_4 | F60: Frankfurt am Main | G60: 8 | H60: 2021-08-26
A61: 240 | B61: 1 | C61: 200 | D61: 110 | E61: Vertrieb_4 | F61: Frankfurt am Main | G61: 8 | H61: 2021-08-30
A62: 244 | B62: 1 | C62: 250 | D62: 120 | E62: Vertrieb_4 | F62: Frankfurt am Main | G62: 9 | H62: 2021-09-03
A63: 248 | B63: 1 | C63: 100 | D63: 100 | E63: Vertrieb_4 | F63: Frankfurt am Main | G63: 9 | H63: 2021-09-07
A64: 252 | B64: 1 | C64: 200 | D64: 110 | E64: Vertrieb_4 | F64: Frankfurt am Main | G64: 9 | H64: 2021-09-11
A65: 256 | B65: 1 | C65: 250 | D65: 120 | E65: Vertrieb_4 | F65: Frankfurt am Main | G65: 9 | H65: 2021-09-15
A66: 260 | B66: 1 | C66: 100 | D66: 100 | E66: Vertrieb_4 | F66: Frankfurt am Main | G66: 9 | H66: 2021-09-19
A67: 264 | B67: 1 | C67: 200 | D67: 110 | E67: Vertrieb_4 | F67: Frankfurt am Main | G67: 9 | H67: 2021-09-23
A68: 268 | B68: 1 | C68: 250 | D68: 120 | E68: Vertrieb_4 | F68: Frankfurt am Main | G68: 9 | H68: 2021-09-27
A69: 272 | B69: 1 | C69: 200 | D69: 110 | E69: Vertrieb_4 | F69: Frankfurt am Main | G69: 10 | H69: 2021-10-01
A70: 276 | B70: 1 | C70: 250 | D70: 120 | E70: Vertrieb_4 | F70: Frankfurt am Main | G70: 10 | H70: 2021-10-05
A71: 280 | B71: 1 | C71: 100 | D71: 100 | E71: Vertrieb_4 | F71: Frankfurt am Main | G71: 10 | H71: 2021-10-09
A72: 284 | B72: 1 | C72: 200 | D72: 110 | E72: Vertrieb_4 | F72: Frankfurt am Main | G72: 10 | H72: 2021-10-13
A73: 288 | B73: 1 | C73: 250 | D73: 120 | E73: Vertrieb_4 | F73: Frankfurt am Main | G73: 10 | H73: 2021-10-17
A74: 292 | B74: 1 | C74: 100 | D74: 100 | E74: Vertrieb_4 | F74: Frankfurt am Main | G74: 10 | H74: 2021-10-21
A75: 296 | B75: 1 | C75: 200 | D75: 110 | E75: Vertrieb_4 | F75: Frankfurt am Main | G75: 10 | H75: 2021-10-25
A76: 300 | B76: 1 | C76: 250 | D76: 120 | E76: Vertrieb_4 | F76: Frankfurt am Main | G76: 10 | H76: 2021-10-29
A77: 304 | B77: 1 | C77: 200 | D77: 110 | E77: Vertrieb_4 | F77: Frankfurt am Main | G77: 11 | H77: 2021-11-02
A78: 308 | B78: 1 | C78: 250 | D78: 120 | E78: Vertrieb_4 | F78: Frankfurt am Main | G78: 11 | H78: 2021-11-06
A79: 312 | B79: 1 | C79: 100 | D79: 100 | E79: Vertrieb_4 | F79: Frankfurt am Main | G79: 11 | H79: 2021-11-10
A80: 316 | B80: 1 | C80: 200 | D80: 110 | E80: Vertrieb_4 | F80: Frankfurt am Main | G80: 11 | H80: 2021-11-14
A81: 320 | B81: 1 | C81: 250 | D81: 120 | E81: Vertrieb_4 | F81: Frankfurt am Main | G81: 11 | H81: 2021-11-18
A82: 324 | B82: 1 | C82: 100 | D82: 100 | E82: Vertrieb_4 | F82: Frankfurt am Main | G82: 11 | H82: 2021-11-22
A83: 328 | B83: 1 | C83: 200 | D83: 110 | E83: Vertrieb_4 | F83: Frankfurt am Main | G83: 11 | H83: 2021-11-26
A84: 332 | B84: 1 | C84: 100 | D84: 100 | E84: Vertrieb_4 | F84: Frankfurt am Main | G84: 11 | H84: 2021-11-30
A85: 336 | B85: 1 | C85: 200 | D85: 110 | E85: Vertrieb_4 | F85: Frankfurt am Main | G85: 12 | H85: 2021-12-04
A86: 340 | B86: 1 | C86: 250 | D86: 120 | E86: Vertrieb_4 | F86: Frankfurt am Main | G86: 12 | H86: 2021-12-08
A87: 344 | B87: 1 | C87: 100 | D87: 100 | E87: Vertrieb_4 | F87: Frankfurt am Main | G87: 12 | H87: 2021-12-12
A88: 348 | B88: 1 | C88: 200 | D88: 110 | E88: Vertrieb_4 | F88: Frankfurt am Main | G88: 12 | H88: 2021-12-16
A89: 352 | B89: 1 | C89: 250 | D89: 120 | E89: Vertrieb_4 | F89: Frankfurt am Main | G89: 12 | H89: 2021-12-20
A90: 356 | B90: 1 | C90: 100 | D90: 100 | E90: Vertrieb_4 | F90: Frankfurt am Main | G90: 12 | H90: 2021-12-24
A91: 360 | B91: 1 | C91: 200 | D91: 110 | E91: Vertrieb_4 | F91: Frankfurt am Main | G91: 12 | H91: 2021-12-28
B92: =SUBTOTAL(9,B2:B91) -> 90 | C92: =SUBTOTAL(9,C2:C91) -> 16600 | F92: Frankfurt am Main Ergebnis
A93: 1 | B93: 1 | C93: 100 | D93: 100 | E93: Vertrieb_1 | F93: Hamburg | G93: 1 | H93: 2021-01-03
A94: 5 | B94: 1 | C94: 200 | D94: 110 | E94: Vertrieb_1 | F94: Hamburg | G94: 1 | H94: 2021-01-07
A95: 9 | B95: 1 | C95: 200 | D95: 110 | E95: Vertrieb_1 | F95: Hamburg | G95: 1 | H95: 2021-01-11
A96: 13 | B96: 1 | C96: 200 | D96: 110 | E96: Vertrieb_1 | F96: Hamburg | G96: 1 | H96: 2021-01-15
A97: 17 | B97: 1 | C97: 250 | D97: 120 | E97: Vertrieb_1 | F97: Hamburg | G97: 1 | H97: 2021-01-19
A98: 21 | B98: 1 | C98: 100 | D98: 100 | E98: Vertrieb_1 | F98: Hamburg | G98: 1 | H98: 2021-01-23
A99: 25 | B99: 1 | C99: 250 | D99: 120 | E99: Vertrieb_1 | F99: Hamburg | G99: 1 | H99: 2021-01-27
A100: 29 | B100: 1 | C100: 100 | D100: 100 | E100: Vertrieb_1 | F100: Hamburg | G100: 1 | H100: 2021-01-31
A101: 33 | B101: 1 | C101: 200 | D101: 110 | E101: Vertrieb_1 | F101: Hamburg | G101: 2 | H101: 2021-02-04
A102: 37 | B102: 1 | C102: 250 | D102: 120 | E102: Vertrieb_1 | F102: Hamburg | G102: 2 | H102: 2021-02-08
A103: 41 | B103: 1 | C103: 100 | D103: 100 | E103: Vertrieb_1 | F103: Hamburg | G103: 2 | H103: 2021-02-12
A104: 45 | B104: 1 | C104: 200 | D104: 110 | E104: Vertrieb_1 | F104: Hamburg | G104: 2 | H104: 2021-02-16
A105: 49 | B105: 1 | C105: 250 | D105: 120 | E105: Vertrieb_1 | F105: Hamburg | G105: 2 | H105: 2021-02-20
A106: 53 | B106: 1 | C106: 200 | D106: 110 | E106: Vertrieb_1 | F106: Hamburg | G106: 2 | H106: 2021-02-24
A107: 57 | B107: 1 | C107: 250 | D107: 120 | E107: Vertrieb_1 | F107: Hamburg | G107: 2 | H107: 2021-02-28
A108: 61 | B108: 1 | C108: 100 | D108: 100 | E108: Vertrieb_1 | F108: Hamburg | G108: 3 | H108: 2021-03-04
A109: 65 | B109: 1 | C109: 200 | D109: 110 | E109: Vertrieb_1 | F109: Hamburg | G109: 3 | H109: 2021-03-08
A110: 69 | B110: 1 | C110: 250 | D110: 120 | E110: Vertrieb_1 | F110: Hamburg | G110: 3 | H110: 2021-03-12
A111: 73 | B111: 1 | C111: 100 | D111: 100 | E111: Vertrieb_1 | F111: Hamburg | G111: 3 | H111: 2021-03-16
A112: 77 | B112: 1 | C112: 200 | D112: 110 | E112: Vertrieb_1 | F112: Hamburg | G112: 3 | H112: 2021-03-20
A113: 81 | B113: 1 | C113: 250 | D113: 120 | E113: Vertrieb_1 | F113: Hamburg | G113: 3 | H113: 2021-03-24
A114: 85 | B114: 1 | C114: 200 | D114: 110 | E114: Vertrieb_1 | F114: Hamburg | G114: 3 | H114: 2021-03-28
A115: 89 | B115: 1 | C115: 250 | D115: 120 | E115: Vertrieb_1 | F115: Hamburg | G115: 4 | H115: 2021-04-01
A116: 93 | B116: 1 | C116: 100 | D116: 100 | E116: Vertrieb_1 | F116: Hamburg | G116: 4 | H116: 2021-04-05
A117: 97 | B117: 1 | C117: 200 | D117: 110 | E117: Vertrieb_1 | F117: Hamburg | G117: 4 | H117: 2021-04-09
A118: 101 | B118: 1 | C118: 250 | D118: 120 | E118: Vertrieb_1 | F118: Hamburg | G118: 4 | H118: 2021-04-13
A119: 105 | B119: 1 | C119: 100 | D119: 100 | E119: Vertrieb_1 | F119: Hamburg | G119: 4 | H119: 2021-04-17
A120: 109 | B120: 1 | C120: 200 | D120: 110 | E120: Vertrieb_1 | F120: Hamburg | G120: 4 | H120: 2021-04-21
A121: 113 | B121: 1 | C121: 250 | D121: 120 | E121: Vertrieb_1 | F121: Hamburg | G121: 4 | H121: 2021-04-25
A122: 117 | B122: 1 | C122: 250 | D122: 120 | E122: Vertrieb_1 | F122: Hamburg | G122: 4 | H122: 2021-04-29
A123: 121 | B123: 1 | C123: 100 | D123: 100 | E123: Vertrieb_1 | F123: Hamburg | G123: 5 | H123: 2021-05-03
A124: 125 | B124: 1 | C124: 200 | D124: 110 | E124: Vertrieb_1 | F124: Hamburg | G124: 5 | H124: 2021-05-07
A125: 129 | B125: 1 | C125: 250 | D125: 120 | E125: Vertrieb_1 | F125: Hamburg | G125: 5 | H125: 2021-05-11
A126: 133 | B126: 1 | C126: 100 | D126: 100 | E126: Vertrieb_1 | F126: Hamburg | G126: 5 | H126: 2021-05-15
A127: 137 | B127: 1 | C127: 200 | D127: 110 | E127: Vertrieb_1 | F127: Hamburg | G127: 5 | H127: 2021-05-19
A128: 141 | B128: 1 | C128: 250 | D128: 120 | E128: Vertrieb_1 | F128: Hamburg | G128: 5 | H128: 2021-05-23
A129: 145 | B129: 1 | C129: 100 | D129: 100 | E129: Vertrieb_1 | F129: Hamburg | G129: 5 | H129: 2021-05-27
A130: 149 | B130: 1 | C130: 250 | D130: 120 | E130: Vertrieb_1 | F130: Hamburg | G130: 5 | H130: 2021-05-31
A131: 153 | B131: 1 | C131: 100 | D131: 100 | E131: Vertrieb_1 | F131: Hamburg | G131: 6 | H131: 2021-06-04
A132: 157 | B132: 1 | C132: 200 | D132: 110 | E132: Vertrieb_1 | F132: Hamburg | G132: 6 | H132: 2021-06-08
A133: 161 | B133: 1 | C133: 250 | D133: 120 | E133: Vertrieb_1 | F133: Hamburg | G133: 6 | H133: 2021-06-12
A134: 165 | B134: 1 | C134: 100 | D134: 100 | E134: Vertrieb_1 | F134: Hamburg | G134: 6 | H134: 2021-06-16
A135: 169 | B135: 1 | C135: 200 | D135: 110 | E135: Vertrieb_1 | F135: Hamburg | G135: 6 | H135: 2021-06-20
A136: 173 | B136: 1 | C136: 250 | D136: 120 | E136: Vertrieb_1 | F136: Hamburg | G136: 6 | H136: 2021-06-24
A137: 177 | B137: 1 | C137: 200 | D137: 110 | E137: Vertrieb_1 | F137: Hamburg | G137: 6 | H137: 2021-06-28
A138: 181 | B138: 1 | C138: 250 | D138: 120 | E138: Vertrieb_1 | F138: Hamburg | G138: 7 | H138: 2021-07-02
A139: 185 | B139: 1 | C139: 100 | D139: 100 | E139: Vertrieb_1 | F139: Hamburg | G139: 7 | H139: 2021-07-06
A140: 189 | B140: 1 | C140: 200 | D140: 110 | E140: Vertrieb_1 | F140: Hamburg | G140: 7 | H140: 2021-07-10
A141: 193 | B141: 1 | C141: 250 | D141: 120 | E141: Vertrieb_1 | F141: Hamburg | G141: 7 | H141: 2021-07-14
A142: 197 | B142: 1 | C142: 100 | D142: 100 | E142: Vertrieb_1 | F142: Hamburg | G142: 7 | H142: 2021-07-18
A143: 201 | B143: 1 | C143: 200 | D143: 110 | E143: Vertrieb_1 | F143: Hamburg | G143: 7 | H143: 2021-07-22
A144: 205 | B144: 1 | C144: 250 | D144: 120 | E144: Vertrieb_1 | F144: Hamburg | G144: 7 | H144: 2021-07-26
A145: 209 | B145: 1 | C145: 200 | D145: 110 | E145: Vertrieb_1 | F145: Hamburg | G145: 7 | H145: 2021-07-30
A146: 213 | B146: 1 | C146: 250 | D146: 120 | E146: Vertrieb_1 | F146: Hamburg | G146: 8 | H146: 2021-08-03
A147: 217 | B147: 1 | C147: 100 | D147: 100 | E147: Vertrieb_1 | F147: Hamburg | G147: 8 | H147: 2021-08-07
A148: 221 | B148: 1 | C148: 200 | D148: 110 | E148: Vertrieb_1 | F148: Hamburg | G148: 8 | H148: 2021-08-11
A149: 225 | B149: 1 | C149: 250 | D149: 120 | E149: Vertrieb_1 | F149: Hamburg | G149: 8 | H149: 2021-08-15
A150: 229 | B150: 1 | C150: 100 | D150: 100 | E150: Vertrieb_1 | F150: Hamburg | G150: 8 | H150: 2021-08-19
A151: 233 | B151: 1 | C151: 200 | D151: 110 | E151: Vertrieb_1 | F151: Hamburg | G151: 8 | H151: 2021-08-23
A152: 237 | B152: 1 | C152: 250 | D152: 120 | E152: Vertrieb_1 | F152: Hamburg | G152: 8 | H152: 2021-08-27
A153: 241 | B153: 1 | C153: 250 | D153: 120 | E153: Vertrieb_1 | F153: Hamburg | G153: 8 | H153: 2021-08-31
A154: 245 | B154: 1 | C154: 100 | D154: 100 | E154: Vertrieb_1 | F154: Hamburg | G154: 9 | H154: 2021-09-04
A155: 249 | B155: 1 | C155: 200 | D155: 110 | E155: Vertrieb_1 | F155: Hamburg | G155: 9 | H155: 2021-09-08
A156: 253 | B156: 1 | C156: 250 | D156: 120 | E156: Vertrieb_1 | F156: Hamburg | G156: 9 | H156: 2021-09-12
A157: 257 | B157: 1 | C157: 100 | D157: 100 | E157: Vertrieb_1 | F157: Hamburg | G157: 9 | H157: 2021-09-16
A158: 261 | B158: 1 | C158: 200 | D158: 110 | E158: Vertrieb_1 | F158: Hamburg | G158: 9 | H158: 2021-09-20
A159: 265 | B159: 1 | C159: 250 | D159: 120 | E159: Vertrieb_1 | F159: Hamburg | G159: 9 | H159: 2021-09-24
A160: 269 | B160: 1 | C160: 100 | D160: 100 | E160: Vertrieb_1 | F160: Hamburg | G160: 9 | H160: 2021-09-28
A161: 273 | B161: 1 | C161: 250 | D161: 120 | E161: Vertrieb_1 | F161: Hamburg | G161: 10 | H161: 2021-10-02
A162: 277 | B162: 1 | C162: 100 | D162: 100 | E162: Vertrieb_1 | F162: Hamburg | G162: 10 | H162: 2021-10-06
A163: 281 | B163: 1 | C163: 200 | D163: 110 | E163: Vertrieb_1 | F163: Hamburg | G163: 10 | H163: 2021-10-10
A164: 285 | B164: 1 | C164: 250 | D164: 120 | E164: Vertrieb_1 | F164: Hamburg | G164: 10 | H164: 2021-10-14
A165: 289 | B165: 1 | C165: 100 | D165: 100 | E165: Vertrieb_1 | F165: Hamburg | G165: 10 | H165: 2021-10-18
A166: 293 | B166: 1 | C166: 200 | D166: 110 | E166: Vertrieb_1 | F166: Hamburg | G166: 10 | H166: 2021-10-22
A167: 297 | B167: 1 | C167: 250 | D167: 120 | E167: Vertrieb_1 | F167: Hamburg | G167: 10 | H167: 2021-10-26
A168: 301 | B168: 1 | C168: 200 | D168: 110 | E168: Vertrieb_1 | F168: Hamburg | G168: 10 | H168: 2021-10-30
A169: 305 | B169: 1 | C169: 250 | D169: 120 | E169: Vertrieb_1 | F169: Hamburg | G169: 11 | H169: 2021-11-03
A170: 309 | B170: 1 | C170: 100 | D170: 100 | E170: Vertrieb_1 | F170: Hamburg | G170: 11 | H170: 2021-11-07
A171: 313 | B171: 1 | C171: 200 | D171: 110 | E171: Vertrieb_1 | F171: Hamburg | G171: 11 | H171: 2021-11-11
A172: 317 | B172: 1 | C172: 250 | D172: 120 | E172: Vertrieb_1 | F172: Hamburg | G172: 11 | H172: 2021-11-15
A173: 321 | B173: 1 | C173: 100 | D173: 100 | E173: Vertrieb_1 | F173: Hamburg | G173: 11 | H173: 2021-11-19
A174: 325 | B174: 1 | C174: 200 | D174: 110 | E174: Vertrieb_1 | F174: Hamburg | G174: 11 | H174: 2021-11-23
A175: 329 | B175: 1 | C175: 250 | D175: 120 | E175: Vertrieb_1 | F175: Hamburg | G175: 11 | H175: 2021-11-27
A176: 333 | B176: 1 | C176: 200 | D176: 110 | E176: Vertrieb_1 | F176: Hamburg | G176: 12 | H176: 2021-12-01
A177: 337 | B177: 1 | C177: 250 | D177: 120 | E177: Vertrieb_1 | F177: Hamburg | G177: 12 | H177: 2021-12-05
A178: 341 | B178: 1 | C178: 100 | D178: 100 | E178: Vertrieb_1 | F178: Hamburg | G178: 12 | H178: 2021-12-09
A179: 345 | B179: 1 | C179: 200 | D179: 110 | E179: Vertrieb_1 | F179: Hamburg | G179: 12 | H179: 2021-12-13
A180: 349 | B180: 1 | C180: 250 | D180: 120 | E180: Vertrieb_1 | F180: Hamburg | G180: 12 | H180: 2021-12-17
A181: 353 | B181: 1 | C181: 100 | D181: 100 | E181: Vertrieb_1 | F181: Hamburg | G181: 12 | H181: 2021-12-21
A182: 357 | B182: 1 | C182: 200 | D182: 110 | E182: Vertrieb_1 | F182: Hamburg | G182: 12 | H182: 2021-12-25
A183: 361 | B183: 1 | C183: 250 | D183: 120 | E183: Vertrieb_1 | F183: Hamburg | G183: 12 | H183: 2021-12-29
B184: =SUBTOTAL(9,B93:B183) -> 91 | C184: =SUBTOTAL(9,C93:C183) -> 17300 | F184: Hamburg Ergebnis
A185: 3 | B185: 1 | C185: 250 | D185: 120 | E185: Vertrieb_3 | F185: Köln | G185: 1 | H185: 2021-01-05
A186: 7 | B186: 1 | C186: 250 | D186: 120 | E186: Vertrieb_3 | F186: Köln | G186: 1 | H186: 2021-01-09
A187: 11 | B187: 1 | C187: 250 | D187: 120 | E187: Vertrieb_3 | F187: Köln | G187: 1 | H187: 2021-01-13
A188: 15 | B188: 1 | C188: 100 | D188: 100 | E188: Vertrieb_3 | F188: Köln | G188: 1 | H188: 2021-01-17
A189: 19 | B189: 1 | C189: 200 | D189: 110 | E189: Vertrieb_3 | F189: Köln | G189: 1 | H189: 2021-01-21
A190: 23 | B190: 1 | C190: 100 | D190: 100 | E190: Vertrieb_3 | F190: Köln | G190: 1 | H190: 2021-01-25
A191: 27 | B191: 1 | C191: 200 | D191: 110 | E191: Vertrieb_3 | F191: Köln | G191: 1 | H191: 2021-01-29
A192: 31 | B192: 1 | C192: 250 | D192: 120 | E192: Vertrieb_3 | F192: Köln | G192: 2 | H192: 2021-02-02
A193: 35 | B193: 1 | C193: 100 | D193: 100 | E193: Vertrieb_3 | F193: Köln | G193: 2 | H193: 2021-02-06
A194: 39 | B194: 1 | C194: 200 | D194: 110 | E194: Vertrieb_3 | F194: Köln | G194: 2 | H194: 2021-02-10
A195: 43 | B195: 1 | C195: 250 | D195: 120 | E195: Vertrieb_3 | F195: Köln | G195: 2 | H195: 2021-02-14
A196: 47 | B196: 1 | C196: 100 | D196: 100 | E196: Vertrieb_3 | F196: Köln | G196: 2 | H196: 2021-02-18
A197: 51 | B197: 1 | C197: 200 | D197: 110 | E197: Vertrieb_3 | F197: Köln | G197: 2 | H197: 2021-02-22
A198: 55 | B198: 1 | C198: 100 | D198: 100 | E198: Vertrieb_3 | F198: Köln | G198: 2 | H198: 2021-02-26
A199: 59 | B199: 1 | C199: 200 | D199: 110 | E199: Vertrieb_3 | F199: Köln | G199: 3 | H199: 2021-03-02
A200: 63 | B200: 1 | C200: 250 | D200: 120 | E200: Vertrieb_3 | F200: Köln | G200: 3 | H200: 2021-03-06
... 169 more rows

Sheet TE_Monat
A1: lfd. Nr. | B1: Anzahl | C1: Umsatz | D1: Produkt | E1: Vertrieb | F1: Ort | G1: Monat | H1: Datum
A2: 1 | B2: 1 | C2: 100 | D2: 100 | E2: Vertrieb_1 | F2: Hamburg | G2: 1 | H2: 2021-01-03
A3: 2 | B3: 1 | C3: 200 | D3: 110 | E3: Vertrieb_2 | F3: München | G3: 1 | H3: 2021-01-04
A4: 3 | B4: 1 | C4: 250 | D4: 120 | E4: Vertrieb_3 | F4: Köln | G4: 1 | H4: 2021-01-05
A5: 4 | B5: 1 | C5: 100 | D5: 100 | E5: Vertrieb_4 | F5: Frankfurt am Main | G5: 1 | H5: 2021-01-06
A6: 5 | B6: 1 | C6: 200 | D6: 110 | E6: Vertrieb_1 | F6: Hamburg | G6: 1 | H6: 2021-01-07
A7: 6 | B7: 1 | C7: 200 | D7: 110 | E7: Vertrieb_2 | F7: München | G7: 1 | H7: 2021-01-08
A8: 7 | B8: 1 | C8: 250 | D8: 120 | E8: Vertrieb_3 | F8: Köln | G8: 1 | H8: 2021-01-09
A9: 8 | B9: 1 | C9: 100 | D9: 100 | E9: Vertrieb_4 | F9: Frankfurt am Main | G9: 1 | H9: 2021-01-10
A10: 9 | B10: 1 | C10: 200 | D10: 110 | E10: Vertrieb_1 | F10: Hamburg | G10: 1 | H10: 2021-01-11
A11: 10 | B11: 1 | C11: 250 | D11: 120 | E11: Vertrieb_2 | F11: München | G11: 1 | H11: 2021-01-12
A12: 11 | B12: 1 | C12: 250 | D12: 120 | E12: Vertrieb_3 | F12: Köln | G12: 1 | H12: 2021-01-13
A13: 12 | B13: 1 | C13: 100 | D13: 100 | E13: Vertrieb_4 | F13: Frankfurt am Main | G13: 1 | H13: 2021-01-14
A14: 13 | B14: 1 | C14: 200 | D14: 110 | E14: Vertrieb_1 | F14: Hamburg | G14: 1 | H14: 2021-01-15
A15: 14 | B15: 1 | C15: 250 | D15: 120 | E15: Vertrieb_2 | F15: München | G15: 1 | H15: 2021-01-16
A16: 15 | B16: 1 | C16: 100 | D16: 100 | E16: Vertrieb_3 | F16: Köln | G16: 1 | H16: 2021-01-17
A17: 16 | B17: 1 | C17: 200 | D17: 110 | E17: Vertrieb_4 | F17: Frankfurt am Main | G17: 1 | H17: 2021-01-18
A18: 17 | B18: 1 | C18: 250 | D18: 120 | E18: Vertrieb_1 | F18: Hamburg | G18: 1 | H18: 2021-01-19
A19: 18 | B19: 1 | C19: 100 | D19: 100 | E19: Vertrieb_2 | F19: München | G19: 1 | H19: 2021-01-20
A20: 19 | B20: 1 | C20: 200 | D20: 110 | E20: Vertrieb_3 | F20: Köln | G20: 1 | H20: 2021-01-21
A21: 20 | B21: 1 | C21: 250 | D21: 120 | E21: Vertrieb_4 | F21: Frankfurt am Main | G21: 1 | H21: 2021-01-22
A22: 21 | B22: 1 | C22: 100 | D22: 100 | E22: Vertrieb_1 | F22: Hamburg | G22: 1 | H22: 2021-01-23
A23: 22 | B23: 1 | C23: 250 | D23: 120 | E23: Vertrieb_2 | F23: München | G23: 1 | H23: 2021-01-24
A24: 23 | B24: 1 | C24: 100 | D24: 100 | E24: Vertrieb_3 | F24: Köln | G24: 1 | H24: 2021-01-25
A25: 24 | B25: 1 | C25: 200 | D25: 110 | E25: Vertrieb_4 | F25: Frankfurt am Main | G25: 1 | H25: 2021-01-26
A26: 25 | B26: 1 | C26: 250 | D26: 120 | E26: Vertrieb_1 | F26: Hamburg | G26: 1 | H26: 2021-01-27
A27: 26 | B27: 1 | C27: 100 | D27: 100 | E27: Vertrieb_2 | F27: München | G27: 1 | H27: 2021-01-28
A28: 27 | B28: 1 | C28: 200 | D28: 110 | E28: Vertrieb_3 | F28: Köln | G28: 1 | H28: 2021-01-29
A29: 28 | B29: 1 | C29: 250 | D29: 120 | E29: Vertrieb_4 | F29: Frankfurt am Main | G29: 1 | H29: 2021-01-30
A30: 29 | B30: 1 | C30: 100 | D30: 100 | E30: Vertrieb_1 | F30: Hamburg | G30: 1 | H30: 2021-01-31
B31: =SUBTOTAL(9,B2:B30) -> 29 | C31: =SUBTOTAL(9,C2:C30) -> 5300 | G31: 1 Ergebnis
A32: 30 | B32: 1 | C32: 200 | D32: 110 | E32: Vertrieb_2 | F32: München | G32: 2 | H32: 2021-02-01
A33: 31 | B33: 1 | C33: 250 | D33: 120 | E33: Vertrieb_3 | F33: Köln | G33: 2 | H33: 2021-02-02
A34: 32 | B34: 1 | C34: 100 | D34: 100 | E34: Vertrieb_4 | F34: Frankfurt am Main | G34: 2 | H34: 2021-02-03
A35: 33 | B35: 1 | C35: 200 | D35: 110 | E35: Vertrieb_1 | F35: Hamburg | G35: 2 | H35: 2021-02-04
A36: 34 | B36: 1 | C36: 250 | D36: 120 | E36: Vertrieb_2 | F36: München | G36: 2 | H36: 2021-02-05
A37: 35 | B37: 1 | C37: 100 | D37: 100 | E37: Vertrieb_3 | F37: Köln | G37: 2 | H37: 2021-02-06
A38: 36 | B38: 1 | C38: 200 | D38: 110 | E38: Vertrieb_4 | F38: Frankfurt am Main | G38: 2 | H38: 2021-02-07
A39: 37 | B39: 1 | C39: 250 | D39: 120 | E39: Vertrieb_1 | F39: Hamburg | G39: 2 | H39: 2021-02-08
A40: 38 | B40: 1 | C40: 100 | D40: 100 | E40: Vertrieb_2 | F40: München | G40: 2 | H40: 2021-02-09
A41: 39 | B41: 1 | C41: 200 | D41: 110 | E41: Vertrieb_3 | F41: Köln | G41: 2 | H41: 2021-02-10
A42: 40 | B42: 1 | C42: 250 | D42: 120 | E42: Vertrieb_4 | F42: Frankfurt am Main | G42: 2 | H42: 2021-02-11
A43: 41 | B43: 1 | C43: 100 | D43: 100 | E43: Vertrieb_1 | F43: Hamburg | G43: 2 | H43: 2021-02-12
A44: 42 | B44: 1 | C44: 200 | D44: 110 | E44: Vertrieb_2 | F44: München | G44: 2 | H44: 2021-02-13
A45: 43 | B45: 1 | C45: 250 | D45: 120 | E45: Vertrieb_3 | F45: Köln | G45: 2 | H45: 2021-02-14
A46: 44 | B46: 1 | C46: 100 | D46: 100 | E46: Vertrieb_4 | F46: Frankfurt am Main | G46: 2 | H46: 2021-02-15
A47: 45 | B47: 1 | C47: 200 | D47: 110 | E47: Vertrieb_1 | F47: Hamburg | G47: 2 | H47: 2021-02-16
A48: 46 | B48: 1 | C48: 250 | D48: 120 | E48: Vertrieb_2 | F48: München | G48: 2 | H48: 2021-02-17
A49: 47 | B49: 1 | C49: 100 | D49: 100 | E49: Vertrieb_3 | F49: Köln | G49: 2 | H49: 2021-02-18
A50: 48 | B50: 1 | C50: 200 | D50: 110 | E50: Vertrieb_4 | F50: Frankfurt am Main | G50: 2 | H50: 2021-02-19
A51: 49 | B51: 1 | C51: 250 | D51: 120 | E51: Vertrieb_1 | F51: Hamburg | G51: 2 | H51: 2021-02-20
A52: 50 | B52: 1 | C52: 100 | D52: 100 | E52: Vertrieb_2 | F52: München | G52: 2 | H52: 2021-02-21
A53: 51 | B53: 1 | C53: 200 | D53: 110 | E53: Vertrieb_3 | F53: Köln | G53: 2 | H53: 2021-02-22
A54: 52 | B54: 1 | C54: 250 | D54: 120 | E54: Vertrieb_4 | F54: Frankfurt am Main | G54: 2 | H54: 2021-02-23
A55: 53 | B55: 1 | C55: 200 | D55: 110 | E55: Vertrieb_1 | F55: Hamburg | G55: 2 | H55: 2021-02-24
A56: 54 | B56: 1 | C56: 250 | D56: 120 | E56: Vertrieb_2 | F56: München | G56: 2 | H56: 2021-02-25
A57: 55 | B57: 1 | C57: 100 | D57: 100 | E57: Vertrieb_3 | F57: Köln | G57: 2 | H57: 2021-02-26
A58: 56 | B58: 1 | C58: 200 | D58: 110 | E58: Vertrieb_4 | F58: Frankfurt am Main | G58: 2 | H58: 2021-02-27
A59: 57 | B59: 1 | C59: 250 | D59: 120 | E59: Vertrieb_1 | F59: Hamburg | G59: 2 | H59: 2021-02-28
B60: =SUBTOTAL(9,B32:B59) -> 28 | C60: =SUBTOTAL(9,C32:C59) -> 5300 | G60: 2 Ergebnis
A61: 58 | B61: 1 | C61: 100 | D61: 100 | E61: Vertrieb_2 | F61: München | G61: 3 | H61: 2021-03-01
A62: 59 | B62: 1 | C62: 200 | D62: 110 | E62: Vertrieb_3 | F62: Köln | G62: 3 | H62: 2021-03-02
A63: 60 | B63: 1 | C63: 250 | D63: 120 | E63: Vertrieb_4 | F63: Frankfurt am Main | G63: 3 | H63: 2021-03-03
A64: 61 | B64: 1 | C64: 100 | D64: 100 | E64: Vertrieb_1 | F64: Hamburg | G64: 3 | H64: 2021-03-04
A65: 62 | B65: 1 | C65: 200 | D65: 110 | E65: Vertrieb_2 | F65: München | G65: 3 | H65: 2021-03-05
A66: 63 | B66: 1 | C66: 250 | D66: 120 | E66: Vertrieb_3 | F66: Köln | G66: 3 | H66: 2021-03-06
A67: 64 | B67: 1 | C67: 100 | D67: 100 | E67: Vertrieb_4 | F67: Frankfurt am Main | G67: 3 | H67: 2021-03-07
A68: 65 | B68: 1 | C68: 200 | D68: 110 | E68: Vertrieb_1 | F68: Hamburg | G68: 3 | H68: 2021-03-08
A69: 66 | B69: 1 | C69: 250 | D69: 120 | E69: Vertrieb_2 | F69: München | G69: 3 | H69: 2021-03-09
A70: 67 | B70: 1 | C70: 100 | D70: 100 | E70: Vertrieb_3 | F70: Köln | G70: 3 | H70: 2021-03-10
A71: 68 | B71: 1 | C71: 200 | D71: 110 | E71: Vertrieb_4 | F71: Frankfurt am Main | G71: 3 | H71: 2021-03-11
A72: 69 | B72: 1 | C72: 250 | D72: 120 | E72: Vertrieb_1 | F72: Hamburg | G72: 3 | H72: 2021-03-12
A73: 70 | B73: 1 | C73: 100 | D73: 100 | E73: Vertrieb_2 | F73: München | G73: 3 | H73: 2021-03-13
A74: 71 | B74: 1 | C74: 200 | D74: 110 | E74: Vertrieb_3 | F74: Köln | G74: 3 | H74: 2021-03-14
A75: 72 | B75: 1 | C75: 250 | D75: 120 | E75: Vertrieb_4 | F75: Frankfurt am Main | G75: 3 | H75: 2021-03-15
A76: 73 | B76: 1 | C76: 100 | D76: 100 | E76: Vertrieb_1 | F76: Hamburg | G76: 3 | H76: 2021-03-16
A77: 74 | B77: 1 | C77: 200 | D77: 110 | E77: Vertrieb_2 | F77: München | G77: 3 | H77: 2021-03-17
A78: 75 | B78: 1 | C78: 250 | D78: 120 | E78: Vertrieb_3 | F78: Köln | G78: 3 | H78: 2021-03-18
A79: 76 | B79: 1 | C79: 100 | D79: 100 | E79: Vertrieb_4 | F79: Frankfurt am Main | G79: 3 | H79: 2021-03-19
A80: 77 | B80: 1 | C80: 200 | D80: 110 | E80: Vertrieb_1 | F80: Hamburg | G80: 3 | H80: 2021-03-20
A81: 78 | B81: 1 | C81: 250 | D81: 120 | E81: Vertrieb_2 | F81: München | G81: 3 | H81: 2021-03-21
A82: 79 | B82: 1 | C82: 100 | D82: 100 | E82: Vertrieb_3 | F82: Köln | G82: 3 | H82: 2021-03-22
A83: 80 | B83: 1 | C83: 200 | D83: 110 | E83: Vertrieb_4 | F83: Frankfurt am Main | G83: 3 | H83: 2021-03-23
A84: 81 | B84: 1 | C84: 250 | D84: 120 | E84: Vertrieb_1 | F84: Hamburg | G84: 3 | H84: 2021-03-24
A85: 82 | B85: 1 | C85: 100 | D85: 100 | E85: Vertrieb_2 | F85: München | G85: 3 | H85: 2021-03-25
A86: 83 | B86: 1 | C86: 200 | D86: 110 | E86: Vertrieb_3 | F86: Köln | G86: 3 | H86: 2021-03-26
A87: 84 | B87: 1 | C87: 100 | D87: 100 | E87: Vertrieb_4 | F87: Frankfurt am Main | G87: 3 | H87: 2021-03-27
A88: 85 | B88: 1 | C88: 200 | D88: 110 | E88: Vertrieb_1 | F88: Hamburg | G88: 3 | H88: 2021-03-28
A89: 86 | B89: 1 | C89: 250 | D89: 120 | E89: Vertrieb_2 | F89: München | G89: 3 | H89: 2021-03-29
A90: 87 | B90: 1 | C90: 100 | D90: 100 | E90: Vertrieb_3 | F90: Köln | G90: 3 | H90: 2021-03-30
A91: 88 | B91: 1 | C91: 200 | D91: 110 | E91: Vertrieb_4 | F91: Frankfurt am Main | G91: 3 | H91: 2021-03-31
B92: =SUBTOTAL(9,B61:B91) -> 31 | C92: =SUBTOTAL(9,C61:C91) -> 5550 | G92: 3 Ergebnis
A93: 89 | B93: 1 | C93: 250 | D93: 120 | E93: Vertrieb_1 | F93: Hamburg | G93: 4 | H93: 2021-04-01
A94: 90 | B94: 1 | C94: 100 | D94: 100 | E94: Vertrieb_2 | F94: München | G94: 4 | H94: 2021-04-02
A95: 91 | B95: 1 | C95: 200 | D95: 110 | E95: Vertrieb_3 | F95: Köln | G95: 4 | H95: 2021-04-03
A96: 92 | B96: 1 | C96: 250 | D96: 120 | E96: Vertrieb_4 | F96: Frankfurt am Main | G96: 4 | H96: 2021-04-04
A97: 93 | B97: 1 | C97: 100 | D97: 100 | E97: Vertrieb_1 | F97: Hamburg | G97: 4 | H97: 2021-04-05
A98: 94 | B98: 1 | C98: 200 | D98: 110 | E98: Vertrieb_2 | F98: München | G98: 4 | H98: 2021-04-06
A99: 95 | B99: 1 | C99: 250 | D99: 120 | E99: Vertrieb_3 | F99: Köln | G99: 4 | H99: 2021-04-07
A100: 96 | B100: 1 | C100: 100 | D100: 100 | E100: Vertrieb_4 | F100: Frankfurt am Main | G100: 4 | H100: 2021-04-08
A101: 97 | B101: 1 | C101: 200 | D101: 110 | E101: Vertrieb_1 | F101: Hamburg | G101: 4 | H101: 2021-04-09
A102: 98 | B102: 1 | C102: 250 | D102: 120 | E102: Vertrieb_2 | F102: München | G102: 4 | H102: 2021-04-10
A103: 99 | B103: 1 | C103: 100 | D103: 100 | E103: Vertrieb_3 | F103: Köln | G103: 4 | H103: 2021-04-11
A104: 100 | B104: 1 | C104: 200 | D104: 110 | E104: Vertrieb_4 | F104: Frankfurt am Main | G104: 4 | H104: 2021-04-12
A105: 101 | B105: 1 | C105: 250 | D105: 120 | E105: Vertrieb_1 | F105: Hamburg | G105: 4 | H105: 2021-04-13
A106: 102 | B106: 1 | C106: 100 | D106: 100 | E106: Vertrieb_2 | F106: München | G106: 4 | H106: 2021-04-14
A107: 103 | B107: 1 | C107: 200 | D107: 110 | E107: Vertrieb_3 | F107: Köln | G107: 4 | H107: 2021-04-15
A108: 104 | B108: 1 | C108: 250 | D108: 120 | E108: Vertrieb_4 | F108: Frankfurt am Main | G108: 4 | H108: 2021-04-16
A109: 105 | B109: 1 | C109: 100 | D109: 100 | E109: Vertrieb_1 | F109: Hamburg | G109: 4 | H109: 2021-04-17
A110: 106 | B110: 1 | C110: 200 | D110: 110 | E110: Vertrieb_2 | F110: München | G110: 4 | H110: 2021-04-18
A111: 107 | B111: 1 | C111: 250 | D111: 120 | E111: Vertrieb_3 | F111: Köln | G111: 4 | H111: 2021-04-19
A112: 108 | B112: 1 | C112: 100 | D112: 100 | E112: Vertrieb_4 | F112: Frankfurt am Main | G112: 4 | H112: 2021-04-20
A113: 109 | B113: 1 | C113: 200 | D113: 110 | E113: Vertrieb_1 | F113: Hamburg | G113: 4 | H113: 2021-04-21
A114: 110 | B114: 1 | C114: 250 | D114: 120 | E114: Vertrieb_2 | F114: München | G114: 4 | H114: 2021-04-22
A115: 111 | B115: 1 | C115: 100 | D115: 100 | E115: Vertrieb_3 | F115: Köln | G115: 4 | H115: 2021-04-23
A116: 112 | B116: 1 | C116: 200 | D116: 110 | E116: Vertrieb_4 | F116: Frankfurt am Main | G116: 4 | H116: 2021-04-24
A117: 113 | B117: 1 | C117: 250 | D117: 120 | E117: Vertrieb_1 | F117: Hamburg | G117: 4 | H117: 2021-04-25
A118: 114 | B118: 1 | C118: 100 | D118: 100 | E118: Vertrieb_2 | F118: München | G118: 4 | H118: 2021-04-26
A119: 115 | B119: 1 | C119: 100 | D119: 100 | E119: Vertrieb_3 | F119: Köln | G119: 4 | H119: 2021-04-27
A120: 116 | B120: 1 | C120: 200 | D120: 110 | E120: Vertrieb_4 | F120: Frankfurt am Main | G120: 4 | H120: 2021-04-28
A121: 117 | B121: 1 | C121: 250 | D121: 120 | E121: Vertrieb_1 | F121: Hamburg | G121: 4 | H121: 2021-04-29
A122: 118 | B122: 1 | C122: 100 | D122: 100 | E122: Vertrieb_2 | F122: München | G122: 4 | H122: 2021-04-30
B123: =SUBTOTAL(9,B93:B122) -> 30 | C123: =SUBTOTAL(9,C93:C122) -> 5400 | G123: 4 Ergebnis
A124: 119 | B124: 1 | C124: 200 | D124: 110 | E124: Vertrieb_3 | F124: Köln | G124: 5 | H124: 2021-05-01
A125: 120 | B125: 1 | C125: 250 | D125: 120 | E125: Vertrieb_4 | F125: Frankfurt am Main | G125: 5 | H125: 2021-05-02
A126: 121 | B126: 1 | C126: 100 | D126: 100 | E126: Vertrieb_1 | F126: Hamburg | G126: 5 | H126: 2021-05-03
A127: 122 | B127: 1 | C127: 200 | D127: 110 | E127: Vertrieb_2 | F127: München | G127: 5 | H127: 2021-05-04
A128: 123 | B128: 1 | C128: 250 | D128: 120 | E128: Vertrieb_3 | F128: Köln | G128: 5 | H128: 2021-05-05
A129: 124 | B129: 1 | C129: 100 | D129: 100 | E129: Vertrieb_4 | F129: Frankfurt am Main | G129: 5 | H129: 2021-05-06
A130: 125 | B130: 1 | C130: 200 | D130: 110 | E130: Vertrieb_1 | F130: Hamburg | G130: 5 | H130: 2021-05-07
A131: 126 | B131: 1 | C131: 250 | D131: 120 | E131: Vertrieb_2 | F131: München | G131: 5 | H131: 2021-05-08
A132: 127 | B132: 1 | C132: 100 | D132: 100 | E132: Vertrieb_3 | F132: Köln | G132: 5 | H132: 2021-05-09
A133: 128 | B133: 1 | C133: 200 | D133: 110 | E133: Vertrieb_4 | F133: Frankfurt am Main | G133: 5 | H133: 2021-05-10
A134: 129 | B134: 1 | C134: 250 | D134: 120 | E134: Vertrieb_1 | F134: Hamburg | G134: 5 | H134: 2021-05-11
A135: 130 | B135: 1 | C135: 100 | D135: 100 | E135: Vertrieb_2 | F135: München | G135: 5 | H135: 2021-05-12
A136: 131 | B136: 1 | C136: 200 | D136: 110 | E136: Vertrieb_3 | F136: Köln | G136: 5 | H136: 2021-05-13
A137: 132 | B137: 1 | C137: 250 | D137: 120 | E137: Vertrieb_4 | F137: Frankfurt am Main | G137: 5 | H137: 2021-05-14
A138: 133 | B138: 1 | C138: 100 | D138: 100 | E138: Vertrieb_1 | F138: Hamburg | G138: 5 | H138: 2021-05-15
A139: 134 | B139: 1 | C139: 200 | D139: 110 | E139: Vertrieb_2 | F139: München | G139: 5 | H139: 2021-05-16
A140: 135 | B140: 1 | C140: 250 | D140: 120 | E140: Vertrieb_3 | F140: Köln | G140: 5 | H140: 2021-05-17
A141: 136 | B141: 1 | C141: 100 | D141: 100 | E141: Vertrieb_4 | F141: Frankfurt am Main | G141: 5 | H141: 2021-05-18
A142: 137 | B142: 1 | C142: 200 | D142: 110 | E142: Vertrieb_1 | F142: Hamburg | G142: 5 | H142: 2021-05-19
A143: 138 | B143: 1 | C143: 250 | D143: 120 | E143: Vertrieb_2 | F143: München | G143: 5 | H143: 2021-05-20
A144: 139 | B144: 1 | C144: 100 | D144: 100 | E144: Vertrieb_3 | F144: Köln | G144: 5 | H144: 2021-05-21
A145: 140 | B145: 1 | C145: 200 | D145: 110 | E145: Vertrieb_4 | F145: Frankfurt am Main | G145: 5 | H145: 2021-05-22
A146: 141 | B146: 1 | C146: 250 | D146: 120 | E146: Vertrieb_1 | F146: Hamburg | G146: 5 | H146: 2021-05-23
A147: 142 | B147: 1 | C147: 100 | D147: 100 | E147: Vertrieb_2 | F147: München | G147: 5 | H147: 2021-05-24
A148: 143 | B148: 1 | C148: 200 | D148: 110 | E148: Vertrieb_3 | F148: Köln | G148: 5 | H148: 2021-05-25
A149: 144 | B149: 1 | C149: 250 | D149: 120 | E149: Vertrieb_4 | F149: Frankfurt am Main | G149: 5 | H149: 2021-05-26
A150: 145 | B150: 1 | C150: 100 | D150: 100 | E150: Vertrieb_1 | F150: Hamburg | G150: 5 | H150: 2021-05-27
A151: 146 | B151: 1 | C151: 250 | D151: 120 | E151: Vertrieb_2 | F151: München | G151: 5 | H151: 2021-05-28
A152: 147 | B152: 1 | C152: 100 | D152: 100 | E152: Vertrieb_3 | F152: Köln | G152: 5 | H152: 2021-05-29
A153: 148 | B153: 1 | C153: 200 | D153: 110 | E153: Vertrieb_4 | F153: Frankfurt am Main | G153: 5 | H153: 2021-05-30
A154: 149 | B154: 1 | C154: 250 | D154: 120 | E154: Vertrieb_1 | F154: Hamburg | G154: 5 | H154: 2021-05-31
B155: =SUBTOTAL(9,B124:B154) -> 31 | C155: =SUBTOTAL(9,C124:C154) -> 5750 | G155: 5 Ergebnis
A156: 150 | B156: 1 | C156: 100 | D156: 100 | E156: Vertrieb_2 | F156: München | G156: 6 | H156: 2021-06-01
A157: 151 | B157: 1 | C157: 200 | D157: 110 | E157: Vertrieb_3 | F157: Köln | G157: 6 | H157: 2021-06-02
A158: 152 | B158: 1 | C158: 250 | D158: 120 | E158: Vertrieb_4 | F158: Frankfurt am Main | G158: 6 | H158: 2021-06-03
A159: 153 | B159: 1 | C159: 100 | D159: 100 | E159: Vertrieb_1 | F159: Hamburg | G159: 6 | H159: 2021-06-04
A160: 154 | B160: 1 | C160: 200 | D160: 110 | E160: Vertrieb_2 | F160: München | G160: 6 | H160: 2021-06-05
A161: 155 | B161: 1 | C161: 250 | D161: 120 | E161: Vertrieb_3 | F161: Köln | G161: 6 | H161: 2021-06-06
A162: 156 | B162: 1 | C162: 100 | D162: 100 | E162: Vertrieb_4 | F162: Frankfurt am Main | G162: 6 | H162: 2021-06-07
A163: 157 | B163: 1 | C163: 200 | D163: 110 | E163: Vertrieb_1 | F163: Hamburg | G163: 6 | H163: 2021-06-08
A164: 158 | B164: 1 | C164: 250 | D164: 120 | E164: Vertrieb_2 | F164: München | G164: 6 | H164: 2021-06-09
A165: 159 | B165: 1 | C165: 100 | D165: 100 | E165: Vertrieb_3 | F165: Köln | G165: 6 | H165: 2021-06-10
A166: 160 | B166: 1 | C166: 200 | D166: 110 | E166: Vertrieb_4 | F166: Frankfurt am Main | G166: 6 | H166: 2021-06-11
A167: 161 | B167: 1 | C167: 250 | D167: 120 | E167: Vertrieb_1 | F167: Hamburg | G167: 6 | H167: 2021-06-12
A168: 162 | B168: 1 | C168: 100 | D168: 100 | E168: Vertrieb_2 | F168: München | G168: 6 | H168: 2021-06-13
A169: 163 | B169: 1 | C169: 200 | D169: 110 | E169: Vertrieb_3 | F169: Köln | G169: 6 | H169: 2021-06-14
A170: 164 | B170: 1 | C170: 250 | D170: 120 | E170: Vertrieb_4 | F170: Frankfurt am Main | G170: 6 | H170: 2021-06-15
A171: 165 | B171: 1 | C171: 100 | D171: 100 | E171: Vertrieb_1 | F171: Hamburg | G171: 6 | H171: 2021-06-16
A172: 166 | B172: 1 | C172: 200 | D172: 110 | E172: Vertrieb_2 | F172: München | G172: 6 | H172: 2021-06-17
A173: 167 | B173: 1 | C173: 250 | D173: 120 | E173: Vertrieb_3 | F173: Köln | G173: 6 | H173: 2021-06-18
A174: 168 | B174: 1 | C174: 100 | D174: 100 | E174: Vertrieb_4 | F174: Frankfurt am Main | G174: 6 | H174: 2021-06-19
A175: 169 | B175: 1 | C175: 200 | D175: 110 | E175: Vertrieb_1 | F175: Hamburg | G175: 6 | H175: 2021-06-20
A176: 170 | B176: 1 | C176: 250 | D176: 120 | E176: Vertrieb_2 | F176: München | G176: 6 | H176: 2021-06-21
A177: 171 | B177: 1 | C177: 100 | D177: 100 | E177: Vertrieb_3 | F177: Köln | G177: 6 | H177: 2021-06-22
A178: 172 | B178: 1 | C178: 200 | D178: 110 | E178: Vertrieb_4 | F178: Frankfurt am Main | G178: 6 | H178: 2021-06-23
A179: 173 | B179: 1 | C179: 250 | D179: 120 | E179: Vertrieb_1 | F179: Hamburg | G179: 6 | H179: 2021-06-24
A180: 174 | B180: 1 | C180: 100 | D180: 100 | E180: Vertrieb_2 | F180: München | G180: 6 | H180: 2021-06-25
A181: 175 | B181: 1 | C181: 200 | D181: 110 | E181: Vertrieb_3 | F181: Köln | G181: 6 | H181: 2021-06-26
A182: 176 | B182: 1 | C182: 250 | D182: 120 | E182: Vertrieb_4 | F182: Frankfurt am Main | G182: 6 | H182: 2021-06-27
A183: 177 | B183: 1 | C183: 200 | D183: 110 | E183: Vertrieb_1 | F183: Hamburg | G183: 6 | H183: 2021-06-28
A184: 178 | B184: 1 | C184: 250 | D184: 120 | E184: Vertrieb_2 | F184: München | G184: 6 | H184: 2021-06-29
A185: 179 | B185: 1 | C185: 100 | D185: 100 | E185: Vertrieb_3 | F185: Köln | G185: 6 | H185: 2021-06-30
B186: =SUBTOTAL(9,B156:B185) -> 30 | C186: =SUBTOTAL(9,C156:C185) -> 5500 | G186: 6 Ergebnis
A187: 180 | B187: 1 | C187: 200 | D187: 110 | E187: Vertrieb_4 | F187: Frankfurt am Main | G187: 7 | H187: 2021-07-01
A188: 181 | B188: 1 | C188: 250 | D188: 120 | E188: Vertrieb_1 | F188: Hamburg | G188: 7 | H188: 2021-07-02
A189: 182 | B189: 1 | C189: 100 | D189: 100 | E189: Vertrieb_2 | F189: München | G189: 7 | H189: 2021-07-03
A190: 183 | B190: 1 | C190: 200 | D190: 110 | E190: Vertrieb_3 | F190: Köln | G190: 7 | H190: 2021-07-04
A191: 184 | B191: 1 | C191: 250 | D191: 120 | E191: Vertrieb_4 | F191: Frankfurt am Main | G191: 7 | H191: 2021-07-05
A192: 185 | B192: 1 | C192: 100 | D192: 100 | E192: Vertrieb_1 | F192: Hamburg | G192: 7 | H192: 2021-07-06
A193: 186 | B193: 1 | C193: 200 | D193: 110 | E193: Vertrieb_2 | F193: München | G193: 7 | H193: 2021-07-07
A194: 187 | B194: 1 | C194: 250 | D194: 120 | E194: Vertrieb_3 | F194: Köln | G194: 7 | H194: 2021-07-08
A195: 188 | B195: 1 | C195: 100 | D195: 100 | E195: Vertrieb_4 | F195: Frankfurt am Main | G195: 7 | H195: 2021-07-09
A196: 189 | B196: 1 | C196: 200 | D196: 110 | E196: Vertrieb_1 | F196: Hamburg | G196: 7 | H196: 2021-07-10
A197: 190 | B197: 1 | C197: 250 | D197: 120 | E197: Vertrieb_2 | F197: München | G197: 7 | H197: 2021-07-11
A198: 191 | B198: 1 | C198: 100 | D198: 100 | E198: Vertrieb_3 | F198: Köln | G198: 7 | H198: 2021-07-12
A199: 192 | B199: 1 | C199: 200 | D199: 110 | E199: Vertrieb_4 | F199: Frankfurt am Main | G199: 7 | H199: 2021-07-13
A200: 193 | B200: 1 | C200: 250 | D200: 120 | E200: Vertrieb_1 | F200: Hamburg | G200: 7 | H200: 2021-07-14
... 177 more rows

Sheet Summewenns
A1: lfd. Nr. | B1: Anzahl | C1: Umsatz | D1: Produkt | E1: Vertrieb | F1: Ort | G1: Monat | H1: Datum | J1: Vertrieb | K1: 100 | L1: 110 | M1: 120 | N1: Summe
A2: 1 | B2: 1 | C2: 100 | D2: 100 | E2: Vertrieb_1 | F2: Hamburg | G2: 1 | H2: 2021-01-03 | J2: Vertrieb_1 | K2: =SUMIFS($C:$C,$E:$E,$J2,$D:$D,K$1) -> 2600 | L2: =SUMIFS($C:$C,$E:$E,$J2,$D:$D,L$1) -> 6200 | M2: 8500 | N2: =SUM(K2:M2) -> 17300
A3: 2 | B3: 1 | C3: 200 | D3: 110 | E3: Vertrieb_2 | F3: München | G3: 1 | H3: 2021-01-04 | J3: Vertrieb_2 | K3: =SUMIFS($C:$C,$E:$E,$J3,$D:$D,K$1) -> 3400 | L3: 4800 | M3: 8250 | N3: =SUM(K3:M3) -> 16450
A4: 3 | B4: 1 | C4: 250 | D4: 120 | E4: Vertrieb_3 | F4: Köln | G4: 1 | H4: 2021-01-05 | J4: Vertrieb_3 | K4: 3500 | L4: 6200 | M4: 6250 | N4: 15950
A5: 4 | B5: 1 | C5: 100 | D5: 100 | E5: Vertrieb_4 | F5: Frankfurt am Main | G5: 1 | H5: 2021-01-06 | J5: Vertrieb_4 | K5: 2800 | L5: 6800 | M5: 7000 | N5: 16600
A6: 5 | B6: 1 | C6: 200 | D6: 110 | E6: Vertrieb_1 | F6: Hamburg | G6: 1 | H6: 2021-01-07 | K6: =SUM(K2:K5) -> 12300 | L6: 24000 | M6: 30000 | N6: =SUM(N2:N5) -> 66300
A7: 6 | B7: 1 | C7: 200 | D7: 110 | E7: Vertrieb_2 | F7: München | G7: 1 | H7: 2021-01-08
A8: 7 | B8: 1 | C8: 250 | D8: 120 | E8: Vertrieb_3 | F8: Köln | G8: 1 | H8: 2021-01-09
A9: 8 | B9: 1 | C9: 100 | D9: 100 | E9: Vertrieb_4 | F9: Frankfurt am Main | G9: 1 | H9: 2021-01-10 | J9: im Vergleich dazu mit Pivot:
A10: 9 | B10: 1 | C10: 200 | D10: 110 | E10: Vertrieb_1 | F10: Hamburg | G10: 1 | H10: 2021-01-11 | J10: Summe von Umsatz | K10: Spaltenbeschriftungen
A11: 10 | B11: 1 | C11: 250 | D11: 120 | E11: Vertrieb_2 | F11: München | G11: 1 | H11: 2021-01-12 | J11: Zeilenbeschriftungen | K11: 100 | L11: 110 | M11: 120 | N11: Gesamtergebnis
A12: 11 | B12: 1 | C12: 250 | D12: 120 | E12: Vertrieb_3 | F12: Köln | G12: 1 | H12: 2021-01-13 | J12: Vertrieb_1 | K12: 2600 | L12: 6200 | M12: 8500 | N12: 17300
A13: 12 | B13: 1 | C13: 100 | D13: 100 | E13: Vertrieb_4 | F13: Frankfurt am Main | G13: 1 | H13: 2021-01-14 | J13: Vertrieb_2 | K13: 3400 | L13: 4800 | M13: 8250 | N13: 16450
A14: 13 | B14: 1 | C14: 200 | D14: 110 | E14: Vertrieb_1 | F14: Hamburg | G14: 1 | H14: 2021-01-15 | J14: Vertrieb_3 | K14: 3500 | L14: 6200 | M14: 6250 | N14: 15950
A15: 14 | B15: 1 | C15: 250 | D15: 120 | E15: Vertrieb_2 | F15: München | G15: 1 | H15: 2021-01-16 | J15: Vertrieb_4 | K15: 2800 | L15: 6800 | M15: 7000 | N15: 16600
A16: 15 | B16: 1 | C16: 100 | D16: 100 | E16: Vertrieb_3 | F16: Köln | G16: 1 | H16: 2021-01-17 | J16: Gesamtergebnis | K16: 12300 | L16: 24000 | M16: 30000 | N16: 66300
A17: 16 | B17: 1 | C17: 200 | D17: 110 | E17: Vertrieb_4 | F17: Frankfurt am Main | G17: 1 | H17: 2021-01-18
A18: 17 | B18: 1 | C18: 250 | D18: 120 | E18: Vertrieb_1 | F18: Hamburg | G18: 1 | H18: 2021-01-19
A19: 18 | B19: 1 | C19: 100 | D19: 100 | E19: Vertrieb_2 | F19: München | G19: 1 | H19: 2021-01-20
A20: 19 | B20: 1 | C20: 200 | D20: 110 | E20: Vertrieb_3 | F20: Köln | G20: 1 | H20: 2021-01-21
A21: 20 | B21: 1 | C21: 250 | D21: 120 | E21: Vertrieb_4 | F21: Frankfurt am Main | G21: 1 | H21: 2021-01-22
A22: 21 | B22: 1 | C22: 100 | D22: 100 | E22: Vertrieb_1 | F22: Hamburg | G22: 1 | H22: 2021-01-23
A23: 22 | B23: 1 | C23: 250 | D23: 120 | E23: Vertrieb_2 | F23: München | G23: 1 | H23: 2021-01-24
A24: 23 | B24: 1 | C24: 100 | D24: 100 | E24: Vertrieb_3 | F24: Köln | G24: 1 | H24: 2021-01-25
A25: 24 | B25: 1 | C25: 200 | D25: 110 | E25: Vertrieb_4 | F25: Frankfurt am Main | G25: 1 | H25: 2021-01-26
A26: 25 | B26: 1 | C26: 250 | D26: 120 | E26: Vertrieb_1 | F26: Hamburg | G26: 1 | H26: 2021-01-27
A27: 26 | B27: 1 | C27: 100 | D27: 100 | E27: Vertrieb_2 | F27: München | G27: 1 | H27: 2021-01-28
A28: 27 | B28: 1 | C28: 200 | D28: 110 | E28: Vertrieb_3 | F28: Köln | G28: 1 | H28: 2021-01-29
A29: 28 | B29: 1 | C29: 250 | D29: 120 | E29: Vertrieb_4 | F29: Frankfurt am Main | G29: 1 | H29: 2021-01-30
A30: 29 | B30: 1 | C30: 100 | D30: 100 | E30: Vertrieb_1 | F30: Hamburg | G30: 1 | H30: 2021-01-31
A31: 30 | B31: 1 | C31: 200 | D31: 110 | E31: Vertrieb_2 | F31: München | G31: 2 | H31: 2021-02-01
A32: 31 | B32: 1 | C32: 250 | D32: 120 | E32: Vertrieb_3 | F32: Köln | G32: 2 | H32: 2021-02-02
A33: 32 | B33: 1 | C33: 100 | D33: 100 | E33: Vertrieb_4 | F33: Frankfurt am Main | G33: 2 | H33: 2021-02-03
A34: 33 | B34: 1 | C34: 200 | D34: 110 | E34: Vertrieb_1 | F34: Hamburg | G34: 2 | H34: 2021-02-04
A35: 34 | B35: 1 | C35: 250 | D35: 120 | E35: Vertrieb_2 | F35: München | G35: 2 | H35: 2021-02-05
A36: 35 | B36: 1 | C36: 100 | D36: 100 | E36: Vertrieb_3 | F36: Köln | G36: 2 | H36: 2021-02-06
A37: 36 | B37: 1 | C37: 200 | D37: 110 | E37: Vertrieb_4 | F37: Frankfurt am Main | G37: 2 | H37: 2021-02-07
A38: 37 | B38: 1 | C38: 250 | D38: 120 | E38: Vertrieb_1 | F38: Hamburg | G38: 2 | H38: 2021-02-08
A39: 38 | B39: 1 | C39: 100 | D39: 100 | E39: Vertrieb_2 | F39: München | G39: 2 | H39: 2021-02-09
A40: 39 | B40: 1 | C40: 200 | D40: 110 | E40: Vertrieb_3 | F40: Köln | G40: 2 | H40: 2021-02-10
A41: 40 | B41: 1 | C41: 250 | D41: 120 | E41: Vertrieb_4 | F41: Frankfurt am Main | G41: 2 | H41: 2021-02-11
A42: 41 | B42: 1 | C42: 100 | D42: 100 | E42: Vertrieb_1 | F42: Hamburg | G42: 2 | H42: 2021-02-12
A43: 42 | B43: 1 | C43: 200 | D43: 110 | E43: Vertrieb_2 | F43: München | G43: 2 | H43: 2021-02-13
A44: 43 | B44: 1 | C44: 250 | D44: 120 | E44: Vertrieb_3 | F44: Köln | G44: 2 | H44: 2021-02-14
A45: 44 | B45: 1 | C45: 100 | D45: 100 | E45: Vertrieb_4 | F45: Frankfurt am Main | G45: 2 | H45: 2021-02-15
A46: 45 | B46: 1 | C46: 200 | D46: 110 | E46: Vertrieb_1 | F46: Hamburg | G46: 2 | H46: 2021-02-16
A47: 46 | B47: 1 | C47: 250 | D47: 120 | E47: Vertrieb_2 | F47: München | G47: 2 | H47: 2021-02-17
A48: 47 | B48: 1 | C48: 100 | D48: 100 | E48: Vertrieb_3 | F48: Köln | G48: 2 | H48: 2021-02-18
A49: 48 | B49: 1 | C49: 200 | D49: 110 | E49: Vertrieb_4 | F49: Frankfurt am Main | G49: 2 | H49: 2021-02-19
A50: 49 | B50: 1 | C50: 250 | D50: 120 | E50: Vertrieb_1 | F50: Hamburg | G50: 2 | H50: 2021-02-20
A51: 50 | B51: 1 | C51: 100 | D51: 100 | E51: Vertrieb_2 | F51: München | G51: 2 | H51: 2021-02-21
A52: 51 | B52: 1 | C52: 200 | D52: 110 | E52: Vertrieb_3 | F52: Köln | G52: 2 | H52: 2021-02-22
A53: 52 | B53: 1 | C53: 250 | D53: 120 | E53: Vertrieb_4 | F53: Frankfurt am Main | G53: 2 | H53: 2021-02-23
A54: 53 | B54: 1 | C54: 200 | D54: 110 | E54: Vertrieb_1 | F54: Hamburg | G54: 2 | H54: 2021-02-24
A55: 54 | B55: 1 | C55: 250 | D55: 120 | E55: Vertrieb_2 | F55: München | G55: 2 | H55: 2021-02-25
A56: 55 | B56: 1 | C56: 100 | D56: 100 | E56: Vertrieb_3 | F56: Köln | G56: 2 | H56: 2021-02-26
A57: 56 | B57: 1 | C57: 200 | D57: 110 | E57: Vertrieb_4 | F57: Frankfurt am Main | G57: 2 | H57: 2021-02-27
A58: 57 | B58: 1 | C58: 250 | D58: 120 | E58: Vertrieb_1 | F58: Hamburg | G58: 2 | H58: 2021-02-28
A59: 58 | B59: 1 | C59: 100 | D59: 100 | E59: Vertrieb_2 | F59: München | G59: 3 | H59: 2021-03-01
A60: 59 | B60: 1 | C60: 200 | D60: 110 | E60: Vertrieb_3 | F60: Köln | G60: 3 | H60: 2021-03-02
A61: 60 | B61: 1 | C61: 250 | D61: 120 | E61: Vertrieb_4 | F61: Frankfurt am Main | G61: 3 | H61: 2021-03-03
A62: 61 | B62: 1 | C62: 100 | D62: 100 | E62: Vertrieb_1 | F62: Hamburg | G62: 3 | H62: 2021-03-04
A63: 62 | B63: 1 | C63: 200 | D63: 110 | E63: Vertrieb_2 | F63: München | G63: 3 | H63: 2021-03-05
A64: 63 | B64: 1 | C64: 250 | D64: 120 | E64: Vertrieb_3 | F64: Köln | G64: 3 | H64: 2021-03-06
A65: 64 | B65: 1 | C65: 100 | D65: 100 | E65: Vertrieb_4 | F65: Frankfurt am Main | G65: 3 | H65: 2021-03-07
A66: 65 | B66: 1 | C66: 200 | D66: 110 | E66: Vertrieb_1 | F66: Hamburg | G66: 3 | H66: 2021-03-08
A67: 66 | B67: 1 | C67: 250 | D67: 120 | E67: Vertrieb_2 | F67: München | G67: 3 | H67: 2021-03-09
A68: 67 | B68: 1 | C68: 100 | D68: 100 | E68: Vertrieb_3 | F68: Köln | G68: 3 | H68: 2021-03-10
A69: 68 | B69: 1 | C69: 200 | D69: 110 | E69: Vertrieb_4 | F69: Frankfurt am Main | G69: 3 | H69: 2021-03-11
A70: 69 | B70: 1 | C70: 250 | D70: 120 | E70: Vertrieb_1 | F70: Hamburg | G70: 3 | H70: 2021-03-12
A71: 70 | B71: 1 | C71: 100 | D71: 100 | E71: Vertrieb_2 | F71: München | G71: 3 | H71: 2021-03-13
A72: 71 | B72: 1 | C72: 200 | D72: 110 | E72: Vertrieb_3 | F72: Köln | G72: 3 | H72: 2021-03-14
A73: 72 | B73: 1 | C73: 250 | D73: 120 | E73: Vertrieb_4 | F73: Frankfurt am Main | G73: 3 | H73: 2021-03-15
A74: 73 | B74: 1 | C74: 100 | D74: 100 | E74: Vertrieb_1 | F74: Hamburg | G74: 3 | H74: 2021-03-16
A75: 74 | B75: 1 | C75: 200 | D75: 110 | E75: Vertrieb_2 | F75: München | G75: 3 | H75: 2021-03-17
A76: 75 | B76: 1 | C76: 250 | D76: 120 | E76: Vertrieb_3 | F76: Köln | G76: 3 | H76: 2021-03-18
A77: 76 | B77: 1 | C77: 100 | D77: 100 | E77: Vertrieb_4 | F77: Frankfurt am Main | G77: 3 | H77: 2021-03-19
A78: 77 | B78: 1 | C78: 200 | D78: 110 | E78: Vertrieb_1 | F78: Hamburg | G78: 3 | H78: 2021-03-20
A79: 78 | B79: 1 | C79: 250 | D79: 120 | E79: Vertrieb_2 | F79: München | G79: 3 | H79: 2021-03-21
A80: 79 | B80: 1 | C80: 100 | D80: 100 | E80: Vertrieb_3 | F80: Köln | G80: 3 | H80: 2021-03-22
A81: 80 | B81: 1 | C81: 200 | D81: 110 | E81: Vertrieb_4 | F81: Frankfurt am Main | G81: 3 | H81: 2021-03-23
A82: 81 | B82: 1 | C82: 250 | D82: 120 | E82: Vertrieb_1 | F82: Hamburg | G82: 3 | H82: 2021-03-24
A83: 82 | B83: 1 | C83: 100 | D83: 100 | E83: Vertrieb_2 | F83: München | G83: 3 | H83: 2021-03-25
A84: 83 | B84: 1 | C84: 200 | D84: 110 | E84: Vertrieb_3 | F84: Köln | G84: 3 | H84: 2021-03-26
A85: 84 | B85: 1 | C85: 100 | D85: 100 | E85: Vertrieb_4 | F85: Frankfurt am Main | G85: 3 | H85: 2021-03-27
A86: 85 | B86: 1 | C86: 200 | D86: 110 | E86: Vertrieb_1 | F86: Hamburg | G86: 3 | H86: 2021-03-28
A87: 86 | B87: 1 | C87: 250 | D87: 120 | E87: Vertrieb_2 | F87: München | G87: 3 | H87: 2021-03-29
A88: 87 | B88: 1 | C88: 100 | D88: 100 | E88: Vertrieb_3 | F88: Köln | G88: 3 | H88: 2021-03-30
A89: 88 | B89: 1 | C89: 200 | D89: 110 | E89: Vertrieb_4 | F89: Frankfurt am Main | G89: 3 | H89: 2021-03-31
A90: 89 | B90: 1 | C90: 250 | D90: 120 | E90: Vertrieb_1 | F90: Hamburg | G90: 4 | H90: 2021-04-01
A91: 90 | B91: 1 | C91: 100 | D91: 100 | E91: Vertrieb_2 | F91: München | G91: 4 | H91: 2021-04-02
A92: 91 | B92: 1 | C92: 200 | D92: 110 | E92: Vertrieb_3 | F92: Köln | G92: 4 | H92: 2021-04-03
A93: 92 | B93: 1 | C93: 250 | D93: 120 | E93: Vertrieb_4 | F93: Frankfurt am Main | G93: 4 | H93: 2021-04-04
A94: 93 | B94: 1 | C94: 100 | D94: 100 | E94: Vertrieb_1 | F94: Hamburg | G94: 4 | H94: 2021-04-05
A95: 94 | B95: 1 | C95: 200 | D95: 110 | E95: Vertrieb_2 | F95: München | G95: 4 | H95: 2021-04-06
A96: 95 | B96: 1 | C96: 250 | D96: 120 | E96: Vertrieb_3 | F96: Köln | G96: 4 | H96: 2021-04-07
A97: 96 | B97: 1 | C97: 100 | D97: 100 | E97: Vertrieb_4 | F97: Frankfurt am Main | G97: 4 | H97: 2021-04-08
A98: 97 | B98: 1 | C98: 200 | D98: 110 | E98: Vertrieb_1 | F98: Hamburg | G98: 4 | H98: 2021-04-09
A99: 98 | B99: 1 | C99: 250 | D99: 120 | E99: Vertrieb_2 | F99: München | G99: 4 | H99: 2021-04-10
A100: 99 | B100: 1 | C100: 100 | D100: 100 | E100: Vertrieb_3 | F100: Köln | G100: 4 | H100: 2021-04-11
A101: 100 | B101: 1 | C101: 200 | D101: 110 | E101: Vertrieb_4 | F101: Frankfurt am Main | G101: 4 | H101: 2021-04-12
A102: 101 | B102: 1 | C102: 250 | D102: 120 | E102: Vertrieb_1 | F102: Hamburg | G102: 4 | H102: 2021-04-13
A103: 102 | B103: 1 | C103: 100 | D103: 100 | E103: Vertrieb_2 | F103: München | G103: 4 | H103: 2021-04-14
A104: 103 | B104: 1 | C104: 200 | D104: 110 | E104: Vertrieb_3 | F104: Köln | G104: 4 | H104: 2021-04-15
A105: 104 | B105: 1 | C105: 250 | D105: 120 | E105: Vertrieb_4 | F105: Frankfurt am Main | G105: 4 | H105: 2021-04-16
A106: 105 | B106: 1 | C106: 100 | D106: 100 | E106: Vertrieb_1 | F106: Hamburg | G106: 4 | H106: 2021-04-17
A107: 106 | B107: 1 | C107: 200 | D107: 110 | E107: Vertrieb_2 | F107: München | G107: 4 | H107: 2021-04-18
A108: 107 | B108: 1 | C108: 250 | D108: 120 | E108: Vertrieb_3 | F108: Köln | G108: 4 | H108: 2021-04-19
A109: 108 | B109: 1 | C109: 100 | D109: 100 | E109: Vertrieb_4 | F109: Frankfurt am Main | G109: 4 | H109: 2021-04-20
A110: 109 | B110: 1 | C110: 200 | D110: 110 | E110: Vertrieb_1 | F110: Hamburg | G110: 4 | H110: 2021-04-21
A111: 110 | B111: 1 | C111: 250 | D111: 120 | E111: Vertrieb_2 | F111: München | G111: 4 | H111: 2021-04-22
A112: 111 | B112: 1 | C112: 100 | D112: 100 | E112: Vertrieb_3 | F112: Köln | G112: 4 | H112: 2021-04-23
A113: 112 | B113: 1 | C113: 200 | D113: 110 | E113: Vertrieb_4 | F113: Frankfurt am Main | G113: 4 | H113: 2021-04-24
A114: 113 | B114: 1 | C114: 250 | D114: 120 | E114: Vertrieb_1 | F114: Hamburg | G114: 4 | H114: 2021-04-25
A115: 114 | B115: 1 | C115: 100 | D115: 100 | E115: Vertrieb_2 | F115: München | G115: 4 | H115: 2021-04-26
A116: 115 | B116: 1 | C116: 100 | D116: 100 | E116: Vertrieb_3 | F116: Köln | G116: 4 | H116: 2021-04-27
A117: 116 | B117: 1 | C117: 200 | D117: 110 | E117: Vertrieb_4 | F117: Frankfurt am Main | G117: 4 | H117: 2021-04-28
A118: 117 | B118: 1 | C118: 250 | D118: 120 | E118: Vertrieb_1 | F118: Hamburg | G118: 4 | H118: 2021-04-29
A119: 118 | B119: 1 | C119: 100 | D119: 100 | E119: Vertrieb_2 | F119: München | G119: 4 | H119: 2021-04-30
A120: 119 | B120: 1 | C120: 200 | D120: 110 | E120: Vertrieb_3 | F120: Köln | G120: 5 | H120: 2021-05-01
A121: 120 | B121: 1 | C121: 250 | D121: 120 | E121: Vertrieb_4 | F121: Frankfurt am Main | G121: 5 | H121: 2021-05-02
A122: 121 | B122: 1 | C122: 100 | D122: 100 | E122: Vertrieb_1 | F122: Hamburg | G122: 5 | H122: 2021-05-03
A123: 122 | B123: 1 | C123: 200 | D123: 110 | E123: Vertrieb_2 | F123: München | G123: 5 | H123: 2021-05-04
A124: 123 | B124: 1 | C124: 250 | D124: 120 | E124: Vertrieb_3 | F124: Köln | G124: 5 | H124: 2021-05-05
A125: 124 | B125: 1 | C125: 100 | D125: 100 | E125: Vertrieb_4 | F125: Frankfurt am Main | G125: 5 | H125: 2021-05-06
A126: 125 | B126: 1 | C126: 200 | D126: 110 | E126: Vertrieb_1 | F126: Hamburg | G126: 5 | H126: 2021-05-07
A127: 126 | B127: 1 | C127: 250 | D127: 120 | E127: Vertrieb_2 | F127: München | G127: 5 | H127: 2021-05-08
A128: 127 | B128: 1 | C128: 100 | D128: 100 | E128: Vertrieb_3 | F128: Köln | G128: 5 | H128: 2021-05-09
A129: 128 | B129: 1 | C129: 200 | D129: 110 | E129: Vertrieb_4 | F129: Frankfurt am Main | G129: 5 | H129: 2021-05-10
A130: 129 | B130: 1 | C130: 250 | D130: 120 | E130: Vertrieb_1 | F130: Hamburg | G130: 5 | H130: 2021-05-11
A131: 130 | B131: 1 | C131: 100 | D131: 100 | E131: Vertrieb_2 | F131: München | G131: 5 | H131: 2021-05-12
A132: 131 | B132: 1 | C132: 200 | D132: 110 | E132: Vertrieb_3 | F132: Köln | G132: 5 | H132: 2021-05-13
A133: 132 | B133: 1 | C133: 250 | D133: 120 | E133: Vertrieb_4 | F133: Frankfurt am Main | G133: 5 | H133: 2021-05-14
A134: 133 | B134: 1 | C134: 100 | D134: 100 | E134: Vertrieb_1 | F134: Hamburg | G134: 5 | H134: 2021-05-15
A135: 134 | B135: 1 | C135: 200 | D135: 110 | E135: Vertrieb_2 | F135: München | G135: 5 | H135: 2021-05-16
A136: 135 | B136: 1 | C136: 250 | D136: 120 | E136: Vertrieb_3 | F136: Köln | G136: 5 | H136: 2021-05-17
A137: 136 | B137: 1 | C137: 100 | D137: 100 | E137: Vertrieb_4 | F137: Frankfurt am Main | G137: 5 | H137: 2021-05-18
A138: 137 | B138: 1 | C138: 200 | D138: 110 | E138: Vertrieb_1 | F138: Hamburg | G138: 5 | H138: 2021-05-19
A139: 138 | B139: 1 | C139: 250 | D139: 120 | E139: Vertrieb_2 | F139: München | G139: 5 | H139: 2021-05-20
A140: 139 | B140: 1 | C140: 100 | D140: 100 | E140: Vertrieb_3 | F140: Köln | G140: 5 | H140: 2021-05-21
A141: 140 | B141: 1 | C141: 200 | D141: 110 | E141: Vertrieb_4 | F141: Frankfurt am Main | G141: 5 | H141: 2021-05-22
A142: 141 | B142: 1 | C142: 250 | D142: 120 | E142: Vertrieb_1 | F142: Hamburg | G142: 5 | H142: 2021-05-23
A143: 142 | B143: 1 | C143: 100 | D143: 100 | E143: Vertrieb_2 | F143: München | G143: 5 | H143: 2021-05-24
A144: 143 | B144: 1 | C144: 200 | D144: 110 | E144: Vertrieb_3 | F144: Köln | G144: 5 | H144: 2021-05-25
A145: 144 | B145: 1 | C145: 250 | D145: 120 | E145: Vertrieb_4 | F145: Frankfurt am Main | G145: 5 | H145: 2021-05-26
A146: 145 | B146: 1 | C146: 100 | D146: 100 | E146: Vertrieb_1 | F146: Hamburg | G146: 5 | H146: 2021-05-27
A147: 146 | B147: 1 | C147: 250 | D147: 120 | E147: Vertrieb_2 | F147: München | G147: 5 | H147: 2021-05-28
A148: 147 | B148: 1 | C148: 100 | D148: 100 | E148: Vertrieb_3 | F148: Köln | G148: 5 | H148: 2021-05-29
A149: 148 | B149: 1 | C149: 200 | D149: 110 | E149: Vertrieb_4 | F149: Frankfurt am Main | G149: 5 | H149: 2021-05-30
A150: 149 | B150: 1 | C150: 250 | D150: 120 | E150: Vertrieb_1 | F150: Hamburg | G150: 5 | H150: 2021-05-31
A151: 150 | B151: 1 | C151: 100 | D151: 100 | E151: Vertrieb_2 | F151: München | G151: 6 | H151: 2021-06-01
A152: 151 | B152: 1 | C152: 200 | D152: 110 | E152: Vertrieb_3 | F152: Köln | G152: 6 | H152: 2021-06-02
A153: 152 | B153: 1 | C153: 250 | D153: 120 | E153: Vertrieb_4 | F153: Frankfurt am Main | G153: 6 | H153: 2021-06-03
A154: 153 | B154: 1 | C154: 100 | D154: 100 | E154: Vertrieb_1 | F154: Hamburg | G154: 6 | H154: 2021-06-04
A155: 154 | B155: 1 | C155: 200 | D155: 110 | E155: Vertrieb_2 | F155: München | G155: 6 | H155: 2021-06-05
A156: 155 | B156: 1 | C156: 250 | D156: 120 | E156: Vertrieb_3 | F156: Köln | G156: 6 | H156: 2021-06-06
A157: 156 | B157: 1 | C157: 100 | D157: 100 | E157: Vertrieb_4 | F157: Frankfurt am Main | G157: 6 | H157: 2021-06-07
A158: 157 | B158: 1 | C158: 200 | D158: 110 | E158: Vertrieb_1 | F158: Hamburg | G158: 6 | H158: 2021-06-08
A159: 158 | B159: 1 | C159: 250 | D159: 120 | E159: Vertrieb_2 | F159: München | G159: 6 | H159: 2021-06-09
A160: 159 | B160: 1 | C160: 100 | D160: 100 | E160: Vertrieb_3 | F160: Köln | G160: 6 | H160: 2021-06-10
A161: 160 | B161: 1 | C161: 200 | D161: 110 | E161: Vertrieb_4 | F161: Frankfurt am Main | G161: 6 | H161: 2021-06-11
A162: 161 | B162: 1 | C162: 250 | D162: 120 | E162: Vertrieb_1 | F162: Hamburg | G162: 6 | H162: 2021-06-12
A163: 162 | B163: 1 | C163: 100 | D163: 100 | E163: Vertrieb_2 | F163: München | G163: 6 | H163: 2021-06-13
A164: 163 | B164: 1 | C164: 200 | D164: 110 | E164: Vertrieb_3 | F164: Köln | G164: 6 | H164: 2021-06-14
A165: 164 | B165: 1 | C165: 250 | D165: 120 | E165: Vertrieb_4 | F165: Frankfurt am Main | G165: 6 | H165: 2021-06-15
A166: 165 | B166: 1 | C166: 100 | D166: 100 | E166: Vertrieb_1 | F166: Hamburg | G166: 6 | H166: 2021-06-16
A167: 166 | B167: 1 | C167: 200 | D167: 110 | E167: Vertrieb_2 | F167: München | G167: 6 | H167: 2021-06-17
A168: 167 | B168: 1 | C168: 250 | D168: 120 | E168: Vertrieb_3 | F168: Köln | G168: 6 | H168: 2021-06-18
A169: 168 | B169: 1 | C169: 100 | D169: 100 | E169: Vertrieb_4 | F169: Frankfurt am Main | G169: 6 | H169: 2021-06-19
A170: 169 | B170: 1 | C170: 200 | D170: 110 | E170: Vertrieb_1 | F170: Hamburg | G170: 6 | H170: 2021-06-20
A171: 170 | B171: 1 | C171: 250 | D171: 120 | E171: Vertrieb_2 | F171: München | G171: 6 | H171: 2021-06-21
A172: 171 | B172: 1 | C172: 100 | D172: 100 | E172: Vertrieb_3 | F172: Köln | G172: 6 | H172: 2021-06-22
A173: 172 | B173: 1 | C173: 200 | D173: 110 | E173: Vertrieb_4 | F173: Frankfurt am Main | G173: 6 | H173: 2021-06-23
A174: 173 | B174: 1 | C174: 250 | D174: 120 | E174: Vertrieb_1 | F174: Hamburg | G174: 6 | H174: 2021-06-24
A175: 174 | B175: 1 | C175: 100 | D175: 100 | E175: Vertrieb_2 | F175: München | G175: 6 | H175: 2021-06-25
A176: 175 | B176: 1 | C176: 200 | D176: 110 | E176: Vertrieb_3 | F176: Köln | G176: 6 | H176: 2021-06-26
A177: 176 | B177: 1 | C177: 250 | D177: 120 | E177: Vertrieb_4 | F177: Frankfurt am Main | G177: 6 | H177: 2021-06-27
A178: 177 | B178: 1 | C178: 200 | D178: 110 | E178: Vertrieb_1 | F178: Hamburg | G178: 6 | H178: 2021-06-28
A179: 178 | B179: 1 | C179: 250 | D179: 120 | E179: Vertrieb_2 | F179: München | G179: 6 | H179: 2021-06-29
A180: 179 | B180: 1 | C180: 100 | D180: 100 | E180: Vertrieb_3 | F180: Köln | G180: 6 | H180: 2021-06-30
A181: 180 | B181: 1 | C181: 200 | D181: 110 | E181: Vertrieb_4 | F181: Frankfurt am Main | G181: 7 | H181: 2021-07-01
A182: 181 | B182: 1 | C182: 250 | D182: 120 | E182: Vertrieb_1 | F182: Hamburg | G182: 7 | H182: 2021-07-02
A183: 182 | B183: 1 | C183: 100 | D183: 100 | E183: Vertrieb_2 | F183: München | G183: 7 | H183: 2021-07-03
A184: 183 | B184: 1 | C184: 200 | D184: 110 | E184: Vertrieb_3 | F184: Köln | G184: 7 | H184: 2021-07-04
A185: 184 | B185: 1 | C185: 250 | D185: 120 | E185: Vertrieb_4 | F185: Frankfurt am Main | G185: 7 | H185: 2021-07-05
A186: 185 | B186: 1 | C186: 100 | D186: 100 | E186: Vertrieb_1 | F186: Hamburg | G186: 7 | H186: 2021-07-06
A187: 186 | B187: 1 | C187: 200 | D187: 110 | E187: Vertrieb_2 | F187: München | G187: 7 | H187: 2021-07-07
A188: 187 | B188: 1 | C188: 250 | D188: 120 | E188: Vertrieb_3 | F188: Köln | G188: 7 | H188: 2021-07-08
A189: 188 | B189: 1 | C189: 100 | D189: 100 | E189: Vertrieb_4 | F189: Frankfurt am Main | G189: 7 | H189: 2021-07-09
A190: 189 | B190: 1 | C190: 200 | D190: 110 | E190: Vertrieb_1 | F190: Hamburg | G190: 7 | H190: 2021-07-10
A191: 190 | B191: 1 | C191: 250 | D191: 120 | E191: Vertrieb_2 | F191: München | G191: 7 | H191: 2021-07-11
A192: 191 | B192: 1 | C192: 100 | D192: 100 | E192: Vertrieb_3 | F192: Köln | G192: 7 | H192: 2021-07-12
A193: 192 | B193: 1 | C193: 200 | D193: 110 | E193: Vertrieb_4 | F193: Frankfurt am Main | G193: 7 | H193: 2021-07-13
A194: 193 | B194: 1 | C194: 250 | D194: 120 | E194: Vertrieb_1 | F194: Hamburg | G194: 7 | H194: 2021-07-14
A195: 194 | B195: 1 | C195: 100 | D195: 100 | E195: Vertrieb_2 | F195: München | G195: 7 | H195: 2021-07-15
A196: 195 | B196: 1 | C196: 200 | D196: 110 | E196: Vertrieb_3 | F196: Köln | G196: 7 | H196: 2021-07-16
A197: 196 | B197: 1 | C197: 250 | D197: 120 | E197: Vertrieb_4 | F197: Frankfurt am Main | G197: 7 | H197: 2021-07-17
A198: 197 | B198: 1 | C198: 100 | D198: 100 | E198: Vertrieb_1 | F198: Hamburg | G198: 7 | H198: 2021-07-18
A199: 198 | B199: 1 | C199: 200 | D199: 110 | E199: Vertrieb_2 | F199: München | G199: 7 | H199: 2021-07-19
A200: 199 | B200: 1 | C200: 250 | D200: 120 | E200: Vertrieb_3 | F200: Köln | G200: 7 | H200: 2021-07-20
... 164 more rows

Sheet Summewenns (Formeln)
A1: lfd. Nr. | B1: Anzahl | C1: Umsatz | D1: Produkt | E1: Vertrieb | F1: Ort | G1: Monat | H1: Datum | J1: Vertrieb | K1: 100 | L1: 110 | M1: 120 | N1: Summe
A2: 1 | B2: 1 | C2: 100 | D2: 100 | E2: Vertrieb_1 | F2: Hamburg | G2: 1 | H2: 2021-01-03 | J2: Vertrieb_1 | K2: =SUMIFS($C:$C,$E:$E,$J2,$D:$D,K$1) -> 2600 | L2: =SUMIFS($C:$C,$E:$E,$J2,$D:$D,L$1) -> 6200 | M2: 8500 | N2: =SUM(K2:M2) -> 17300
A3: 2 | B3: 1 | C3: 200 | D3: 110 | E3: Vertrieb_2 | F3: München | G3: 1 | H3: 2021-01-04 | J3: Vertrieb_2 | K3: =SUMIFS($C:$C,$E:$E,$J3,$D:$D,K$1) -> 3400 | L3: 4800 | M3: 8250 | N3: =SUM(K3:M3) -> 16450
A4: 3 | B4: 1 | C4: 250 | D4: 120 | E4: Vertrieb_3 | F4: Köln | G4: 1 | H4: 2021-01-05 | J4: Vertrieb_3 | K4: 3500 | L4: 6200 | M4: 6250 | N4: 15950
A5: 4 | B5: 1 | C5: 100 | D5: 100 | E5: Vertrieb_4 | F5: Frankfurt am Main | G5: 1 | H5: 2021-01-06 | J5: Vertrieb_4 | K5: 2800 | L5: 6800 | M5: 7000 | N5: 16600
A6: 5 | B6: 1 | C6: 200 | D6: 110 | E6: Vertrieb_1 | F6: Hamburg | G6: 1 | H6: 2021-01-07 | K6: =SUM(K2:K5) -> 12300 | L6: 24000 | M6: 30000 | N6: =SUM(N2:N5) -> 66300
A7: 6 | B7: 1 | C7: 200 | D7: 110 | E7: Vertrieb_2 | F7: München | G7: 1 | H7: 2021-01-08
A8: 7 | B8: 1 | C8: 250 | D8: 120 | E8: Vertrieb_3 | F8: Köln | G8: 1 | H8: 2021-01-09
A9: 8 | B9: 1 | C9: 100 | D9: 100 | E9: Vertrieb_4 | F9: Frankfurt am Main | G9: 1 | H9: 2021-01-10 | J9: im Vergleich dazu mit Pivot:
A10: 9 | B10: 1 | C10: 200 | D10: 110 | E10: Vertrieb_1 | F10: Hamburg | G10: 1 | H10: 2021-01-11 | J10: Summe von Umsatz | K10: Spaltenbeschriftungen
A11: 10 | B11: 1 | C11: 250 | D11: 120 | E11: Vertrieb_2 | F11: München | G11: 1 | H11: 2021-01-12 | J11: Zeilenbeschriftungen | K11: 100 | L11: 110 | M11: 120 | N11: Gesamtergebnis
A12: 11 | B12: 1 | C12: 250 | D12: 120 | E12: Vertrieb_3 | F12: Köln | G12: 1 | H12: 2021-01-13 | J12: Vertrieb_1 | K12: 2600 | L12: 6200 | M12: 8500 | N12: 17300
A13: 12 | B13: 1 | C13: 100 | D13: 100 | E13: Vertrieb_4 | F13: Frankfurt am Main | G13: 1 | H13: 2021-01-14 | J13: Vertrieb_2 | K13: 3400 | L13: 4800 | M13: 8250 | N13: 16450
A14: 13 | B14: 1 | C14: 200 | D14: 110 | E14: Vertrieb_1 | F14: Hamburg | G14: 1 | H14: 2021-01-15 | J14: Vertrieb_3 | K14: 3500 | L14: 6200 | M14: 6250 | N14: 15950
A15: 14 | B15: 1 | C15: 250 | D15: 120 | E15: Vertrieb_2 | F15: München | G15: 1 | H15: 2021-01-16 | J15: Vertrieb_4 | K15: 2800 | L15: 6800 | M15: 7000 | N15: 16600
A16: 15 | B16: 1 | C16: 100 | D16: 100 | E16: Vertrieb_3 | F16: Köln | G16: 1 | H16: 2021-01-17 | J16: Gesamtergebnis | K16: 12300 | L16: 24000 | M16: 30000 | N16: 66300
A17: 16 | B17: 1 | C17: 200 | D17: 110 | E17: Vertrieb_4 | F17: Frankfurt am Main | G17: 1 | H17: 2021-01-18
A18: 17 | B18: 1 | C18: 250 | D18: 120 | E18: Vertrieb_1 | F18: Hamburg | G18: 1 | H18: 2021-01-19
A19: 18 | B19: 1 | C19: 100 | D19: 100 | E19: Vertrieb_2 | F19: München | G19: 1 | H19: 2021-01-20
A20: 19 | B20: 1 | C20: 200 | D20: 110 | E20: Vertrieb_3 | F20: Köln | G20: 1 | H20: 2021-01-21
A21: 20 | B21: 1 | C21: 250 | D21: 120 | E21: Vertrieb_4 | F21: Frankfurt am Main | G21: 1 | H21: 2021-01-22
A22: 21 | B22: 1 | C22: 100 | D22: 100 | E22: Vertrieb_1 | F22: Hamburg | G22: 1 | H22: 2021-01-23
A23: 22 | B23: 1 | C23: 250 | D23: 120 | E23: Vertrieb_2 | F23: München | G23: 1 | H23: 2021-01-24
A24: 23 | B24: 1 | C24: 100 | D24: 100 | E24: Vertrieb_3 | F24: Köln | G24: 1 | H24: 2021-01-25
A25: 24 | B25: 1 | C25: 200 | D25: 110 | E25: Vertrieb_4 | F25: Frankfurt am Main | G25: 1 | H25: 2021-01-26
A26: 25 | B26: 1 | C26: 250 | D26: 120 | E26: Vertrieb_1 | F26: Hamburg | G26: 1 | H26: 2021-01-27
A27: 26 | B27: 1 | C27: 100 | D27: 100 | E27: Vertrieb_2 | F27: München | G27: 1 | H27: 2021-01-28
A28: 27 | B28: 1 | C28: 200 | D28: 110 | E28: Vertrieb_3 | F28: Köln | G28: 1 | H28: 2021-01-29
A29: 28 | B29: 1 | C29: 250 | D29: 120 | E29: Vertrieb_4 | F29: Frankfurt am Main | G29: 1 | H29: 2021-01-30
A30: 29 | B30: 1 | C30: 100 | D30: 100 | E30: Vertrieb_1 | F30: Hamburg | G30: 1 | H30: 2021-01-31
A31: 30 | B31: 1 | C31: 200 | D31: 110 | E31: Vertrieb_2 | F31: München | G31: 2 | H31: 2021-02-01
A32: 31 | B32: 1 | C32: 250 | D32: 120 | E32: Vertrieb_3 | F32: Köln | G32: 2 | H32: 2021-02-02
A33: 32 | B33: 1 | C33: 100 | D33: 100 | E33: Vertrieb_4 | F33: Frankfurt am Main | G33: 2 | H33: 2021-02-03
A34: 33 | B34: 1 | C34: 200 | D34: 110 | E34: Vertrieb_1 | F34: Hamburg | G34: 2 | H34: 2021-02-04
A35: 34 | B35: 1 | C35: 250 | D35: 120 | E35: Vertrieb_2 | F35: München | G35: 2 | H35: 2021-02-05
A36: 35 | B36: 1 | C36: 100 | D36: 100 | E36: Vertrieb_3 | F36: Köln | G36: 2 | H36: 2021-02-06
A37: 36 | B37: 1 | C37: 200 | D37: 110 | E37: Vertrieb_4 | F37: Frankfurt am Main | G37: 2 | H37: 2021-02-07
A38: 37 | B38: 1 | C38: 250 | D38: 120 | E38: Vertrieb_1 | F38: Hamburg | G38: 2 | H38: 2021-02-08
A39: 38 | B39: 1 | C39: 100 | D39: 100 | E39: Vertrieb_2 | F39: München | G39: 2 | H39: 2021-02-09
A40: 39 | B40: 1 | C40: 200 | D40: 110 | E40: Vertrieb_3 | F40: Köln | G40: 2 | H40: 2021-02-10
A41: 40 | B41: 1 | C41: 250 | D41: 120 | E41: Vertrieb_4 | F41: Frankfurt am Main | G41: 2 | H41: 2021-02-11
A42: 41 | B42: 1 | C42: 100 | D42: 100 | E42: Vertrieb_1 | F42: Hamburg | G42: 2 | H42: 2021-02-12
A43: 42 | B43: 1 | C43: 200 | D43: 110 | E43: Vertrieb_2 | F43: München | G43: 2 | H43: 2021-02-13
A44: 43 | B44: 1 | C44: 250 | D44: 120 | E44: Vertrieb_3 | F44: Köln | G44: 2 | H44: 2021-02-14
A45: 44 | B45: 1 | C45: 100 | D45: 100 | E45: Vertrieb_4 | F45: Frankfurt am Main | G45: 2 | H45: 2021-02-15
A46: 45 | B46: 1 | C46: 200 | D46: 110 | E46: Vertrieb_1 | F46: Hamburg | G46: 2 | H46: 2021-02-16
A47: 46 | B47: 1 | C47: 250 | D47: 120 | E47: Vertrieb_2 | F47: München | G47: 2 | H47: 2021-02-17
A48: 47 | B48: 1 | C48: 100 | D48: 100 | E48: Vertrieb_3 | F48: Köln | G48: 2 | H48: 2021-02-18
A49: 48 | B49: 1 | C49: 200 | D49: 110 | E49: Vertrieb_4 | F49: Frankfurt am Main | G49: 2 | H49: 2021-02-19
A50: 49 | B50: 1 | C50: 250 | D50: 120 | E50: Vertrieb_1 | F50: Hamburg | G50: 2 | H50: 2021-02-20
A51: 50 | B51: 1 | C51: 100 | D51: 100 | E51: Vertrieb_2 | F51: München | G51: 2 | H51: 2021-02-21
A52: 51 | B52: 1 | C52: 200 | D52: 110 | E52: Vertrieb_3 | F52: Köln | G52: 2 | H52: 2021-02-22
A53: 52 | B53: 1 | C53: 250 | D53: 120 | E53: Vertrieb_4 | F53: Frankfurt am Main | G53: 2 | H53: 2021-02-23
A54: 53 | B54: 1 | C54: 200 | D54: 110 | E54: Vertrieb_1 | F54: Hamburg | G54: 2 | H54: 2021-02-24
A55: 54 | B55: 1 | C55: 250 | D55: 120 | E55: Vertrieb_2 | F55: München | G55: 2 | H55: 2021-02-25
A56: 55 | B56: 1 | C56: 100 | D56: 100 | E56: Vertrieb_3 | F56: Köln | G56: 2 | H56: 2021-02-26
A57: 56 | B57: 1 | C57: 200 | D57: 110 | E57: Vertrieb_4 | F57: Frankfurt am Main | G57: 2 | H57: 2021-02-27
A58: 57 | B58: 1 | C58: 250 | D58: 120 | E58: Vertrieb_1 | F58: Hamburg | G58: 2 | H58: 2021-02-28
A59: 58 | B59: 1 | C59: 100 | D59: 100 | E59: Vertrieb_2 | F59: München | G59: 3 | H59: 2021-03-01
A60: 59 | B60: 1 | C60: 200 | D60: 110 | E60: Vertrieb_3 | F60: Köln | G60: 3 | H60: 2021-03-02
A61: 60 | B61: 1 | C61: 250 | D61: 120 | E61: Vertrieb_4 | F61: Frankfurt am Main | G61: 3 | H61: 2021-03-03
A62: 61 | B62: 1 | C62: 100 | D62: 100 | E62: Vertrieb_1 | F62: Hamburg | G62: 3 | H62: 2021-03-04
A63: 62 | B63: 1 | C63: 200 | D63: 110 | E63: Vertrieb_2 | F63: München | G63: 3 | H63: 2021-03-05
A64: 63 | B64: 1 | C64: 250 | D64: 120 | E64: Vertrieb_3 | F64: Köln | G64: 3 | H64: 2021-03-06
A65: 64 | B65: 1 | C65: 100 | D65: 100 | E65: Vertrieb_4 | F65: Frankfurt am Main | G65: 3 | H65: 2021-03-07
A66: 65 | B66: 1 | C66: 200 | D66: 110 | E66: Vertrieb_1 | F66: Hamburg | G66: 3 | H66: 2021-03-08
A67: 66 | B67: 1 | C67: 250 | D67: 120 | E67: Vertrieb_2 | F67: München | G67: 3 | H67: 2021-03-09
A68: 67 | B68: 1 | C68: 100 | D68: 100 | E68: Vertrieb_3 | F68: Köln | G68: 3 | H68: 2021-03-10
A69: 68 | B69: 1 | C69: 200 | D69: 110 | E69: Vertrieb_4 | F69: Frankfurt am Main | G69: 3 | H69: 2021-03-11
A70: 69 | B70: 1 | C70: 250 | D70: 120 | E70: Vertrieb_1 | F70: Hamburg | G70: 3 | H70: 2021-03-12
A71: 70 | B71: 1 | C71: 100 | D71: 100 | E71: Vertrieb_2 | F71: München | G71: 3 | H71: 2021-03-13
A72: 71 | B72: 1 | C72: 200 | D72: 110 | E72: Vertrieb_3 | F72: Köln | G72: 3 | H72: 2021-03-14
A73: 72 | B73: 1 | C73: 250 | D73: 120 | E73: Vertrieb_4 | F73: Frankfurt am Main | G73: 3 | H73: 2021-03-15
A74: 73 | B74: 1 | C74: 100 | D74: 100 | E74: Vertrieb_1 | F74: Hamburg | G74: 3 | H74: 2021-03-16
A75: 74 | B75: 1 | C75: 200 | D75: 110 | E75: Vertrieb_2 | F75: München | G75: 3 | H75: 2021-03-17
A76: 75 | B76: 1 | C76: 250 | D76: 120 | E76: Vertrieb_3 | F76: Köln | G76: 3 | H76: 2021-03-18
A77: 76 | B77: 1 | C77: 100 | D77: 100 | E77: Vertrieb_4 | F77: Frankfurt am Main | G77: 3 | H77: 2021-03-19
A78: 77 | B78: 1 | C78: 200 | D78: 110 | E78: Vertrieb_1 | F78: Hamburg | G78: 3 | H78: 2021-03-20
A79: 78 | B79: 1 | C79: 250 | D79: 120 | E79: Vertrieb_2 | F79: München | G79: 3 | H79: 2021-03-21
A80: 79 | B80: 1 | C80: 100 | D80: 100 | E80: Vertrieb_3 | F80: Köln | G80: 3 | H80: 2021-03-22
A81: 80 | B81: 1 | C81: 200 | D81: 110 | E81: Vertrieb_4 | F81: Frankfurt am Main | G81: 3 | H81: 2021-03-23
A82: 81 | B82: 1 | C82: 250 | D82: 120 | E82: Vertrieb_1 | F82: Hamburg | G82: 3 | H82: 2021-03-24
A83: 82 | B83: 1 | C83: 100 | D83: 100 | E83: Vertrieb_2 | F83: München | G83: 3 | H83: 2021-03-25
A84: 83 | B84: 1 | C84: 200 | D84: 110 | E84: Vertrieb_3 | F84: Köln | G84: 3 | H84: 2021-03-26
A85: 84 | B85: 1 | C85: 100 | D85: 100 | E85: Vertrieb_4 | F85: Frankfurt am Main | G85: 3 | H85: 2021-03-27
A86: 85 | B86: 1 | C86: 200 | D86: 110 | E86: Vertrieb_1 | F86: Hamburg | G86: 3 | H86: 2021-03-28
A87: 86 | B87: 1 | C87: 250 | D87: 120 | E87: Vertrieb_2 | F87: München | G87: 3 | H87: 2021-03-29
A88: 87 | B88: 1 | C88: 100 | D88: 100 | E88: Vertrieb_3 | F88: Köln | G88: 3 | H88: 2021-03-30
A89: 88 | B89: 1 | C89: 200 | D89: 110 | E89: Vertrieb_4 | F89: Frankfurt am Main | G89: 3 | H89: 2021-03-31
A90: 89 | B90: 1 | C90: 250 | D90: 120 | E90: Vertrieb_1 | F90: Hamburg | G90: 4 | H90: 2021-04-01
A91: 90 | B91: 1 | C91: 100 | D91: 100 | E91: Vertrieb_2 | F91: München | G91: 4 | H91: 2021-04-02
A92: 91 | B92: 1 | C92: 200 | D92: 110 | E92: Vertrieb_3 | F92: Köln | G92: 4 | H92: 2021-04-03
A93: 92 | B93: 1 | C93: 250 | D93: 120 | E93: Vertrieb_4 | F93: Frankfurt am Main | G93: 4 | H93: 2021-04-04
A94: 93 | B94: 1 | C94: 100 | D94: 100 | E94: Vertrieb_1 | F94: Hamburg | G94: 4 | H94: 2021-04-05
A95: 94 | B95: 1 | C95: 200 | D95: 110 | E95: Vertrieb_2 | F95: München | G95: 4 | H95: 2021-04-06
A96: 95 | B96: 1 | C96: 250 | D96: 120 | E96: Vertrieb_3 | F96: Köln | G96: 4 | H96: 2021-04-07
A97: 96 | B97: 1 | C97: 100 | D97: 100 | E97: Vertrieb_4 | F97: Frankfurt am Main | G97: 4 | H97: 2021-04-08
A98: 97 | B98: 1 | C98: 200 | D98: 110 | E98: Vertrieb_1 | F98: Hamburg | G98: 4 | H98: 2021-04-09
A99: 98 | B99: 1 | C99: 250 | D99: 120 | E99: Vertrieb_2 | F99: München | G99: 4 | H99: 2021-04-10
A100: 99 | B100: 1 | C100: 100 | D100: 100 | E100: Vertrieb_3 | F100: Köln | G100: 4 | H100: 2021-04-11
A101: 100 | B101: 1 | C101: 200 | D101: 110 | E101: Vertrieb_4 | F101: Frankfurt am Main | G101: 4 | H101: 2021-04-12
A102: 101 | B102: 1 | C102: 250 | D102: 120 | E102: Vertrieb_1 | F102: Hamburg | G102: 4 | H102: 2021-04-13
A103: 102 | B103: 1 | C103: 100 | D103: 100 | E103: Vertrieb_2 | F103: München | G103: 4 | H103: 2021-04-14
A104: 103 | B104: 1 | C104: 200 | D104: 110 | E104: Vertrieb_3 | F104: Köln | G104: 4 | H104: 2021-04-15
A105: 104 | B105: 1 | C105: 250 | D105: 120 | E105: Vertrieb_4 | F105: Frankfurt am Main | G105: 4 | H105: 2021-04-16
A106: 105 | B106: 1 | C106: 100 | D106: 100 | E106: Vertrieb_1 | F106: Hamburg | G106: 4 | H106: 2021-04-17
A107: 106 | B107: 1 | C107: 200 | D107: 110 | E107: Vertrieb_2 | F107: München | G107: 4 | H107: 2021-04-18
A108: 107 | B108: 1 | C108: 250 | D108: 120 | E108: Vertrieb_3 | F108: Köln | G108: 4 | H108: 2021-04-19
A109: 108 | B109: 1 | C109: 100 | D109: 100 | E109: Vertrieb_4 | F109: Frankfurt am Main | G109: 4 | H109: 2021-04-20
A110: 109 | B110: 1 | C110: 200 | D110: 110 | E110: Vertrieb_1 | F110: Hamburg | G110: 4 | H110: 2021-04-21
A111: 110 | B111: 1 | C111: 250 | D111: 120 | E111: Vertrieb_2 | F111: München | G111: 4 | H111: 2021-04-22
A112: 111 | B112: 1 | C112: 100 | D112: 100 | E112: Vertrieb_3 | F112: Köln | G112: 4 | H112: 2021-04-23
A113: 112 | B113: 1 | C113: 200 | D113: 110 | E113: Vertrieb_4 | F113: Frankfurt am Main | G113: 4 | H113: 2021-04-24
A114: 113 | B114: 1 | C114: 250 | D114: 120 | E114: Vertrieb_1 | F114: Hamburg | G114: 4 | H114: 2021-04-25
A115: 114 | B115: 1 | C115: 100 | D115: 100 | E115: Vertrieb_2 | F115: München | G115: 4 | H115: 2021-04-26
A116: 115 | B116: 1 | C116: 100 | D116: 100 | E116: Vertrieb_3 | F116: Köln | G116: 4 | H116: 2021-04-27
A117: 116 | B117: 1 | C117: 200 | D117: 110 | E117: Vertrieb_4 | F117: Frankfurt am Main | G117: 4 | H117: 2021-04-28
A118: 117 | B118: 1 | C118: 250 | D118: 120 | E118: Vertrieb_1 | F118: Hamburg | G118: 4 | H118: 2021-04-29
A119: 118 | B119: 1 | C119: 100 | D119: 100 | E119: Vertrieb_2 | F119: München | G119: 4 | H119: 2021-04-30
A120: 119 | B120: 1 | C120: 200 | D120: 110 | E120: Vertrieb_3 | F120: Köln | G120: 5 | H120: 2021-05-01
A121: 120 | B121: 1 | C121: 250 | D121: 120 | E121: Vertrieb_4 | F121: Frankfurt am Main | G121: 5 | H121: 2021-05-02
A122: 121 | B122: 1 | C122: 100 | D122: 100 | E122: Vertrieb_1 | F122: Hamburg | G122: 5 | H122: 2021-05-03
A123: 122 | B123: 1 | C123: 200 | D123: 110 | E123: Vertrieb_2 | F123: München | G123: 5 | H123: 2021-05-04
A124: 123 | B124: 1 | C124: 250 | D124: 120 | E124: Vertrieb_3 | F124: Köln | G124: 5 | H124: 2021-05-05
A125: 124 | B125: 1 | C125: 100 | D125: 100 | E125: Vertrieb_4 | F125: Frankfurt am Main | G125: 5 | H125: 2021-05-06
A126: 125 | B126: 1 | C126: 200 | D126: 110 | E126: Vertrieb_1 | F126: Hamburg | G126: 5 | H126: 2021-05-07
A127: 126 | B127: 1 | C127: 250 | D127: 120 | E127: Vertrieb_2 | F127: München | G127: 5 | H127: 2021-05-08
A128: 127 | B128: 1 | C128: 100 | D128: 100 | E128: Vertrieb_3 | F128: Köln | G128: 5 | H128: 2021-05-09
A129: 128 | B129: 1 | C129: 200 | D129: 110 | E129: Vertrieb_4 | F129: Frankfurt am Main | G129: 5 | H129: 2021-05-10
A130: 129 | B130: 1 | C130: 250 | D130: 120 | E130: Vertrieb_1 | F130: Hamburg | G130: 5 | H130: 2021-05-11
A131: 130 | B131: 1 | C131: 100 | D131: 100 | E131: Vertrieb_2 | F131: München | G131: 5 | H131: 2021-05-12
A132: 131 | B132: 1 | C132: 200 | D132: 110 | E132: Vertrieb_3 | F132: Köln | G132: 5 | H132: 2021-05-13
A133: 132 | B133: 1 | C133: 250 | D133: 120 | E133: Vertrieb_4 | F133: Frankfurt am Main | G133: 5 | H133: 2021-05-14
A134: 133 | B134: 1 | C134: 100 | D134: 100 | E134: Vertrieb_1 | F134: Hamburg | G134: 5 | H134: 2021-05-15
A135: 134 | B135: 1 | C135: 200 | D135: 110 | E135: Vertrieb_2 | F135: München | G135: 5 | H135: 2021-05-16
A136: 135 | B136: 1 | C136: 250 | D136: 120 | E136: Vertrieb_3 | F136: Köln | G136: 5 | H136: 2021-05-17
A137: 136 | B137: 1 | C137: 100 | D137: 100 | E137: Vertrieb_4 | F137: Frankfurt am Main | G137: 5 | H137: 2021-05-18
A138: 137 | B138: 1 | C138: 200 | D138: 110 | E138: Vertrieb_1 | F138: Hamburg | G138: 5 | H138: 2021-05-19
A139: 138 | B139: 1 | C139: 250 | D139: 120 | E139: Vertrieb_2 | F139: München | G139: 5 | H139: 2021-05-20
A140: 139 | B140: 1 | C140: 100 | D140: 100 | E140: Vertrieb_3 | F140: Köln | G140: 5 | H140: 2021-05-21
A141: 140 | B141: 1 | C141: 200 | D141: 110 | E141: Vertrieb_4 | F141: Frankfurt am Main | G141: 5 | H141: 2021-05-22
A142: 141 | B142: 1 | C142: 250 | D142: 120 | E142: Vertrieb_1 | F142: Hamburg | G142: 5 | H142: 2021-05-23
A143: 142 | B143: 1 | C143: 100 | D143: 100 | E143: Vertrieb_2 | F143: München | G143: 5 | H143: 2021-05-24
A144: 143 | B144: 1 | C144: 200 | D144: 110 | E144: Vertrieb_3 | F144: Köln | G144: 5 | H144: 2021-05-25
A145: 144 | B145: 1 | C145: 250 | D145: 120 | E145: Vertrieb_4 | F145: Frankfurt am Main | G145: 5 | H145: 2021-05-26
A146: 145 | B146: 1 | C146: 100 | D146: 100 | E146: Vertrieb_1 | F146: Hamburg | G146: 5 | H146: 2021-05-27
A147: 146 | B147: 1 | C147: 250 | D147: 120 | E147: Vertrieb_2 | F147: München | G147: 5 | H147: 2021-05-28
A148: 147 | B148: 1 | C148: 100 | D148: 100 | E148: Vertrieb_3 | F148: Köln | G148: 5 | H148: 2021-05-29
A149: 148 | B149: 1 | C149: 200 | D149: 110 | E149: Vertrieb_4 | F149: Frankfurt am Main | G149: 5 | H149: 2021-05-30
A150: 149 | B150: 1 | C150: 250 | D150: 120 | E150: Vertrieb_1 | F150: Hamburg | G150: 5 | H150: 2021-05-31
A151: 150 | B151: 1 | C151: 100 | D151: 100 | E151: Vertrieb_2 | F151: München | G151: 6 | H151: 2021-06-01
A152: 151 | B152: 1 | C152: 200 | D152: 110 | E152: Vertrieb_3 | F152: Köln | G152: 6 | H152: 2021-06-02
A153: 152 | B153: 1 | C153: 250 | D153: 120 | E153: Vertrieb_4 | F153: Frankfurt am Main | G153: 6 | H153: 2021-06-03
A154: 153 | B154: 1 | C154: 100 | D154: 100 | E154: Vertrieb_1 | F154: Hamburg | G154: 6 | H154: 2021-06-04
A155: 154 | B155: 1 | C155: 200 | D155: 110 | E155: Vertrieb_2 | F155: München | G155: 6 | H155: 2021-06-05
A156: 155 | B156: 1 | C156: 250 | D156: 120 | E156: Vertrieb_3 | F156: Köln | G156: 6 | H156: 2021-06-06
A157: 156 | B157: 1 | C157: 100 | D157: 100 | E157: Vertrieb_4 | F157: Frankfurt am Main | G157: 6 | H157: 2021-06-07
A158: 157 | B158: 1 | C158: 200 | D158: 110 | E158: Vertrieb_1 | F158: Hamburg | G158: 6 | H158: 2021-06-08
A159: 158 | B159: 1 | C159: 250 | D159: 120 | E159: Vertrieb_2 | F159: München | G159: 6 | H159: 2021-06-09
A160: 159 | B160: 1 | C160: 100 | D160: 100 | E160: Vertrieb_3 | F160: Köln | G160: 6 | H160: 2021-06-10
A161: 160 | B161: 1 | C161: 200 | D161: 110 | E161: Vertrieb_4 | F161: Frankfurt am Main | G161: 6 | H161: 2021-06-11
A162: 161 | B162: 1 | C162: 250 | D162: 120 | E162: Vertrieb_1 | F162: Hamburg | G162: 6 | H162: 2021-06-12
A163: 162 | B163: 1 | C163: 100 | D163: 100 | E163: Vertrieb_2 | F163: München | G163: 6 | H163: 2021-06-13
A164: 163 | B164: 1 | C164: 200 | D164: 110 | E164: Vertrieb_3 | F164: Köln | G164: 6 | H164: 2021-06-14
A165: 164 | B165: 1 | C165: 250 | D165: 120 | E165: Vertrieb_4 | F165: Frankfurt am Main | G165: 6 | H165: 2021-06-15
A166: 165 | B166: 1 | C166: 100 | D166: 100 | E166: Vertrieb_1 | F166: Hamburg | G166: 6 | H166: 2021-06-16
A167: 166 | B167: 1 | C167: 200 | D167: 110 | E167: Vertrieb_2 | F167: München | G167: 6 | H167: 2021-06-17
A168: 167 | B168: 1 | C168: 250 | D168: 120 | E168: Vertrieb_3 | F168: Köln | G168: 6 | H168: 2021-06-18
A169: 168 | B169: 1 | C169: 100 | D169: 100 | E169: Vertrieb_4 | F169: Frankfurt am Main | G169: 6 | H169: 2021-06-19
A170: 169 | B170: 1 | C170: 200 | D170: 110 | E170: Vertrieb_1 | F170: Hamburg | G170: 6 | H170: 2021-06-20
A171: 170 | B171: 1 | C171: 250 | D171: 120 | E171: Vertrieb_2 | F171: München | G171: 6 | H171: 2021-06-21
A172: 171 | B172: 1 | C172: 100 | D172: 100 | E172: Vertrieb_3 | F172: Köln | G172: 6 | H172: 2021-06-22
A173: 172 | B173: 1 | C173: 200 | D173: 110 | E173: Vertrieb_4 | F173: Frankfurt am Main | G173: 6 | H173: 2021-06-23
A174: 173 | B174: 1 | C174: 250 | D174: 120 | E174: Vertrieb_1 | F174: Hamburg | G174: 6 | H174: 2021-06-24
A175: 174 | B175: 1 | C175: 100 | D175: 100 | E175: Vertrieb_2 | F175: München | G175: 6 | H175: 2021-06-25
A176: 175 | B176: 1 | C176: 200 | D176: 110 | E176: Vertrieb_3 | F176: Köln | G176: 6 | H176: 2021-06-26
A177: 176 | B177: 1 | C177: 250 | D177: 120 | E177: Vertrieb_4 | F177: Frankfurt am Main | G177: 6 | H177: 2021-06-27
A178: 177 | B178: 1 | C178: 200 | D178: 110 | E178: Vertrieb_1 | F178: Hamburg | G178: 6 | H178: 2021-06-28
A179: 178 | B179: 1 | C179: 250 | D179: 120 | E179: Vertrieb_2 | F179: München | G179: 6 | H179: 2021-06-29
A180: 179 | B180: 1 | C180: 100 | D180: 100 | E180: Vertrieb_3 | F180: Köln | G180: 6 | H180: 2021-06-30
A181: 180 | B181: 1 | C181: 200 | D181: 110 | E181: Vertrieb_4 | F181: Frankfurt am Main | G181: 7 | H181: 2021-07-01
A182: 181 | B182: 1 | C182: 250 | D182: 120 | E182: Vertrieb_1 | F182: Hamburg | G182: 7 | H182: 2021-07-02
A183: 182 | B183: 1 | C183: 100 | D183: 100 | E183: Vertrieb_2 | F183: München | G183: 7 | H183: 2021-07-03
A184: 183 | B184: 1 | C184: 200 | D184: 110 | E184: Vertrieb_3 | F184: Köln | G184: 7 | H184: 2021-07-04
A185: 184 | B185: 1 | C185: 250 | D185: 120 | E185: Vertrieb_4 | F185: Frankfurt am Main | G185: 7 | H185: 2021-07-05
A186: 185 | B186: 1 | C186: 100 | D186: 100 | E186: Vertrieb_1 | F186: Hamburg | G186: 7 | H186: 2021-07-06
A187: 186 | B187: 1 | C187: 200 | D187: 110 | E187: Vertrieb_2 | F187: München | G187: 7 | H187: 2021-07-07
A188: 187 | B188: 1 | C188: 250 | D188: 120 | E188: Vertrieb_3 | F188: Köln | G188: 7 | H188: 2021-07-08
A189: 188 | B189: 1 | C189: 100 | D189: 100 | E189: Vertrieb_4 | F189: Frankfurt am Main | G189: 7 | H189: 2021-07-09
A190: 189 | B190: 1 | C190: 200 | D190: 110 | E190: Vertrieb_1 | F190: Hamburg | G190: 7 | H190: 2021-07-10
A191: 190 | B191: 1 | C191: 250 | D191: 120 | E191: Vertrieb_2 | F191: München | G191: 7 | H191: 2021-07-11
A192: 191 | B192: 1 | C192: 100 | D192: 100 | E192: Vertrieb_3 | F192: Köln | G192: 7 | H192: 2021-07-12
A193: 192 | B193: 1 | C193: 200 | D193: 110 | E193: Vertrieb_4 | F193: Frankfurt am Main | G193: 7 | H193: 2021-07-13
A194: 193 | B194: 1 | C194: 250 | D194: 120 | E194: Vertrieb_1 | F194: Hamburg | G194: 7 | H194: 2021-07-14
A195: 194 | B195: 1 | C195: 100 | D195: 100 | E195: Vertrieb_2 | F195: München | G195: 7 | H195: 2021-07-15
A196: 195 | B196: 1 | C196: 200 | D196: 110 | E196: Vertrieb_3 | F196: Köln | G196: 7 | H196: 2021-07-16
A197: 196 | B197: 1 | C197: 250 | D197: 120 | E197: Vertrieb_4 | F197: Frankfurt am Main | G197: 7 | H197: 2021-07-17
A198: 197 | B198: 1 | C198: 100 | D198: 100 | E198: Vertrieb_1 | F198: Hamburg | G198: 7 | H198: 2021-07-18
A199: 198 | B199: 1 | C199: 200 | D199: 110 | E199: Vertrieb_2 | F199: München | G199: 7 | H199: 2021-07-19
A200: 199 | B200: 1 | C200: 250 | D200: 120 | E200: Vertrieb_3 | F200: Köln | G200: 7 | H200: 2021-07-20
... 164 more rows

Sheet SortierteListe Grund-Parameter (hidden)
A3: Kopfzeile | B3: 1
A4: Sortierzeile | B4: 2
A5: Mit Nummernspalte | B5: TRUE
A6: Mit Gliederung | B6: TRUE
A7: Alle Formeln durch Werte ersetzen | B7: FALSE
A8: Zwischensummen als Formeln | B8: TRUE
A9: Sortierart Buchhaltung | B9: FALSE
A10: Datev Übergabe | B10: FALSE
A11: Datev Datei

Sheet SortierteListe Parameter (hidden)
A3: Sortierspalte 1 | B3: C
A4: Sortierspalte 2
A5: Sortierspalte 3
A6: Seitenwechsel 1 | B6: FALSE
A7: Seitenwechsel 2 | B7: FALSE
A8: Seitenwechsel 3 | B8: FALSE
A9: Zwischensumme 1 | B9: TRUE
A10: Zwischensumme 2 | B10: FALSE
A11: Zwischensumme 3 | B11: FALSE
A12: Kopfzeile 1 | B12: FALSE
A13: Kopfzeile 2 | B13: FALSE
A14: Kopfzeile 3 | B14: FALSE
A15: Zeilenhöhe 1 | B15: 17
A16: Zeilenhöhe 2 | B16: 17
A17: Zeilenhöhe 3 | B17: 17
B18: Name | C18: Fett | D18: Kursiv | E18: Größe | F18: Durchgestrichen | G18: Underline | H18: Colorindex
A19: Font 1 | B19: Calibri | C19: TRUE | D19: FALSE | E19: 14 | F19: FALSE | G19: -4119 | H19: 23
A20: Font 2 | B20: Calibri | C20: TRUE | D20: FALSE | E20: 14 | F20: FALSE | G20: -4119 | H20: 14
A21: Font 3 | B21: Calibri | C21: TRUE | D21: FALSE | E21: 14 | F21: FALSE | G21: -4119 | H21: 3
A35: Anzahl Zwischensummenspalten | B35: 2
A36: Zwischensummenspalten | B36: 1 | C36: 7
A37: Filterspalte 1 | B37: A
A38: Filterspalte 2
A39: Filterspalte 3
A40: Filter Von 1
A41: Filter Von 2
A42: Filter Von 3
A43: Filter Bis 1
A44: Filter Bis 2
A45: Filter Bis 3
A47: Anzahl ausgeblendete Spalten | B47: 0
A48: Ausgeblendete Spalten
